{"text_format":"1","workbook":"xlsx","n_sheets":62,"sheets":["modList00","Инструкция","Лог обновления","Титульный","Территории","Перечень тарифов","Форма 1.0.1 | Т-транс","Форма 1.2 | Т-транс","Форма 1.0.1 | Т-гор.вода","Форма 1.2 | Т-гор.вода","Форма 1.0.1 | Т-подкл(инд)","Форма 1.3 | Т-подкл(инд)","Форма 1.0.1 | Т-подкл","Форма 1.3 | Т-подкл","Форма 1.0.1 | Форма 1.8","Форма 1.8","Форма 1.0.1 | Форма 1.9","Форма 1.9","Форма 1.0.2","Сведения об изменении","Комментарии","Проверка","modListTempFilter","modCheckCyan","REESTR_LINK","REESTR_DS","modHTTP","modfrmRezimChoose","modSheetMain","REESTR_VT","REESTR_VED","modfrmReestrObj","AllSheetsInThisWorkbook","et_union_vert","modInstruction","modRegion","modReestr","modfrmReestr","modUpdTemplMain","REESTR_ORG","modClassifierValidate","modProv","modHyp","modServiceModule","modList01","modList02","modList03","REESTR_MO_FILTER","REESTR_MO","et_union_hor","TEHSHEET","modInfo","modList05","modList06","modList07","modList11","modList12","modfrmDateChoose","modComm","modThisWorkbook","modfrmReestrMR","modfrmCheckUpdates"],"not_rendered":{"charts":0,"images":20,"macros":1,"external_links":1,"defined_names":566,"comments":0,"pivot_tables":0},"unopened":[],"bounds":{"document_bytes":16777216,"sheet_cells":100000,"rows_first":2000,"rows_last":500,"rows_between":2000,"halvings":0,"cell_chars":16384,"cell_head_chars":4096},"cells_cut":0,"cells_raw":0,"read":"whole","date_system":"1900"}

{"sheet":"modList00","index":0,"n_rows":0,"n_cols":0,"rows_kept":0,"cut":false,"hidden":true,"merged":[]}

{"sheet":"Инструкция","index":1,"n_rows":102,"n_cols":27,"rows_kept":102,"cut":false,"hidden":false,"merged":[[1,1,1,6],[2,1,2,2],[6,4,18,23],[22,15,22,22],[57,4,57,20],[4,1,4,24],[40,4,44,23],[20,5,20,12],[20,15,20,23],[21,15,21,23],[34,4,38,23],[21,5,21,12],[39,4,39,23],[101,5,101,23],[99,5,99,18],[81,4,81,6],[97,4,97,23],[80,4,80,20],[83,7,83,23],[59,7,59,23],[81,7,81,23],[45,4,56,23],[69,4,69,19],[59,4,59,6],[58,7,58,23],[58,4,58,6],[70,4,70,19],[60,7,60,23]]}
[null,null,null,null,null,null,null,null,null,null,null,null,null,null,null,null,null,null,null,null,null,null,null,null,null,null," (требуется обновление)"]
[null,{"$f":"\"Код отчёта: \" & GetCode()","v":"Код отчёта: FAS.JKH.OPEN.INFO.PRICE.GVS"}]
[null,{"$f":"\"Версия \" & GetVersion()","v":"Версия 1.0.2"}]
[]
[null,"Показатели, подлежащие раскрытию в сфере горячего водоснабжения (цены и тарифы)"]
[]
[null,null,null,null,"• На рабочем месте должен быть установлен MS Office 2007 SP3, 2010, 2013, 2016 с полной версией MS Excel\n\n• Макросы во время работы должны быть включены (!)\n\n• Для корректной работы отчёта требуется выбрать низкий уровень безопасности\n(В меню MS Excel 2007/2010/2013/2016: Параметры Excel | Центр управления безопасностью | Параметры центра управления безопасностью | Параметры макросов | Включить все макросы | ОК)\n\n• Если Вы работаете в табличном процессоре MS Excel 2007 и выше, то можете использовать для работы формат XLSB (Двоичная книга Excel). При работе в формате XLSB заметно быстрее происходит сохранение файла, а также уменьшается размер по сравнению с форматами XLS и XLSM\n\n• Не рекомендуется снимать защиту с листов и каким-либо образом модифицировать защищаемые формулы и расчётные поля, в противном случае, отчёт будет отклонён системой\n\n• При сохранении не следует выбирать формат XLSX (Книга Excel), так как в указанном формате макросы, необходимые для работы отчёта, безвозвратно удаляются"]
[]
[]
[]
[]
[]
[]
[]
[]
[]
[]
[]
[]
[]
[null,null,null,null,"A"," - необязательные для заполнения",null,null,null,null,null,null,null,null,"A"," - с формулами и константами"]
[null,null,null,null,"A"," - обязательные для заполнения",null,null,null,null,null,null,null,null,"A"," - с выбором значений по двойному клику"]
[]
[]
[]
[]
[]
[]
[]
[]
[]
[]
[]
[]
[null,null,null,null,"Если в предложенном Вам списке необходимая организация, МР/МО отсутствуют, обновите реестры с помощью кнопок\n\nВ результате синхронизации с базой данных список организаций (МР/МО) будет заменён актуальным (механизм синхронизации требует подключения к сети Интернет и основан на использовании протокола HTTPS (TCP порт 443))\n\nЕсли после обновления Вам не удалось найти необходимую организацию в списке, обратитесь к ответственному за поддержание реестра Вашего региона."]
[]
[]
[]
[]
[]
[]
[]
[]
[]
[]
[null,null,null,null,"• При сохранении шаблона осуществляется проверка корректности данных, в том числе на наличие значений в ячейках, обязательных для заполнения\n\n• Если какая-то ячейка не удовлетворяет условию проверки, на лист «Проверка» добавляется гиперссылка на данную ячейку и указывается причина ошибки\n\n• В колонке «Статус» для каждого сообщения возможны 2 значения: ошибка и предупреждение\n\n• При наличии сообщений со статусом «Ошибка» шаблон будет отклонён системой и не будет загружен в хранилище данных, сообщения со статусом «Предупреждение» носят информационный характер, и такой шаблон будет принят системой"]
[]
[]
[]
[]
[]
[]
[]
[]
[]
[]
[]
[null,null,null,null,"Обратиться за помощью в службу технической поддержки"]
[]
[]
[]
[]
[]
[]
[]
[]
[]
[]
[]
[null,null,null,null,"Инструкция по загрузке сопроводительных материалов"]
[null,null,null,null,"Инструкция по работе с отчетной формой"]
[]
[]
[]
[]
[]
[]
[]
[]
[]
[null,null,null,null,"Обратиться за помощью в службу технической поддержки"]
[]
[]
[]
[]
[]
[]
[]
[]
[]
[]
[]
[]
[]
[]
[]
[]
[null,null,null,null,"При наличии подключения к Интернет, можно автоматически проверять наличие доступных обновлений. Выберите способ оповещения о наличии обновлений для отчёта:"]
[]
[null,null,null,null,null,"проверять доступные обновления (рекомендуется)",null,null,null,null,null,null,null,null,null,null,null,null,null,null,null,null,null,null,null,null,"y"]
[]
[null,null,null,null,null,"никогда не проверять наличие обновлений (не рекомендуется)"]

{"sheet":"Лог обновления","index":2,"n_rows":32,"n_cols":3,"rows_kept":32,"cut":false,"hidden":true,"merged":[]}
["Дата/Время","Сообщение","Статус"]
["2021-01-29T10:12:50","Проверка доступных обновлений...","Информация"]
["2021-01-29T10:12:51","Доступно обновление до версии 1.0.2","Информация"]
["2021-01-29T10:12:52","Описание изменений: Версия 1.0.2\n1. Корректировка значения группы потребителей \"население\" на \"население и приравненные категории\"\n\nВерсия 1.0.1\n1. Исправление логики работы листа 'Форма 1.8' для организаций, которые не осуществляют подключение к централизованной системе.","Информация"]
["2021-01-29T10:12:52","Размер файла обновления: 317440 байт","Информация"]
["2021-01-29T10:12:55","Подготовка к обновлению...","Информация"]
["2021-01-29T10:13:00","Сохранение файла резервной копии: C:\\Users\\chepelev\\Desktop\\123.BKP.xlsb","Информация"]
["2021-01-29T10:13:01","Резервная копия создана: C:\\Users\\chepelev\\Desktop\\123.BKP.xlsb","Информация"]
["2021-01-29T10:13:01","Создание книги для установки обновлений...","Информация"]
["2021-01-29T10:13:04","Файл обновления загружен: C:\\Users\\chepelev\\Desktop\\UPDATE.FAS.JKH.OPEN.INFO.PRICE.GVS.TO.1.0.2.26.xls","Информация"]
["2022-11-21T15:01:44","Проверка доступных обновлений...","Информация"]
["2022-11-21T15:01:45","Нет доступных обновлений для отчёта с кодом FAS.JKH.OPEN.INFO.PRICE.GVS!","Информация"]
["2022-11-21T15:02:00","Проверка доступных обновлений...","Информация"]
["2022-11-21T15:02:01","Нет доступных обновлений для отчёта с кодом FAS.JKH.OPEN.INFO.PRICE.GVS!","Информация"]
["2022-11-22T08:30:58","Проверка доступных обновлений...","Информация"]
["2022-11-22T08:30:59","Нет доступных обновлений для отчёта с кодом FAS.JKH.OPEN.INFO.PRICE.GVS!","Информация"]
["2022-11-22T08:34:54","Проверка доступных обновлений...","Информация"]
["2022-11-22T08:34:55","Нет доступных обновлений для отчёта с кодом FAS.JKH.OPEN.INFO.PRICE.GVS!","Информация"]
["2022-11-22T10:04:15","Проверка доступных обновлений...","Информация"]
["2022-11-22T10:04:17","Нет доступных обновлений для отчёта с кодом FAS.JKH.OPEN.INFO.PRICE.GVS!","Информация"]
["2022-11-22T10:26:12","Проверка доступных обновлений...","Информация"]
["2022-11-22T10:26:13","Нет доступных обновлений для отчёта с кодом FAS.JKH.OPEN.INFO.PRICE.GVS!","Информация"]
["2022-11-24T11:58:22","Проверка доступных обновлений...","Информация"]
["2022-11-24T11:58:24","Нет доступных обновлений для отчёта с кодом FAS.JKH.OPEN.INFO.PRICE.GVS!","Информация"]
["2022-11-24T13:11:44","Проверка доступных обновлений...","Информация"]
["2022-11-24T13:11:46","Нет доступных обновлений для отчёта с кодом FAS.JKH.OPEN.INFO.PRICE.GVS!","Информация"]
["2022-11-24T16:51:53","Проверка доступных обновлений...","Информация"]
["2022-11-24T16:51:55","Нет доступных обновлений для отчёта с кодом FAS.JKH.OPEN.INFO.PRICE.GVS!","Информация"]
["2022-11-24T16:53:55","Проверка доступных обновлений...","Информация"]
["2022-11-24T16:53:57","Нет доступных обновлений для отчёта с кодом FAS.JKH.OPEN.INFO.PRICE.GVS!","Информация"]
["2022-11-24T18:07:18","Проверка доступных обновлений...","Информация"]
["2022-11-24T18:07:19","Нет доступных обновлений для отчёта с кодом FAS.JKH.OPEN.INFO.PRICE.GVS!","Информация"]

{"sheet":"Титульный","index":3,"n_rows":44,"n_cols":6,"rows_kept":44,"cut":false,"hidden":false,"merged":[[4,4,4,5],[51,4,51,8]]}
[null,null,null,null,null,31625756]
[null,null,null,null,{"$f":"\"Код шаблона: \" & GetCode()","v":"Код шаблона: FAS.JKH.OPEN.INFO.PRICE.GVS"}]
[null,null,null,null,{"$f":"\"Версия \" & GetVersion()","v":"Версия 1.0.2"}]
[]
[null,null,null,null,"Показатели, подлежащие раскрытию в сфере горячего водоснабжения (цены и тарифы)"]
[]
[null,null,null,null,"Субъект РФ","Краснодарский край"]
[]
[null,null,null,null,"Отсутствует Интернет в границах территории МО, где организация осуществляет регулируемые виды деятельности","нет"]
[]
[null,null,null,null,"Начало периода регулирования","01.12.2022"]
[null,null,null,null,"Окончание периода регулирования","31.12.2026"]
[]
[null,null,null,null,"Тип отчета","первичное раскрытие информации"]
[null,null,null,null,"Дата внесения изменений в информацию, подлежащую раскрытию","21.11.2022"]
[null,null,null,null,"Дата периода регулирования, с которой вводятся изменения в тарифы"]
[null,null,null,null,null,"Первичное установление тарифов"]
[null,null,null,null,"Наименование органа регулирования, принявшего решение об утверждении тарифов","департамент государственного регулирования тарифов Краснодарского края"]
[null,null,null,null,"Дата документа об утверждении тарифов","16.11.2022"]
[null,null,null,null,"Номер документа об утверждении тарифов","№ 480/2022-т"]
[null,null,null,null,"Источник официального опубликования решения","сайт администрации Краснодарского края"]
[null,null,null,null,null,"Изменение тарифов"]
[null,null,null,null,"Наименование органа регулирования, принявшего решение об изменении тарифов"]
[null,null,null,null,"Дата принятия решения об изменении тарифов"]
[null,null,null,null,"Номер принятия решения об изменении тарифов"]
[null,null,null,null,"Источник официального опубликования решения"]
[]
[null,null,null,null,"Является ли данное юридическое лицо подразделением (филиалом) другой организации","нет"]
[null,null,null,null,"Наименование организации","ООО \"Кубанькрайгаз\""]
[null,null,null,null,"Наименование филиала"]
[null,null,null,null,"ИНН","2360010921"]
[null,null,null,null,"КПП","236001001"]
[]
[null,null,null,null,"Режим налогообложения","общий"]
[]
[null,null,null,null,"Организация осуществляет подключение к централизованной системе горячего водоснабжения","да"]
[]
[null,null,null,null,"Почтовый адрес регулируемой организации","352104, Краснодарский край, Тихорецкий район, пос. Парковый, ул. Совхозная, 2 \"А\", офис 1"]
[null,null,null,null,"Фамилия, имя, отчество руководителя","Агров Дмитрий Сергеевич"]
[null,null,null,null,null,"Ответственный за заполнение формы"]
[null,null,null,null,"Фамилия, имя, отчество","Ахлюстина Ирина Викторовна"]
[null,null,null,null,"Должность","главный экономист"]
[null,null,null,null,"Контактный телефон","(86196)72761"]
[null,null,null,null,"E-mail","tihgs.ru"]

{"sheet":"Территории","index":4,"n_rows":15,"n_cols":18,"rows_kept":15,"cut":false,"hidden":false,"merged":[[8,5,8,6],[8,8,8,9],[9,5,9,6],[9,8,9,9],[3,3,3,7],[5,3,5,4],[5,5,5,6],[7,3,7,4],[7,8,7,11],[7,5,7,7],[12,7,13,7],[11,2,13,2],[11,3,13,3],[11,4,13,4],[12,5,13,5],[12,6,13,6]]}
[null,null,null,null,null,null,null,null,null,null,"МО","ОКТМО","МР"]
[]
[]
[null,null,null,"Перечень муниципальных районов и муниципальных образований (территорий действия тарифа)"]
[]
[null,null,null,null,null,"да"]
[]
[null,null,null,"Территория действия тарифа",null,"Муниципальный район",null,null,"Муниципальное образование"]
[null,null,null,"№ п/п","Наименование","№ п/п",null,"Наименование","№ п/п",null,"Наименование","ОКТМО"]
[null,null,null,"1","2","3",null,"4","5",null,"6","7"]
[null,null,null,0,null,null,null,null,null,null,null,null,"размерженный МР",null,null,"флаг используемости территории на листе Перечень тарифов","копия территорий","МР (ОКТМО)"]
[null,"auto",null,1,"Тихорецкий муниципальный район, Тихорецкое городское (03654101);",null,0,null,null,"0",null,null,{"$f":"mergeValue(H12)","v":0},null,null,{"$f":"IF(ISERROR(MATCH(Q12,MODesc,0)),\"n\",\"y\")","v":"n"},"Тихорецкий муниципальный район, Тихорецкое городское (03654101);",{"$f":"K12&\"(\"&L12&\")\"","v":"()"}]
[null,"auto",null,null,null,null,1,"Тихорецкий муниципальный район",null,"0",null,null,{"$f":"mergeValue(H13)","v":"Тихорецкий муниципальный район"},null,null,null,null,{"$f":"K13&\"(\"&L13&\")\"","v":"()"}]
[null,"auto",null,null,null,null,null,null,null,1,"Тихорецкое городское","03654101",{"$f":"mergeValue(H14)","v":"Тихорецкий муниципальный район"},null,null,null,null,{"$f":"K14&\" (\"&L14&\")\"","v":"Тихорецкое городское (03654101)"}]
[null,"man",null,null,null,null,null,null,null,null,null,null,null,null,null,null,"Добавить территорию действия тарифа"]

{"sheet":"Перечень тарифов","index":5,"n_rows":21,"n_cols":19,"rows_kept":21,"cut":false,"hidden":false,"merged":[[4,3,4,9],[16,3,17,3],[16,4,17,4],[12,4,12,5],[8,6,8,9],[5,3,5,9],[7,4,7,5],[8,4,8,5],[9,4,9,5],[6,4,6,5],[16,5,17,5],[11,4,11,5],[10,4,10,5],[16,18,17,18],[16,14,16,17],[16,10,16,13],[16,6,17,6],[6,6,6,9],[7,6,7,9],[16,9,17,9],[9,6,9,9],[16,7,17,8],[18,7,18,8],[17,11,17,12],[17,15,17,16],[18,11,18,12],[18,15,18,16],[20,3,23,3],[20,4,23,4],[20,5,23,5],[20,6,23,6],[20,7,22,7],[20,13,21,13],[20,14,21,14],[20,8,22,8],[20,9,22,9],[20,10,22,10],[20,11,21,11],[20,12,21,12]]}
[]
[]
[]
[]
[null,null,null,"Перечень тарифов и технологически не связанных между собой централизованных систем горячего водоснабжения, в отношении которых предлагаются различные тарифы в сфере горячего водоснабжения"]
[]
[]
[]
[]
[]
[null,null,null,null,"Компонент на холодную воду в тарифе на горячую воду установлен с разбивкой по поставщикам",null,"нет"]
[]
[]
[]
[]
[]
[null,null,null,"№ п/п","Вид тарифа","Вид деятельности","Наличие двухставочного тарифа","№ п/п",null,"Наименование тарифа","Дифференциация по\n МО (территориям)",null,null,null,"Дифференциация по \nцентрализованным системам горячего водоснабжения",null,null,null,"Примечание"]
[null,null,null,null,null,null,null,null,null,null,"да/нет","№ п/п",null,"Описание","да/нет","№ п/п",null,"Описание"]
[null,null,null,"1","2","3","4","5",null,"6","7","8",null,"9","10","11",null,"12","13"]
[null,null,null,0]
[5,null,null,1,"Тариф на горячую воду в закрытой системе горячего водоснабжения (горячее водоснабжение)","Горячее водоснабжение","нет",null,1,"Тариф на горячую воду","нет",null,"1",null,"нет",null,"1"]

{"sheet":"Форма 1.0.1 | Т-транс","index":6,"n_rows":19,"n_cols":10,"rows_kept":19,"cut":false,"hidden":true,"merged":[[18,6,18,7],[1,5,1,7],[3,5,3,7],[3,8,4,8],[7,0,15,0],[11,2,13,2],[12,8,13,8],[10,1,14,1]]}
["2"]
[null,null,null,null,null,"Форма 1.0.1 Основные параметры раскрываемой информации 1"]
[]
[null,null,null,null,null,"Параметры формы",null,null,"Описание параметров формы"]
[null,null,null,null,null,"№ п/п","Наименование параметра","Информация"]
[null,null,null,null,null,"1",2,3,4,4]
[null,null,null,null,null,1,"Дата заполнения/внесения изменений",{"$f":"IF(dateCh=\"\",\"\",dateCh)","v":"21.11.2022"},"Указывается календарная дата первичного заполнения или внесения изменений в форму в виде «ДД.ММ.ГГГГ»."]
[1,null,null,null,null,{"$f":"\"2.\" &mergeValue(A8)","v":"2.1"},"Наименование централизованной системы коммунальной инфраструктуры",null,"Указывается наименование централизованной системы холодного водоснабжения/горячего водоснабжения/водоотведения/теплоснабжения, к которой относится размещаемая информация.\nВ случае наличия нескольких централизованных систем коммунальной инфраструктуры, информация по каждой из них указывается в отдельной строке."]
[null,null,null,null,null,{"$f":"\"3.\" &mergeValue(A9)","v":"3.1"},"Наименование регулируемого вида деятельности",null,"Указывается наименование вида регулируемой деятельности."]
[null,null,null,null,null,{"$f":"\"4.\"&mergeValue(A10)","v":"4.1"},"Территория оказания услуги по регулируемому виду деятельности","x"]
[null,1,null,null,null,{"$f":"\"4.\"&mergeValue(A11) &\".\"&mergeValue(B11)","v":"4.1.1"},"Субъект Российской Федерации",{"$f":"IF(region_name=\"\",\"\",region_name)","v":"Краснодарский край"},"Указывается наименование субъекта Российской Федерации"]
[null,null,1,null,null,{"$f":"\"4.\"&mergeValue(A12) &\".\"&mergeValue(B12)&\".\"&mergeValue(C12)","v":"4.1.1.1"},"муниципальный район",null,"Указывается наименование муниципального района, на территории которого организация оказывает услуги по регулируемому виду деятельности."]
[null,null,null,1,null,{"$f":"\"4.\"&mergeValue(A13) &\".\"&mergeValue(B13)&\".\"&mergeValue(C13)&\".\"&mergeValue(D13)","v":"4.1.1.1.1"},"муниципальное образование",null,"Указывается наименование и код муниципального района, муниципального образования в соответствии с Общероссийским классификатором территорий муниципальных образований (далее - ОКТМО), входящего в муниципальный район, на территории которого организация оказывает услуги по регулируемому виду деятельности.\nВ случае оказания услуг по регулируемому виду деятельности на территории нескольких муниципальных районов (муниципальных образований) данные по каждому их них указываются в отдельной строке."]
[null,null,null,null,null,null,"Добавить МО"]
[null,null,null,null,null,null,"Добавить МР"]
[null,null,null,null,null,null,"Добавить территорию"]
[null,null,null,null,null,null,"Добавить ЦС"]
[]
[null,null,null,null,null,null,"  1 Информация размещается при раскрытии информации по каждой из форм."]

{"sheet":"Форма 1.2 | Т-транс","index":7,"n_rows":32,"n_cols":26,"rows_kept":32,"cut":false,"hidden":true,"merged":[[13,11,15,11],[13,12,15,12],[18,14,18,21],[17,14,17,21],[13,14,13,19],[14,17,14,19],[13,13,15,13],[13,20,15,20],[20,3,25,3],[17,0,28,0],[18,1,27,1],[19,2,26,2],[21,4,24,4],[22,22,24,22],[4,11,4,20],[14,15,14,16],[15,18,15,19],[22,17,23,17],[22,20,23,20],[10,11,10,12],[6,14,6,21],[13,21,15,21],[12,22,15,22],[7,14,7,21],[8,14,8,21],[9,14,9,21],[16,18,16,19],[12,11,12,21],[11,14,11,20],[20,7,25,7],[31,12,31,21],[21,9,24,9],[20,14,20,21],[19,14,19,21],[22,19,23,19],[21,14,21,21],[22,18,23,18],[22,13,23,13],[20,8,25,8]]}
[]
[]
[]
[]
[null,null,null,null,null,null,null,null,null,null,null,"Форма 1.2 Информация о величинах тарифов на горячую воду, транспортировку воды1"]
[]
[null,null,null,null,null,null,null,null,null,null,null,null,{"$f":"\"Наименование органа регулирования, принявшего решение об \"&IF(NameOrPr_ch=\"\",\"утверждении\",\"изменении\") & \" тарифов\"","v":"Наименование органа регулирования, принявшего решение об утверждении тарифов"},null,{"$f":"IF(NameOrPr_ch=\"\",IF(NameOrPr=\"\",\"\",NameOrPr),NameOrPr_ch)","v":"департамент государственного регулирования тарифов Краснодарского края"}]
[null,null,null,null,null,null,null,null,null,null,null,null,{"$f":"IF(datePr_ch=\"\",\"Дата документа об утверждении тарифов\",\"Дата принятия решения об изменении тарифов\")","v":"Дата документа об утверждении тарифов"},null,{"$f":"IF(datePr_ch=\"\",IF(datePr=\"\",\"\",datePr),datePr_ch)","v":"16.11.2022"}]
[null,null,null,null,null,null,null,null,null,null,null,null,{"$f":"IF(numberPr_ch=\"\",\"Номер документа об утверждении тарифов\",\"Номер принятия решения об изменении тарифов\")","v":"Номер документа об утверждении тарифов"},null,{"$f":"IF(numberPr_ch=\"\",IF(numberPr=\"\",\"\",numberPr),numberPr_ch)","v":"№ 480/2022-т"}]
[null,null,null,null,null,null,null,null,null,null,null,null,"Источник официального опубликования решения",null,{"$f":"IF(IstPub_ch=\"\",IF(IstPub=\"\",\"\",IstPub),IstPub_ch)","v":"сайт администрации Краснодарского края"}]
[null,null,null,null,null,null,null,null,null,null,null,null,null,null,null,null,null,null,null,null,"dp"]
[]
[null,null,null,null,null,null,null,null,null,null,null,"Параметры формы",null,null,null,null,null,null,null,null,null,null,"Описание параметров формы"]
[null,null,null,null,null,null,null,null,null,null,null,"№ п/п","Параметры дифференциации",null,"Период действия тарифа",null,null,null,null,null,"Наличие других периодов действия тарифа","Добавить период"]
[null,null,null,null,null,null,null,null,null,null,null,null,null,null,"Одноставочный тариф","Двухставочный тариф",null,"Период действия"]
[null,null,null,null,null,null,null,null,null,null,null,null,null,null,"Одноставочный тариф, руб./куб. м","ставка платы за объем поданной воды, руб./куб. м","ставка платы за содержание мощности, руб./куб. м в час","дата начала","дата окончания"]
[null,null,null,null,null,null,null,null,null,null,1,"1","2",{"$f":"OFFSET(N17,0,-1)","v":"2"},{"$f":"OFFSET(O17,0,-1)+1","v":3},{"$f":"OFFSET(P17,0,-1)+1","v":4},{"$f":"OFFSET(Q17,0,-1)+1","v":5},{"$f":"OFFSET(R17,0,-1)+1","v":6},{"$f":"OFFSET(S17,0,-1)+1","v":7},null,{"$f":"OFFSET(U17,0,-2)+1","v":8},{"$f":"OFFSET(V17,0,-1)","v":8},{"$f":"OFFSET(W17,0,-1)+1","v":9}]
[1,null,null,null,null,null,null,null,null,null,null,{"$f":"mergeValue(A18)","v":1},"Наименование тарифа",null,null,null,null,null,null,null,null,null,"Указывается наименование тарифа в случае утверждения нескольких тарифов.\nВ случае наличия нескольких тарифов информация по ним указывается в отдельных строках."]
[null,1,null,null,null,null,null,null,null,null,null,{"$f":"mergeValue(A19) &\".\"& mergeValue(B19)","v":"1.1"},"Территория действия тарифа",null,null,null,null,null,null,null,null,null,"Указывается наименование территории действия тарифа при наличии дифференциации тарифа по территориальному признаку.\nВ случае дифференциации тарифов по территориальному признаку информация по ним указывается в отдельных строках."]
[null,null,1,null,null,null,null,null,null,null,null,{"$f":"mergeValue(A20) &\".\"& mergeValue(B20)&\".\"& mergeValue(C20)","v":"1.1.1"},"Наименование централизованной системы горячего водоснабжения",null,null,null,null,null,null,null,null,null,"Указывается наименование централизованной системы горячего водоснабжения при наличии дифференциации тарифа по централизованным системам горячего водоснабжения.\nВ случае дифференциации тарифов по централизованным системам горячего водоснабжения информация по ним указывается в отдельных строках."]
[null,null,null,1,null,null,null,null,null,null,null,{"$f":"mergeValue(A21) &\".\"& mergeValue(B21)&\".\"& mergeValue(C21)&\".\"& mergeValue(D21)","v":"1.1.1.1"},"Наименование признака дифференциации",null,null,null,null,null,null,null,null,null,"Указывается наименование дополнительного признака дифференциации (при наличии).\nДифференциация тарифа осуществляется в соответствии с законодательством в сфере водоснабжения и водоотведения.\nВ случае дифференциации тарифов по дополнительным признакам информация по ним указывается в отдельных строках."]
[null,null,null,null,"1",null,null,null,null,null,null,{"$f":"mergeValue(A22) &\".\"& mergeValue(B22)&\".\"& mergeValue(C22)&\".\"& mergeValue(D22)&\".\"& mergeValue(E22)","v":"1.1.1.1.1"},"Группа потребителей",null,null,null,null,null,null,null,null,null,"Указывается группа потребителей при наличии дифференциации тарифа по группам потребителей.\nЗначение выбирается из перечня: Организации-перепродавцы; Бюджетные организации; Население; Прочие; Без дифференциации.\nВ случае дифференциации тарифов группам потребителей информация по ним указывается в отдельных строках.",null,{"$f":"strCheckUnique(Z22:Z25)","v":""}]
[null,null,null,null,null,1,null,null,null,null,null,{"$f":"mergeValue(A23) &\".\"& mergeValue(B23)&\".\"& mergeValue(C23)&\".\"& mergeValue(D23)&\".\"& mergeValue(E23)&\".\"& mergeValue(F23)","v":"1.1.1.1.1.1"},null,null,null,null,null,null,"да",null,"нет",null,"В колонке «Параметр дифференциации тарифов» указывается значение дополнительного признака дифференциации.\nПри утверждении двухставочного тарифа колонка «Одноставочный тариф» не заполняется.\nПри утверждении одноставочного тарифа колонки в блоке «Двухставочный тариф» не заполняются.\nВ случае утверждения однокомпонентного двухставочного тарифа данные указываются только в блоке «Двухставочный тариф (однокомпонентный)». \nВ случае утверждения двухкомпонентного двухставочного тарифа данные указываются только в блоке «Двухставочный тариф (двухкомпонентный)».\nДаты начала и окончания действия тарифов указываются в виде «ДД.ММ.ГГГГ».\nВ случае отсутствия даты окончания действия тарифа в колонке «Дата окончания» указывается «Нет».\nВ случае наличия нескольких значений признака дифференциации тарифов информация по ним указывается в отдельных строках.\nВ случае дифференциации тарифов по периодам действия тарифа информация по ним указывается в отдельных колонках.\nВ случае дифференциации компонента двухставочного тарифа на холодную воду по поставщикам строка \"Значение признака дифференциации\" не заполняется.\nВ случае отстутствия дифференциации компонента двухставочного тарифа на холодную воду по поставщикам строка \"Наименование поставщика\" не заполняется.",{"$f":"strCheckDate(O24:V24)","v":""},null,{"$f":"IF(M23=\"\",\"\",M23 )","v":""}]
[null,null,null,null,null,null,null,null,null,null,null,null,null,null,null,null,{"$f":"R23 & \"-\" & T23","v":"-"}]
[null,null,null,null,null,null,null,null,null,null,null,null,"Добавить значение признака дифференциации"]
[null,null,null,null,null,null,null,null,null,null,null,null,"Добавить группу потребителей"]
[null,null,null,null,null,null,null,null,null,null,null,null,"Добавить наименование признака дифференциации"]
[null,null,null,null,null,null,null,null,null,null,null,null,"Добавить наименование системы водоснабжения"]
[null,null,null,null,null,null,null,null,null,null,null,null,"Добавить территорию действия тарифа"]
[null,null,null,null,null,null,null,null,null,null,null,null,"Добавить наименование тарифа"]
[]
[null,null,null,null,null,null,null,null,null,null,null,1,"Для каждого вида тарифа в сфере горячего водоснабжения форма заполняется отдельно. При размещении информации по указанной форме дополнительно указываются: наименование органа регулирования тарифов, принявшего решение об утверждении(изменении) тарифа, дата и номер документа об утверждении(изменении) тарифа, источник его официального опубликования."]

{"sheet":"Форма 1.0.1 | Т-гор.вода","index":8,"n_rows":15,"n_cols":10,"rows_kept":15,"cut":false,"hidden":false,"merged":[[14,6,14,7],[1,5,1,7],[3,5,3,7],[3,8,4,8],[7,0,12,0],[11,2,12,2],[10,1,12,1]]}
["4"]
[null,null,null,null,null,"Форма 1.0.1 Основные параметры раскрываемой информации 1"]
[]
[null,null,null,null,null,"Параметры формы",null,null,"Описание параметров формы"]
[null,null,null,null,null,"№ п/п","Наименование параметра","Информация"]
[null,null,null,null,null,"1",2,3,4,4]
[null,null,null,null,null,1,"Дата заполнения/внесения изменений",{"$f":"IF(dateCh=\"\",\"\",dateCh)","v":"21.11.2022"},"Указывается календарная дата первичного заполнения или внесения изменений в форму в виде «ДД.ММ.ГГГГ»."]
[1,null,null,null,null,{"$f":"\"2.\" &mergeValue(A8)","v":"2.1"},"Наименование централизованной системы коммунальной инфраструктуры",{"$f":"IF('Перечень тарифов'!R21=\"\",\"наименование отсутствует\",\"\" & 'Перечень тарифов'!R21 & \"\")","v":"наименование отсутствует"},"Указывается наименование централизованной системы холодного водоснабжения/горячего водоснабжения/водоотведения/теплоснабжения, к которой относится размещаемая информация.\nВ случае наличия нескольких централизованных систем коммунальной инфраструктуры, информация по каждой из них указывается в отдельной строке."]
[null,null,null,null,null,{"$f":"\"3.\" &mergeValue(A9)","v":"3.1"},"Наименование регулируемого вида деятельности",{"$f":"IF('Перечень тарифов'!F21=\"\",\"наименование отсутствует\",\"\" & 'Перечень тарифов'!F21 & \"\")","v":"Горячее водоснабжение"},"Указывается наименование вида регулируемой деятельности."]
[null,null,null,null,null,{"$f":"\"4.\"&mergeValue(A10)","v":"4.1"},"Территория оказания услуги по регулируемому виду деятельности","x"]
[null,1,null,null,null,{"$f":"\"4.\"&mergeValue(A11) &\".\"&mergeValue(B11)","v":"4.1.1"},"Субъект Российской Федерации",{"$f":"IF(region_name=\"\",\"\",region_name)","v":"Краснодарский край"},"Указывается наименование субъекта Российской Федерации"]
[null,null,1,null,null,{"$f":"\"4.\"&mergeValue(A12) &\".\"&mergeValue(B12)&\".\"&mergeValue(C12)","v":"4.1.1.1"},"муниципальный район",{"$f":"IF(Территории!H13=\"\",\"\",\"\" & Территории!H13 & \"\")","v":"Тихорецкий муниципальный район"},"Указывается наименование муниципального района, на территории которого организация оказывает услуги по регулируемому виду деятельности."]
[null,null,null,1,null,{"$f":"\"4.\"&mergeValue(A13) &\".\"&mergeValue(B13)&\".\"&mergeValue(C13)&\".\"&mergeValue(D13)","v":"4.1.1.1.1"},"муниципальное образование",{"$f":"IF(Территории!R14=\"\",\"\",\"\" & Территории!R14 & \"\")","v":"Тихорецкое городское (03654101)"},"Указывается наименование и код муниципального района, муниципального образования в соответствии с Общероссийским классификатором территорий муниципальных образований (далее - ОКТМО), входящего в муниципальный район, на территории которого организация оказывает услуги по регулируемому виду деятельности.\nВ случае оказания услуг по регулируемому виду деятельности на территории нескольких муниципальных районов (муниципальных образований) данные по каждому их них указываются в отдельной строке."]
[]
[null,null,null,null,null,null,"  1 Информация размещается при раскрытии информации по каждой из форм."]

{"sheet":"Форма 1.2 | Т-гор.вода","index":9,"n_rows":40,"n_cols":131,"rows_kept":40,"cut":false,"hidden":false,"merged":[[17,0,37,0],[18,1,37,1],[19,2,37,2],[20,3,36,3],[22,127,25,127],[22,24,23,24],[22,25,23,25],[22,26,23,26],[22,13,23,13],[22,27,23,27],[19,14,19,126],[21,4,25,4],[17,14,17,126],[20,7,36,7],[21,8,25,8],[22,5,24,5],[22,9,24,9],[27,26,28,26],[27,27,28,27],[27,52,28,52],[27,53,28,53],[27,54,28,54],[27,55,28,55],[27,127,30,127],[7,15,7,126],[8,15,8,126],[9,15,9,126],[12,127,15,127],[18,14,18,126],[13,126,15,126],[11,14,11,27],[13,14,13,26],[14,24,14,26],[11,28,11,41],[13,28,13,40],[13,41,15,41],[14,30,14,31],[14,32,14,33],[14,34,14,36],[16,39,16,40],[11,42,11,55],[13,42,13,54],[13,55,15,55],[11,70,11,83],[13,70,13,82],[13,83,15,83],[14,72,14,73],[14,74,14,75],[39,12,39,126],[4,11,4,27],[13,11,15,11],[13,12,15,12],[10,11,10,12],[13,27,15,27],[21,14,21,126],[12,11,12,126],[13,13,15,13],[15,25,15,26],[20,14,20,126],[16,25,16,26],[14,16,14,17],[14,18,14,19],[14,20,14,22],[6,15,6,126],[14,44,14,45],[14,46,14,47],[14,48,14,50],[14,52,14,54],[15,53,15,54],[22,41,23,41],[14,38,14,40],[15,39,15,40],[31,4,35,4],[31,8,35,8],[31,14,31,126],[32,5,34,5],[32,9,34,9],[32,13,33,13],[32,24,33,24],[32,25,33,25],[32,26,33,26],[32,27,33,27],[32,83,33,83],[32,97,33,97],[32,111,33,111],[32,125,33,125],[32,108,33,108],[32,109,33,109],[32,110,33,110],[32,122,33,122],[32,123,33,123],[32,124,33,124],[32,127,35,127],[32,38,33,38],[32,39,33,39],[32,40,33,40],[32,41,33,41],[26,4,30,4],[26,8,30,8],[26,14,26,126],[27,5,29,5],[27,9,29,9],[27,13,28,13],[27,24,28,24],[27,25,28,25],[27,38,28,38],[27,39,28,39],[27,40,28,40],[27,41,28,41],[32,66,33,66],[32,67,33,67],[32,68,33,68],[32,69,33,69],[32,80,33,80],[32,81,33,81],[32,82,33,82],[22,38,23,38],[22,39,23,39],[22,40,23,40],[32,52,33,52],[32,53,33,53],[32,54,33,54],[32,55,33,55],[11,56,11,69],[13,56,13,68],[13,69,15,69],[14,58,14,59],[14,60,14,61],[14,62,14,64],[14,66,14,68],[15,67,15,68],[16,67,16,68],[22,66,23,66],[22,67,23,67],[22,68,23,68],[16,53,16,54],[22,52,23,52],[22,53,23,53],[22,54,23,54],[22,55,23,55],[14,76,14,78],[14,80,14,82],[15,81,15,82],[16,81,16,82],[22,80,23,80],[22,81,23,81],[22,82,23,82],[22,69,23,69],[27,66,28,66],[27,67,28,67],[27,68,28,68],[27,69,28,69],[22,83,23,83],[27,80,28,80],[27,81,28,81],[27,82,28,82],[27,83,28,83],[32,94,33,94],[32,95,33,95],[32,96,33,96],[11,84,11,97],[13,84,13,96],[13,97,15,97],[14,86,14,87],[14,88,14,89],[14,90,14,92],[14,94,14,96],[15,95,15,96],[16,95,16,96],[22,97,23,97],[27,94,28,94],[27,95,28,95],[27,96,28,96],[27,97,28,97],[22,94,23,94],[22,95,23,95],[11,98,11,111],[13,98,13,110],[13,111,15,111],[14,100,14,101],[14,102,14,103],[14,104,14,106],[14,108,14,110],[15,109,15,110],[16,109,16,110],[11,112,11,125],[13,112,13,124],[13,125,15,125],[14,114,14,115],[14,116,14,117],[14,118,14,120],[14,122,14,124],[15,123,15,124],[16,123,16,124],[22,96,23,96],[27,108,28,108],[27,109,28,109],[27,110,28,110],[27,111,28,111],[22,108,23,108],[22,109,23,109],[22,110,23,110],[22,125,23,125],[27,122,28,122],[27,123,28,123],[27,124,28,124],[27,125,28,125],[22,122,23,122],[22,123,23,123],[22,124,23,124],[22,111,23,111]]}
[]
[]
[]
[]
[null,null,null,null,null,null,null,null,null,null,null,"Форма 1.2 Информация о величинах тарифов на горячую воду, транспортировку воды1"]
[]
[null,null,null,null,null,null,null,null,null,null,null,null,{"$f":"\"Наименование органа регулирования, принявшего решение об \"&IF(NameOrPr_ch=\"\",\"утверждении\",\"изменении\") & \" тарифов\"","v":"Наименование органа регулирования, принявшего решение об утверждении тарифов"},null,null,{"$f":"IF(NameOrPr_ch=\"\",IF(NameOrPr=\"\",\"\",NameOrPr),NameOrPr_ch)","v":"департамент государственного регулирования тарифов Краснодарского края"}]
[null,null,null,null,null,null,null,null,null,null,null,null,{"$f":"IF(datePr_ch=\"\",\"Дата документа об утверждении тарифов\",\"Дата принятия решения об изменении тарифов\")","v":"Дата документа об утверждении тарифов"},null,null,{"$f":"IF(datePr_ch=\"\",IF(datePr=\"\",\"\",datePr),datePr_ch)","v":"16.11.2022"}]
[null,null,null,null,null,null,null,null,null,null,null,null,{"$f":"IF(numberPr_ch=\"\",\"Номер документа об утверждении тарифов\",\"Номер принятия решения об изменении тарифов\")","v":"Номер документа об утверждении тарифов"},null,null,{"$f":"IF(numberPr_ch=\"\",IF(numberPr=\"\",\"\",numberPr),numberPr_ch)","v":"№ 480/2022-т"}]
[null,null,null,null,null,null,null,null,null,null,null,null,"Источник официального опубликования решения",null,null,{"$f":"IF(IstPub_ch=\"\",IF(IstPub=\"\",\"\",IstPub),IstPub_ch)","v":"сайт администрации Краснодарского края"}]
[null,null,null,null,null,null,null,null,null,null,null,null,null,null,null,null,null,null,null,null,null,null,null,null,null,null,null,"dp",null,null,null,null,null,null,null,null,null,null,null,null,null,"dp",null,null,null,null,null,null,null,null,null,null,null,null,null,"dp",null,null,null,null,null,null,null,null,null,null,null,null,null,"dp",null,null,null,null,null,null,null,null,null,null,null,null,null,"dp",null,null,null,null,null,null,null,null,null,null,null,null,null,"dp",null,null,null,null,null,null,null,null,null,null,null,null,null,"dp",null,null,null,null,null,null,null,null,null,null,null,null,null,"dp"]
[null,null,null,null,null,null,null,null,null,null,null,null,null,null,null,null,null,null,null,null,null,null,null,null,null,null,null,null,"О",null,null,null,null,null,null,null,null,null,null,null,null,null,"О",null,null,null,null,null,null,null,null,null,null,null,null,null,"О",null,null,null,null,null,null,null,null,null,null,null,null,null,"О",null,null,null,null,null,null,null,null,null,null,null,null,null,"О",null,null,null,null,null,null,null,null,null,null,null,null,null,"О",null,null,null,null,null,null,null,null,null,null,null,null,null,"О"]
[null,null,null,null,null,null,null,null,null,null,null,"Параметры формы",null,null,null,null,null,null,null,null,null,null,null,null,null,null,null,null,null,null,null,null,null,null,null,null,null,null,null,null,null,null,null,null,null,null,null,null,null,null,null,null,null,null,null,null,null,null,null,null,null,null,null,null,null,null,null,null,null,null,null,null,null,null,null,null,null,null,null,null,null,null,null,null,null,null,null,null,null,null,null,null,null,null,null,null,null,null,null,null,null,null,null,null,null,null,null,null,null,null,null,null,null,null,null,null,null,null,null,null,null,null,null,null,null,null,null,"Описание параметров формы"]
[null,null,null,null,null,null,null,null,null,null,null,"№ п/п","Параметры дифференциации",null,"Период действия тарифа",null,null,null,null,null,null,null,null,null,null,null,null,"Наличие других периодов действия тарифа","Период действия тарифа",null,null,null,null,null,null,null,null,null,null,null,null,"Наличие других периодов действия тарифа","Период действия тарифа",null,null,null,null,null,null,null,null,null,null,null,null,"Наличие других периодов действия тарифа","Период действия тарифа",null,null,null,null,null,null,null,null,null,null,null,null,"Наличие других периодов действия тарифа","Период действия тарифа",null,null,null,null,null,null,null,null,null,null,null,null,"Наличие других периодов действия тарифа","Период действия тарифа",null,null,null,null,null,null,null,null,null,null,null,null,"Наличие других периодов действия тарифа","Период действия тарифа",null,null,null,null,null,null,null,null,null,null,null,null,"Наличие других периодов действия тарифа","Период действия тарифа",null,null,null,null,null,null,null,null,null,null,null,null,"Наличие других периодов действия тарифа","Добавить период"]
[null,null,null,null,null,null,null,null,null,null,null,null,null,null,null,"Одноставочный тариф","Одноставочный тариф (двухкомпонентный)",null,"Двухставочный тариф (однокомпонентный)",null,"Двухставочный тариф (двухкомпонентный)",null,null,null,"Период действия",null,null,null,null,"Одноставочный тариф","Одноставочный тариф (двухкомпонентный)",null,"Двухставочный тариф (однокомпонентный)",null,"Двухставочный тариф (двухкомпонентный)",null,null,null,"Период действия",null,null,null,null,"Одноставочный тариф","Одноставочный тариф (двухкомпонентный)",null,"Двухставочный тариф (однокомпонентный)",null,"Двухставочный тариф (двухкомпонентный)",null,null,null,"Период действия",null,null,null,null,"Одноставочный тариф","Одноставочный тариф (двухкомпонентный)",null,"Двухставочный тариф (однокомпонентный)",null,"Двухставочный тариф (двухкомпонентный)",null,null,null,"Период действия",null,null,null,null,"Одноставочный тариф","Одноставочный тариф (двухкомпонентный)",null,"Двухставочный тариф (однокомпонентный)",null,"Двухставочный тариф (двухкомпонентный)",null,null,null,"Период действия",null,null,null,null,"Одноставочный тариф","Одноставочный тариф (двухкомпонентный)",null,"Двухставочный тариф (однокомпонентный)",null,"Двухставочный тариф (двухкомпонентный)",null,null,null,"Период действия",null,null,null,null,"Одноставочный тариф","Одноставочный тариф (двухкомпонентный)",null,"Двухставочный тариф (однокомпонентный)",null,"Двухставочный тариф (двухкомпонентный)",null,null,null,"Период действия",null,null,null,null,"Одноставочный тариф","Одноставочный тариф (двухкомпонентный)",null,"Двухставочный тариф (однокомпонентный)",null,"Двухставочный тариф (двухкомпонентный)",null,null,null,"Период действия"]
[null,null,null,null,null,null,null,null,null,null,null,null,null,null,null,"Одноставочный тариф, руб./куб. м","Компонент на холодную воду, руб./куб.м","Компонент на тепловую энергию, руб./Гкал","Ставка платы за потребление горячей воды, руб./куб. м","Ставка платы за содержание системы горячего водоснабжения, руб./Гкал в час","Ставка платы за объем поданной холодной воды, руб./куб. м","Ставка платы за содержание мощности, руб./куб. м в час","Компонент на тепловую энергию, руб./Гкал",null,"дата начала","дата окончания",null,null,null,"Одноставочный тариф, руб./куб. м","Компонент на холодную воду, руб./куб.м","Компонент на тепловую энергию, руб./Гкал","Ставка платы за потребление горячей воды, руб./куб. м","Ставка платы за содержание системы горячего водоснабжения, руб./Гкал в час","Ставка платы за объем поданной холодной воды, руб./куб. м","Ставка платы за содержание мощности, руб./куб. м в час","Компонент на тепловую энергию, руб./Гкал",null,"дата начала","дата окончания",null,null,null,"Одноставочный тариф, руб./куб. м","Компонент на холодную воду, руб./куб.м","Компонент на тепловую энергию, руб./Гкал","Ставка платы за потребление горячей воды, руб./куб. м","Ставка платы за содержание системы горячего водоснабжения, руб./Гкал в час","Ставка платы за объем поданной холодной воды, руб./куб. м","Ставка платы за содержание мощности, руб./куб. м в час","Компонент на тепловую энергию, руб./Гкал",null,"дата начала","дата окончания",null,null,null,"Одноставочный тариф, руб./куб. м","Компонент на холодную воду, руб./куб.м","Компонент на тепловую энергию, руб./Гкал","Ставка платы за потребление горячей воды, руб./куб. м","Ставка платы за содержание системы горячего водоснабжения, руб./Гкал в час","Ставка платы за объем поданной холодной воды, руб./куб. м","Ставка платы за содержание мощности, руб./куб. м в час","Компонент на тепловую энергию, руб./Гкал",null,"дата начала","дата окончания",null,null,null,"Одноставочный тариф, руб./куб. м","Компонент на холодную воду, руб./куб.м","Компонент на тепловую энергию, руб./Гкал","Ставка платы за потребление горячей воды, руб./куб. м","Ставка платы за содержание системы горячего водоснабжения, руб./Гкал в час","Ставка платы за объем поданной холодной воды, руб./куб. м","Ставка платы за содержание мощности, руб./куб. м в час","Компонент на тепловую энергию, руб./Гкал",null,"дата начала","дата окончания",null,null,null,"Одноставочный тариф, руб./куб. м","Компонент на холодную воду, руб./куб.м","Компонент на тепловую энергию, руб./Гкал","Ставка платы за потребление горячей воды, руб./куб. м","Ставка платы за содержание системы горячего водоснабжения, руб./Гкал в час","Ставка платы за объем поданной холодной воды, руб./куб. м","Ставка платы за содержание мощности, руб./куб. м в час","Компонент на тепловую энергию, руб./Гкал",null,"дата начала","дата окончания",null,null,null,"Одноставочный тариф, руб./куб. м","Компонент на холодную воду, руб./куб.м","Компонент на тепловую энергию, руб./Гкал","Ставка платы за потребление горячей воды, руб./куб. м","Ставка платы за содержание системы горячего водоснабжения, руб./Гкал в час","Ставка платы за объем поданной холодной воды, руб./куб. м","Ставка платы за содержание мощности, руб./куб. м в час","Компонент на тепловую энергию, руб./Гкал",null,"дата начала","дата окончания",null,null,null,"Одноставочный тариф, руб./куб. м","Компонент на холодную воду, руб./куб.м","Компонент на тепловую энергию, руб./Гкал","Ставка платы за потребление горячей воды, руб./куб. м","Ставка платы за содержание системы горячего водоснабжения, руб./Гкал в час","Ставка платы за объем поданной холодной воды, руб./куб. м","Ставка платы за содержание мощности, руб./куб. м в час","Компонент на тепловую энергию, руб./Гкал",null,"дата начала","дата окончания"]
[null,null,null,null,null,null,null,null,null,null,1,"1","2",{"$f":"OFFSET(N17,0,-1)","v":"2"},{"$f":"OFFSET(O17,0,-1)","v":"2"},{"$f":"OFFSET(P17,0,-1)+1","v":3},4,5,6,7,8,9,10,{"$f":"OFFSET(X17,0,-1)","v":10},11,12,null,{"$f":"OFFSET(AB17,0,-2)+1","v":13},{"$f":"OFFSET(AC17,0,-1)","v":13},{"$f":"OFFSET(AD17,0,-1)+1","v":14},15,16,17,18,19,20,21,{"$f":"OFFSET(AL17,0,-1)","v":21},22,23,null,{"$f":"OFFSET(AP17,0,-2)+1","v":24},{"$f":"OFFSET(AQ17,0,-1)","v":24},{"$f":"OFFSET(AR17,0,-1)+1","v":25},26,27,28,29,30,31,32,{"$f":"OFFSET(AZ17,0,-1)","v":32},33,34,null,{"$f":"OFFSET(BD17,0,-2)+1","v":35},{"$f":"OFFSET(BE17,0,-1)","v":35},{"$f":"OFFSET(BF17,0,-1)+1","v":36},37,38,39,40,41,42,43,{"$f":"OFFSET(BN17,0,-1)","v":43},44,45,null,{"$f":"OFFSET(BR17,0,-2)+1","v":46},{"$f":"OFFSET(BS17,0,-1)","v":46},{"$f":"OFFSET(BT17,0,-1)+1","v":47},48,49,50,51,52,53,54,{"$f":"OFFSET(CB17,0,-1)","v":54},55,56,null,{"$f":"OFFSET(CF17,0,-2)+1","v":57},{"$f":"OFFSET(CG17,0,-1)","v":57},{"$f":"OFFSET(CH17,0,-1)+1","v":58},59,60,61,62,63,64,65,{"$f":"OFFSET(CP17,0,-1)","v":65},66,67,null,{"$f":"OFFSET(CT17,0,-2)+1","v":68},{"$f":"OFFSET(CU17,0,-1)","v":68},{"$f":"OFFSET(CV17,0,-1)+1","v":69},70,71,72,73,74,75,76,{"$f":"OFFSET(DD17,0,-1)","v":76},77,78,null,{"$f":"OFFSET(DH17,0,-2)+1","v":79},{"$f":"OFFSET(DI17,0,-1)","v":79},{"$f":"OFFSET(DJ17,0,-1)+1","v":80},81,82,83,84,85,86,87,{"$f":"OFFSET(DR17,0,-1)","v":87},88,89,null,{"$f":"OFFSET(DV17,0,-2)+1","v":90},{"$f":"OFFSET(DW17,0,-1)","v":90},{"$f":"OFFSET(DX17,0,-1)+1","v":91}]
[1,null,null,null,null,null,null,null,null,null,null,{"$f":"mergeValue(A18)","v":1},"Наименование тарифа",null,{"$f":"IF('Перечень тарифов'!J21=\"\",\"\",\"\" & 'Перечень тарифов'!J21 & \"\")","v":"Тариф на горячую воду"},null,null,null,null,null,null,null,null,null,null,null,null,null,null,null,null,null,null,null,null,null,null,null,null,null,null,null,null,null,null,null,null,null,null,null,null,null,null,null,null,null,null,null,null,null,null,null,null,null,null,null,null,null,null,null,null,null,null,null,null,null,null,null,null,null,null,null,null,null,null,null,null,null,null,null,null,null,null,null,null,null,null,null,null,null,null,null,null,null,null,null,null,null,null,null,null,null,null,null,null,null,null,null,null,null,null,null,null,null,null,null,null,"Указывается наименование тарифа в случае утверждения нескольких тарифов.\nВ случае наличия нескольких тарифов информация по ним указывается в отдельных строках."]
[null,1,null,null,null,null,null,null,null,null,null,{"$f":"mergeValue(A19) &\".\"& mergeValue(B19)","v":"1.1"}]
[null,null,1,null,null,null,null,null,null,null,null,{"$f":"mergeValue(A20) &\".\"& mergeValue(B20)&\".\"& mergeValue(C20)","v":"1.1.1"}]
[null,null,null,1,null,null,null,null,null,null,null,{"$f":"mergeValue(A21) &\".\"& mergeValue(B21)&\".\"& mergeValue(C21)&\".\"& mergeValue(D21)","v":"1.1.1.1"},"Наименование признака дифференциации",null,null,null,null,null,null,null,null,null,null,null,null,null,null,null,null,null,null,null,null,null,null,null,null,null,null,null,null,null,null,null,null,null,null,null,null,null,null,null,null,null,null,null,null,null,null,null,null,null,null,null,null,null,null,null,null,null,null,null,null,null,null,null,null,null,null,null,null,null,null,null,null,null,null,null,null,null,null,null,null,null,null,null,null,null,null,null,null,null,null,null,null,null,null,null,null,null,null,null,null,null,null,null,null,null,null,null,null,null,null,null,null,null,null,"Указывается наименование дополнительного признака дифференциации (при наличии).\nДифференциация тарифа осуществляется в соответствии с законодательством в сфере водоснабжения и водоотведения.\nВ случае дифференциации тарифов по дополнительным признакам информация по ним указывается в отдельных строках."]
[null,null,null,null,"1",null,null,null,null,null,null,{"$f":"mergeValue(A22) &\".\"& mergeValue(B22)&\".\"& mergeValue(C22)&\".\"& mergeValue(D22)&\".\"& mergeValue(E22)","v":"1.1.1.1.1"},"Группа потребителей",null,"население и приравненные категории",null,null,null,null,null,null,null,null,null,null,null,null,null,null,null,null,null,null,null,null,null,null,null,null,null,null,null,null,null,null,null,null,null,null,null,null,null,null,null,null,null,null,null,null,null,null,null,null,null,null,null,null,null,null,null,null,null,null,null,null,null,null,null,null,null,null,null,null,null,null,null,null,null,null,null,null,null,null,null,null,null,null,null,null,null,null,null,null,null,null,null,null,null,null,null,null,null,null,null,null,null,null,null,null,null,null,null,null,null,null,null,null,"Указывается группа потребителей при наличии дифференциации тарифа по группам потребителей.\nЗначение выбирается из перечня: Организации-перепродавцы; Бюджетные организации; Население; Прочие; Без дифференциации.\nВ случае дифференциации тарифов группам потребителей информация по ним указывается в отдельных строках.",null,{"$f":"strCheckUnique(EA22:EA26)","v":""}]
[null,null,null,null,null,1,null,null,null,null,null,{"$f":"mergeValue(A23) &\".\"& mergeValue(B23)&\".\"& mergeValue(C23)&\".\"& mergeValue(D23)&\".\"& mergeValue(E23)&\".\"& mergeValue(F23)","v":"1.1.1.1.1.1"},"тариф на горячую воду с НДС",null,null,0,58.42,3324.17,null,null,null,null,null,null,"01.12.2022","да","31.12.2022","да",null,0,58.42,3324.17,null,null,null,null,null,null,"01.01.2023","да","31.12.2023","да",null,0,0,3324.17,null,null,null,null,null,null,"01.01.2024","да","30.06.2024","да",null,0,0,3533.59,null,null,null,null,null,null,"01.07.2024","да","31.12.2024","да",null,0,0,3533.59,null,null,null,null,null,null,"01.01.2025","да","30.06.2025","да",null,0,0,3720.87,null,null,null,null,null,null,"01.07.2025","да","31.12.2025","да",null,0,0,3720.87,null,null,null,null,null,null,"01.01.2026","да","30.06.2026","да",null,0,0,3869.7,null,null,null,null,null,null,"01.07.2026","да","31.12.2026","нет",null,"В колонке «Параметр дифференциации тарифов» указывается значение дополнительного признака дифференциации.\nПри утверждении двухставочного тарифа колонка «Одноставочный тариф» не заполняется.\nПри утверждении одноставочного тарифа колонки в блоке «Двухставочный тариф» не заполняются.\nВ случае утверждения однокомпонентного двухставочного тарифа данные указываются только в блоке «Двухставочный тариф (однокомпонентный)». \nВ случае утверждения двухкомпонентного двухставочного тарифа данные указываются только в блоке «Двухставочный тариф (двухкомпонентный)».\nДаты начала и окончания действия тарифов указываются в виде «ДД.ММ.ГГГГ».\nВ случае отсутствия даты окончания действия тарифа в колонке «Дата окончания» указывается «Нет».\nВ случае наличия нескольких значений признака дифференциации тарифов информация по ним указывается в отдельных строках.\nВ случае дифференциации тарифов по периодам действия тарифа информация по ним указывается в отдельных колонках.\nВ случае дифференциации компонента двухставочного тарифа на холодную воду по поставщикам строка \"Значение признака дифференциации\" не заполняется.\nВ случае отстутствия дифференциации компонента двухставочного тарифа на холодную воду по поставщикам строка \"Наименование поставщика\" не заполняется.",{"$f":"strCheckDate(O24:DW24)","v":""},null,{"$f":"IF(M23=\"\",\"\",M23 )","v":"тариф на горячую воду с НДС"}]
[null,null,null,null,null,null,null,null,null,null,null,null,null,null,null,null,null,{"$f":"Y23 & \"-\" & AA23","v":"01.12.2022-31.12.2022"},null,null,null,null,null,null,null,null,null,null,null,null,null,{"$f":"AM23 & \"-\" & AO23","v":"01.01.2023-31.12.2023"},null,null,null,null,null,null,null,null,null,null,null,null,null,{"$f":"BA23 & \"-\" & BC23","v":"01.01.2024-30.06.2024"},null,null,null,null,null,null,null,null,null,null,null,null,null,{"$f":"BO23 & \"-\" & BQ23","v":"01.07.2024-31.12.2024"},null,null,null,null,null,null,null,null,null,null,null,null,null,{"$f":"CC23 & \"-\" & CE23","v":"01.01.2025-30.06.2025"},null,null,null,null,null,null,null,null,null,null,null,null,null,{"$f":"CQ23 & \"-\" & CS23","v":"01.07.2025-31.12.2025"},null,null,null,null,null,null,null,null,null,null,null,null,null,{"$f":"DE23 & \"-\" & DG23","v":"01.01.2026-30.06.2026"},null,null,null,null,null,null,null,null,null,null,null,null,null,{"$f":"DS23 & \"-\" & DU23","v":"01.07.2026-31.12.2026"}]
[]
[null,null,null,null,null,null,null,null,null,null,null,null,"Добавить значение признака дифференциации"]
[null,null,null,null,"2",null,null,null,"О",null,null,{"$f":"mergeValue(A27) &\".\"& mergeValue(B27)&\".\"& mergeValue(C27)&\".\"& mergeValue(D27)&\".\"& mergeValue(E27)","v":"1.1.1.1.2"},"Группа потребителей",null,"бюджетные организации",null,null,null,null,null,null,null,null,null,null,null,null,null,null,null,null,null,null,null,null,null,null,null,null,null,null,null,null,null,null,null,null,null,null,null,null,null,null,null,null,null,null,null,null,null,null,null,null,null,null,null,null,null,null,null,null,null,null,null,null,null,null,null,null,null,null,null,null,null,null,null,null,null,null,null,null,null,null,null,null,null,null,null,null,null,null,null,null,null,null,null,null,null,null,null,null,null,null,null,null,null,null,null,null,null,null,null,null,null,null,null,null,"Указывается группа потребителей при наличии дифференциации тарифа по группам потребителей.\nЗначение выбирается из перечня: Организации-перепродавцы; Бюджетные организации; Население; Прочие; Без дифференциации.\nВ случае дифференциации тарифов группам потребителей информация по ним указывается в отдельных строках.",null,{"$f":"strCheckUnique(EA27:EA31)","v":""}]
[null,null,null,null,null,1,null,null,null,null,null,{"$f":"mergeValue(A28) &\".\"& mergeValue(B28)&\".\"& mergeValue(C28)&\".\"& mergeValue(D28)&\".\"& mergeValue(E28)&\".\"& mergeValue(F28)","v":"1.1.1.1.2.1"},"тариф на горячую воду без НДС",null,null,0,48.68,3057.56,null,null,null,null,null,null,"01.12.2022","да","31.12.2022","да",null,0,48.68,3057.56,null,null,null,null,null,null,"01.01.2023","да","31.12.2023","да",null,0,0,3057.56,null,null,null,null,null,null,"01.01.2024","да","30.06.2024","да",null,0,0,3733.81,null,null,null,null,null,null,"01.07.2024","да","31.12.2024","да",null,0,0,3524.65,null,null,null,null,null,null,"01.01.2025","да","30.06.2025","да",null,0,0,3524.65,null,null,null,null,null,null,"01.07.2025","да","31.12.2025","да",null,0,0,3524.65,null,null,null,null,null,null,"01.01.2026","да","30.06.2026","да",null,0,0,3898.41,null,null,null,null,null,null,"01.07.2026","да","31.12.2026","нет",null,"В колонке «Параметр дифференциации тарифов» указывается значение дополнительного признака дифференциации.\nПри утверждении двухставочного тарифа колонка «Одноставочный тариф» не заполняется.\nПри утверждении одноставочного тарифа колонки в блоке «Двухставочный тариф» не заполняются.\nВ случае утверждения однокомпонентного двухставочного тарифа данные указываются только в блоке «Двухставочный тариф (однокомпонентный)». \nВ случае утверждения двухкомпонентного двухставочного тарифа данные указываются только в блоке «Двухставочный тариф (двухкомпонентный)».\nДаты начала и окончания действия тарифов указываются в виде «ДД.ММ.ГГГГ».\nВ случае отсутствия даты окончания действия тарифа в колонке «Дата окончания» указывается «Нет».\nВ случае наличия нескольких значений признака дифференциации тарифов информация по ним указывается в отдельных строках.\nВ случае дифференциации тарифов по периодам действия тарифа информация по ним указывается в отдельных колонках.\nВ случае дифференциации компонента двухставочного тарифа на холодную воду по поставщикам строка \"Значение признака дифференциации\" не заполняется.\nВ случае отстутствия дифференциации компонента двухставочного тарифа на холодную воду по поставщикам строка \"Наименование поставщика\" не заполняется.",{"$f":"strCheckDate(O29:DW29)","v":""},null,{"$f":"IF(M28=\"\",\"\",M28 )","v":"тариф на горячую воду без НДС"}]
[null,null,null,null,null,null,null,null,null,null,null,null,null,null,null,null,null,{"$f":"Y28 & \"-\" & AA28","v":"01.12.2022-31.12.2022"},null,null,null,null,null,null,null,null,null,null,null,null,null,{"$f":"AM28 & \"-\" & AO28","v":"01.01.2023-31.12.2023"},null,null,null,null,null,null,null,null,null,null,null,null,null,{"$f":"BA28 & \"-\" & BC28","v":"01.01.2024-30.06.2024"},null,null,null,null,null,null,null,null,null,null,null,null,null,{"$f":"BO28 & \"-\" & BQ28","v":"01.07.2024-31.12.2024"},null,null,null,null,null,null,null,null,null,null,null,null,null,{"$f":"CC28 & \"-\" & CE28","v":"01.01.2025-30.06.2025"},null,null,null,null,null,null,null,null,null,null,null,null,null,{"$f":"CQ28 & \"-\" & CS28","v":"01.07.2025-31.12.2025"},null,null,null,null,null,null,null,null,null,null,null,null,null,{"$f":"DE28 & \"-\" & DG28","v":"01.01.2026-30.06.2026"},null,null,null,null,null,null,null,null,null,null,null,null,null,{"$f":"DS28 & \"-\" & DU28","v":"01.07.2026-31.12.2026"}]
[]
[null,null,null,null,null,"",null,null,null,null,null,null,"Добавить значение признака дифференциации"]
[null,null,null,null,"3",null,null,null,"О",null,null,{"$f":"mergeValue(A32) &\".\"& mergeValue(B32)&\".\"& mergeValue(C32)&\".\"& mergeValue(D32)&\".\"& mergeValue(E32)","v":"1.1.1.1.3"},"Группа потребителей",null,"прочие",null,null,null,null,null,null,null,null,null,null,null,null,null,null,null,null,null,null,null,null,null,null,null,null,null,null,null,null,null,null,null,null,null,null,null,null,null,null,null,null,null,null,null,null,null,null,null,null,null,null,null,null,null,null,null,null,null,null,null,null,null,null,null,null,null,null,null,null,null,null,null,null,null,null,null,null,null,null,null,null,null,null,null,null,null,null,null,null,null,null,null,null,null,null,null,null,null,null,null,null,null,null,null,null,null,null,null,null,null,null,null,null,"Указывается группа потребителей при наличии дифференциации тарифа по группам потребителей.\nЗначение выбирается из перечня: Организации-перепродавцы; Бюджетные организации; Население; Прочие; Без дифференциации.\nВ случае дифференциации тарифов группам потребителей информация по ним указывается в отдельных строках.",null,{"$f":"strCheckUnique(EA32:EA36)","v":""}]
[null,null,null,null,null,1,null,null,null,null,null,{"$f":"mergeValue(A33) &\".\"& mergeValue(B33)&\".\"& mergeValue(C33)&\".\"& mergeValue(D33)&\".\"& mergeValue(E33)&\".\"& mergeValue(F33)","v":"1.1.1.1.3.1"},"тариф на горячую воду без НДС",null,null,0,48.68,3057.56,null,null,null,null,null,null,"01.12.2022","да","31.12.2022","да",null,0,48.68,3057.56,null,null,null,null,null,null,"01.01.2023","да","31.12.2023","да",null,0,0,3057.56,null,null,null,null,null,null,"01.01.2024","да","30.06.2024","да",null,0,0,3733.81,null,null,null,null,null,null,"01.07.2024","да","31.12.2024","да",null,0,0,3524.65,null,null,null,null,null,null,"01.01.2025","да","30.06.2025","да",null,0,0,3524.65,null,null,null,null,null,null,"01.07.2025","да","31.12.2025","да",null,0,0,3524.65,null,null,null,null,null,null,"01.01.2026","да","30.06.2026","да",null,0,0,3898.41,null,null,null,null,null,null,"01.07.2026","да","31.12.2026","нет",null,"В колонке «Параметр дифференциации тарифов» указывается значение дополнительного признака дифференциации.\nПри утверждении двухставочного тарифа колонка «Одноставочный тариф» не заполняется.\nПри утверждении одноставочного тарифа колонки в блоке «Двухставочный тариф» не заполняются.\nВ случае утверждения однокомпонентного двухставочного тарифа данные указываются только в блоке «Двухставочный тариф (однокомпонентный)». \nВ случае утверждения двухкомпонентного двухставочного тарифа данные указываются только в блоке «Двухставочный тариф (двухкомпонентный)».\nДаты начала и окончания действия тарифов указываются в виде «ДД.ММ.ГГГГ».\nВ случае отсутствия даты окончания действия тарифа в колонке «Дата окончания» указывается «Нет».\nВ случае наличия нескольких значений признака дифференциации тарифов информация по ним указывается в отдельных строках.\nВ случае дифференциации тарифов по периодам действия тарифа информация по ним указывается в отдельных колонках.\nВ случае дифференциации компонента двухставочного тарифа на холодную воду по поставщикам строка \"Значение признака дифференциации\" не заполняется.\nВ случае отстутствия дифференциации компонента двухставочного тарифа на холодную воду по поставщикам строка \"Наименование поставщика\" не заполняется.",{"$f":"strCheckDate(O34:DW34)","v":""},null,{"$f":"IF(M33=\"\",\"\",M33 )","v":"тариф на горячую воду без НДС"}]
[null,null,null,null,null,null,null,null,null,null,null,null,null,null,null,null,null,{"$f":"Y33 & \"-\" & AA33","v":"01.12.2022-31.12.2022"},null,null,null,null,null,null,null,null,null,null,null,null,null,{"$f":"AM33 & \"-\" & AO33","v":"01.01.2023-31.12.2023"},null,null,null,null,null,null,null,null,null,null,null,null,null,{"$f":"BA33 & \"-\" & BC33","v":"01.01.2024-30.06.2024"},null,null,null,null,null,null,null,null,null,null,null,null,null,{"$f":"BO33 & \"-\" & BQ33","v":"01.07.2024-31.12.2024"},null,null,null,null,null,null,null,null,null,null,null,null,null,{"$f":"CC33 & \"-\" & CE33","v":"01.01.2025-30.06.2025"},null,null,null,null,null,null,null,null,null,null,null,null,null,{"$f":"CQ33 & \"-\" & CS33","v":"01.07.2025-31.12.2025"},null,null,null,null,null,null,null,null,null,null,null,null,null,{"$f":"DE33 & \"-\" & DG33","v":"01.01.2026-30.06.2026"},null,null,null,null,null,null,null,null,null,null,null,null,null,{"$f":"DS33 & \"-\" & DU33","v":"01.07.2026-31.12.2026"}]
[]
[null,null,null,null,null,"",null,null,null,null,null,null,"Добавить значение признака дифференциации"]
[null,null,null,null,null,null,null,null,null,null,null,null,"Добавить группу потребителей"]
[null,null,null,null,null,null,null,null,null,null,null,null,"Добавить наименование признака дифференциации"]
[]
[null,null,null,null,null,null,null,null,null,null,null,1,"Для каждого вида тарифа в сфере горячего водоснабжения форма заполняется отдельно. При размещении информации по указанной форме дополнительно указываются: наименование органа регулирования тарифов, принявшего решение об утверждении(изменении) тарифа, дата и номер документа об утверждении(изменении) тарифа, источник его официального опубликования."]

{"sheet":"Форма 1.0.1 | Т-подкл(инд)","index":10,"n_rows":19,"n_cols":10,"rows_kept":19,"cut":false,"hidden":true,"merged":[[18,6,18,7],[1,5,1,7],[3,5,3,7],[3,8,4,8],[7,0,15,0],[11,2,13,2],[12,8,13,8],[10,1,14,1]]}
["9"]
[null,null,null,null,null,"Форма 1.0.1 Основные параметры раскрываемой информации 1"]
[]
[null,null,null,null,null,"Параметры формы",null,null,"Описание параметров формы"]
[null,null,null,null,null,"№ п/п","Наименование параметра","Информация"]
[null,null,null,null,null,"1",2,3,4,4]
[null,null,null,null,null,1,"Дата заполнения/внесения изменений",{"$f":"IF(dateCh=\"\",\"\",dateCh)","v":"21.11.2022"},"Указывается календарная дата первичного заполнения или внесения изменений в форму в виде «ДД.ММ.ГГГГ»."]
[1,null,null,null,null,{"$f":"\"2.\" &mergeValue(A8)","v":"2.1"},"Наименование централизованной системы коммунальной инфраструктуры",null,"Указывается наименование централизованной системы холодного водоснабжения/горячего водоснабжения/водоотведения/теплоснабжения, к которой относится размещаемая информация.\nВ случае наличия нескольких централизованных систем коммунальной инфраструктуры, информация по каждой из них указывается в отдельной строке."]
[null,null,null,null,null,{"$f":"\"3.\" &mergeValue(A9)","v":"3.1"},"Наименование регулируемого вида деятельности",null,"Указывается наименование вида регулируемой деятельности."]
[null,null,null,null,null,{"$f":"\"4.\"&mergeValue(A10)","v":"4.1"},"Территория оказания услуги по регулируемому виду деятельности","x"]
[null,1,null,null,null,{"$f":"\"4.\"&mergeValue(A11) &\".\"&mergeValue(B11)","v":"4.1.1"},"Субъект Российской Федерации",{"$f":"IF(region_name=\"\",\"\",region_name)","v":"Краснодарский край"},"Указывается наименование субъекта Российской Федерации"]
[null,null,1,null,null,{"$f":"\"4.\"&mergeValue(A12) &\".\"&mergeValue(B12)&\".\"&mergeValue(C12)","v":"4.1.1.1"},"муниципальный район",null,"Указывается наименование муниципального района, на территории которого организация оказывает услуги по регулируемому виду деятельности."]
[null,null,null,1,null,{"$f":"\"4.\"&mergeValue(A13) &\".\"&mergeValue(B13)&\".\"&mergeValue(C13)&\".\"&mergeValue(D13)","v":"4.1.1.1.1"},"муниципальное образование",null,"Указывается наименование и код муниципального района, муниципального образования в соответствии с Общероссийским классификатором территорий муниципальных образований (далее - ОКТМО), входящего в муниципальный район, на территории которого организация оказывает услуги по регулируемому виду деятельности.\nВ случае оказания услуг по регулируемому виду деятельности на территории нескольких муниципальных районов (муниципальных образований) данные по каждому их них указываются в отдельной строке."]
[null,null,null,null,null,null,"Добавить МО"]
[null,null,null,null,null,null,"Добавить МР"]
[null,null,null,null,null,null,"Добавить территорию"]
[null,null,null,null,null,null,"Добавить ЦС"]
[]
[null,null,null,null,null,null,"  1 Информация размещается при раскрытии информации по каждой из форм."]

{"sheet":"Форма 1.3 | Т-подкл(инд)","index":11,"n_rows":32,"n_cols":41,"rows_kept":32,"cut":false,"hidden":true,"merged":[[12,29,12,36],[14,11,16,11],[14,12,16,12],[14,13,16,16],[14,17,16,20],[14,21,16,24],[14,25,16,28],[14,36,16,36],[16,34,16,35],[15,31,15,32],[15,33,15,35],[14,29,14,35],[15,29,15,30],[10,11,10,12],[10,18,10,23],[11,11,11,12],[11,18,11,23],[12,18,12,23],[20,2,26,2],[21,3,25,3],[18,0,28,0],[19,1,27,1],[21,14,24,14],[20,13,20,37],[19,13,19,37],[18,13,18,37],[21,8,25,8],[21,25,22,25],[21,9,25,9],[21,11,25,11],[21,12,25,12],[21,13,25,13],[21,10,25,10],[21,21,23,21],[21,38,26,38],[13,11,13,37],[17,13,17,16],[17,17,17,20],[17,21,17,24],[14,37,16,37],[13,38,16,38],[21,22,22,22],[21,23,22,23],[21,24,22,24],[21,15,24,15],[21,16,24,16],[21,17,24,17],[21,18,23,18],[21,19,23,19],[21,20,23,20],[4,11,4,20],[6,13,6,20],[7,13,7,20],[8,13,8,20],[9,13,9,20]]}
[]
[]
[]
[]
[null,null,null,null,null,null,null,null,null,null,null,"Форма 1.3 Информация о величинах тарифов на подключение к централизованной системе горячего водоснабжения1"]
[]
[null,null,null,null,null,null,null,null,null,null,null,null,{"$f":"\"Наименование органа регулирования, принявшего решение об \"&IF(NameOrPr_ch=\"\",\"утверждении\",\"изменении\") & \" тарифов\"","v":"Наименование органа регулирования, принявшего решение об утверждении тарифов"},{"$f":"IF(NameOrPr_ch=\"\",IF(NameOrPr=\"\",\"\",NameOrPr),NameOrPr_ch)","v":"департамент государственного регулирования тарифов Краснодарского края"}]
[null,null,null,null,null,null,null,null,null,null,null,null,{"$f":"IF(datePr_ch=\"\",\"Дата документа об утверждении тарифов\",\"Дата принятия решения об изменении тарифов\")","v":"Дата документа об утверждении тарифов"},{"$f":"IF(datePr_ch=\"\",IF(datePr=\"\",\"\",datePr),datePr_ch)","v":"16.11.2022"}]
[null,null,null,null,null,null,null,null,null,null,null,null,{"$f":"IF(numberPr_ch=\"\",\"Номер документа об утверждении тарифов\",\"Номер принятия решения об изменении тарифов\")","v":"Номер документа об утверждении тарифов"},{"$f":"IF(numberPr_ch=\"\",IF(numberPr=\"\",\"\",numberPr),numberPr_ch)","v":"№ 480/2022-т"}]
[null,null,null,null,null,null,null,null,null,null,null,null,"Источник официального опубликования решения",{"$f":"IF(IstPub_ch=\"\",IF(IstPub=\"\",\"\",IstPub),IstPub_ch)","v":"сайт администрации Краснодарского края"}]
[null,null,null,null,null,null,null,null,null,null,null,null,null,null,null,null,null,null,null,null,null,null,null,null,null,null,null,null,null,"NDS","woNDS","NDS","woNDS"]
[null,null,null,null,null,null,null,null,null,null,null,null,null,null,null,null,null,null,null,null,null,null,null,null,null,null,null,null,null,null,null,null,null,null,null,null,"dp"]
[]
[null,null,null,null,null,null,null,null,null,null,null,"Параметры формы",null,null,null,null,null,null,null,null,null,null,null,null,null,null,null,null,null,null,null,null,null,null,null,null,null,null,"Описание параметров формы"]
[null,null,null,null,null,null,null,null,null,null,null,"№ п/п","Параметр дифференциации тарифа/Заявитель","Подключаемая нагрузка водопроводной сети, куб. м/сут",null,null,null,"Диапазон диаметров водопроводной сети, мм",null,null,null,"Протяженность водопроводной сети, км",null,null,null,"Условия прокладки сетей",null,null,null,"Период действия тарифа",null,null,null,null,null,null,"Наличие других периодов действия тарифа","Добавить период"]
[null,null,null,null,null,null,null,null,null,null,null,null,null,null,null,null,null,null,null,null,null,null,null,null,null,null,null,null,null,"Ставка тарифа за подключаемую нагрузку водопроводной сети, тыс. руб./куб. м в сутки",null,"Ставка тарифа за протяженность водопроводной сети диаметром d, тыс. руб./км",null,"Период действия"]
[null,null,null,null,null,null,null,null,null,null,null,null,null,null,null,null,null,null,null,null,null,null,null,null,null,null,null,null,null,"С НДС","Без НДС","С НДС","Без НДС","Дата начала","Дата окончания"]
[null,null,null,null,null,null,null,null,null,null,1,"1","2",{"$f":"OFFSET(N18,0,-1)+1","v":3},null,null,null,{"$f":"OFFSET(R18,0,-4)+1","v":4},null,null,null,{"$f":"OFFSET(V18,0,-4)+1","v":5},null,null,null,null,null,{"$f":"OFFSET(V18,0,0)+1","v":6},{"$f":"AB18","v":6},{"$f":"OFFSET(AD18,0,-1)+1","v":7},{"$f":"OFFSET(AE18,0,-1)+1","v":8},9,10,11,12,13,{"$f":"OFFSET(AK18,0,-1)+1","v":14},null,15]
[1,null,null,null,null,null,null,null,null,null,null,{"$f":"mergeValue(A19)","v":1},"Наименование тарифа",null,null,null,null,null,null,null,null,null,null,null,null,null,null,null,null,null,null,null,null,null,null,null,null,null,"Указывается наименование тарифа в случае утверждения нескольких тарифов.\nВ случае наличия нескольких тарифов информация по ним указывается в отдельных строках."]
[null,1,null,null,null,null,null,null,null,null,null,{"$f":"mergeValue(A20) &\".\"& mergeValue(B20)","v":"1.1"},"Территория действия тарифа",null,null,null,null,null,null,null,null,null,null,null,null,null,null,null,null,null,null,null,null,null,null,null,null,null,"Указывается наименование территории действия тарифа при наличии дифференциации тарифа по территориальному признаку.\nВ случае дифференциации тарифов по территориальному признаку информация по ним указывается в отдельных строках."]
[null,null,1,null,null,null,null,null,null,null,null,{"$f":"mergeValue(A21) &\".\"& mergeValue(B21)&\".\"& mergeValue(C21)","v":"1.1.1"},"Наименование централизованной системы горячего водоснабжения",null,null,null,null,null,null,null,null,null,null,null,null,null,null,null,null,null,null,null,null,null,null,null,null,null,"Указывается наименование централизованной системы горячего водоснабжения при наличии дифференциации тарифа по централизованным системам горячего водоснабжения.\nВ случае дифференциации тарифов по централизованным системам  горячего водоснабжения информация по ним указывается в отдельных строках."]
[null,null,null,1,null,null,null,null,null,null,null,{"$f":"mergeValue(A22) &\".\"& mergeValue(B22)&\".\"& mergeValue(C22)&\".\"& mergeValue(D22)","v":"1.1.1.1"},null,"да",null,"1",null,"нет",null,1,null,"нет",null,1,null,"нет",null,1,null,null,null,null,null,null,"да",null,"нет",null,"В колонке «Параметр дифференциации тарифа/Заявитель» указывается наименование категории потребителей, к которой относится тариф.\nДаты начала и окончания указываются в виде «ДД.ММ.ГГГГ».\nВ случае отсутствия даты окончания тарифа в колонке «Дата окончания» указывается «Нет».\nВ случае наличия дифференциации по подключаемой нагрузке, диапазону диаметров, протяженности, условиям прокладки водопроводной сети информация по ним указывается в отдельных строках.\nВ случае дифференциации тарифов по периодам действия тарифа информация по ним указывается в отдельных колонках.",{"$f":"strCheckDateOnDP(V22:AL22,List06_9_DP)","v":""},{"$f":"IF(AND(COUNTIF(AP18:AP26,AP22)>1,AP22<>\"\"),\"ErrUnique:HasDoubleConn\",\"\")","v":""}]
[null,null,null,null,null,null,null,null,null,null,null,null,null,null,null,null,null,null,null,null,null,null,null,null,null,null,null,null,null,null,null,null,{"$f":"AH22 & \"-\" & AJ22","v":"-"},null,null,null,"нет"]
[]
[]
[null,null,null,null,null,null,null,null,null,null,null,null,null,null,null,null,"Добавить подключаемую нагрузку"]
[null,null,null,null,null,null,null,null,null,null,null,null,"Добавить строку"]
[null,null,null,null,null,null,null,null,null,null,null,null,"Добавить наименование системы водоснабжения"]
[null,null,null,null,null,null,null,null,null,null,null,null,"Добавить территорию действия тарифа"]
[null,null,null,null,null,null,null,null,null,null,null,null,"Добавить наименование тарифа"]
[]
[null,null,null,null,null,null,null,null,null,null,null,1,"При размещении информации по данной форме дополнительно указываются: наименование органа регулирования, принявшего решение об утверждении(изменении) тарифа, дата и номер документа об утверждении(изменении) тарифа, источник официального опубликования решения."]

{"sheet":"Форма 1.0.1 | Т-подкл","index":12,"n_rows":19,"n_cols":10,"rows_kept":19,"cut":false,"hidden":true,"merged":[[18,6,18,7],[1,5,1,7],[3,5,3,7],[3,8,4,8],[7,0,15,0],[11,2,13,2],[12,8,13,8],[10,1,14,1]]}
["10"]
[null,null,null,null,null,"Форма 1.0.1 Основные параметры раскрываемой информации 1"]
[]
[null,null,null,null,null,"Параметры формы",null,null,"Описание параметров формы"]
[null,null,null,null,null,"№ п/п","Наименование параметра","Информация"]
[null,null,null,null,null,"1",2,3,4,4]
[null,null,null,null,null,1,"Дата заполнения/внесения изменений",{"$f":"IF(dateCh=\"\",\"\",dateCh)","v":"21.11.2022"},"Указывается календарная дата первичного заполнения или внесения изменений в форму в виде «ДД.ММ.ГГГГ»."]
[1,null,null,null,null,{"$f":"\"2.\" &mergeValue(A8)","v":"2.1"},"Наименование централизованной системы коммунальной инфраструктуры",null,"Указывается наименование централизованной системы холодного водоснабжения/горячего водоснабжения/водоотведения/теплоснабжения, к которой относится размещаемая информация.\nВ случае наличия нескольких централизованных систем коммунальной инфраструктуры, информация по каждой из них указывается в отдельной строке."]
[null,null,null,null,null,{"$f":"\"3.\" &mergeValue(A9)","v":"3.1"},"Наименование регулируемого вида деятельности",null,"Указывается наименование вида регулируемой деятельности."]
[null,null,null,null,null,{"$f":"\"4.\"&mergeValue(A10)","v":"4.1"},"Территория оказания услуги по регулируемому виду деятельности","x"]
[null,1,null,null,null,{"$f":"\"4.\"&mergeValue(A11) &\".\"&mergeValue(B11)","v":"4.1.1"},"Субъект Российской Федерации",{"$f":"IF(region_name=\"\",\"\",region_name)","v":"Краснодарский край"},"Указывается наименование субъекта Российской Федерации"]
[null,null,1,null,null,{"$f":"\"4.\"&mergeValue(A12) &\".\"&mergeValue(B12)&\".\"&mergeValue(C12)","v":"4.1.1.1"},"муниципальный район",null,"Указывается наименование муниципального района, на территории которого организация оказывает услуги по регулируемому виду деятельности."]
[null,null,null,1,null,{"$f":"\"4.\"&mergeValue(A13) &\".\"&mergeValue(B13)&\".\"&mergeValue(C13)&\".\"&mergeValue(D13)","v":"4.1.1.1.1"},"муниципальное образование",null,"Указывается наименование и код муниципального района, муниципального образования в соответствии с Общероссийским классификатором территорий муниципальных образований (далее - ОКТМО), входящего в муниципальный район, на территории которого организация оказывает услуги по регулируемому виду деятельности.\nВ случае оказания услуг по регулируемому виду деятельности на территории нескольких муниципальных районов (муниципальных образований) данные по каждому их них указываются в отдельной строке."]
[null,null,null,null,null,null,"Добавить МО"]
[null,null,null,null,null,null,"Добавить МР"]
[null,null,null,null,null,null,"Добавить территорию"]
[null,null,null,null,null,null,"Добавить ЦС"]
[]
[null,null,null,null,null,null,"  1 Информация размещается при раскрытии информации по каждой из форм."]

{"sheet":"Форма 1.3 | Т-подкл","index":13,"n_rows":32,"n_cols":40,"rows_kept":32,"cut":false,"hidden":true,"merged":[[4,11,4,20],[13,37,16,37],[21,37,26,37],[14,36,16,36],[14,16,16,19],[14,20,16,23],[21,18,23,18],[21,22,22,22],[21,16,24,16],[14,28,14,34],[14,35,16,35],[21,23,22,23],[15,28,15,29],[15,32,15,34],[18,13,18,36],[16,33,16,34],[17,20,17,23],[17,16,17,19],[17,13,17,15],[21,12,25,12],[21,15,24,15],[21,13,24,13],[21,19,23,19],[20,13,20,36],[21,21,22,21],[21,14,24,14],[21,11,25,11],[21,17,23,17],[21,20,23,20],[19,13,19,36],[21,24,22,24],[18,0,28,0],[19,1,27,1],[20,2,26,2],[21,3,25,3],[21,10,25,10],[21,8,25,8],[21,9,25,9],[12,28,12,35],[14,12,16,12],[14,11,16,11],[6,13,6,19],[7,13,7,19],[8,13,8,19],[9,13,9,19],[12,17,12,22],[11,17,11,22],[10,17,10,22],[10,11,10,12],[11,11,11,12],[14,24,16,27],[13,11,13,36],[14,13,16,15],[15,30,15,31]]}
[]
[]
[]
[]
[null,null,null,null,null,null,null,null,null,null,null,"Форма 1.3 Информация о величинах тарифов на подключение к централизованной системе горячего водоснабжения1"]
[]
[null,null,null,null,null,null,null,null,null,null,null,null,{"$f":"\"Наименование органа регулирования, принявшего решение об \"&IF(NameOrPr_ch=\"\",\"утверждении\",\"изменении\") & \" тарифов\"","v":"Наименование органа регулирования, принявшего решение об утверждении тарифов"},{"$f":"IF(NameOrPr_ch=\"\",IF(NameOrPr=\"\",\"\",NameOrPr),NameOrPr_ch)","v":"департамент государственного регулирования тарифов Краснодарского края"}]
[null,null,null,null,null,null,null,null,null,null,null,null,{"$f":"IF(datePr_ch=\"\",\"Дата документа об утверждении тарифов\",\"Дата принятия решения об изменении тарифов\")","v":"Дата документа об утверждении тарифов"},{"$f":"IF(datePr_ch=\"\",IF(datePr=\"\",\"\",datePr),datePr_ch)","v":"16.11.2022"}]
[null,null,null,null,null,null,null,null,null,null,null,null,{"$f":"IF(numberPr_ch=\"\",\"Номер документа об утверждении тарифов\",\"Номер принятия решения об изменении тарифов\")","v":"Номер документа об утверждении тарифов"},{"$f":"IF(numberPr_ch=\"\",IF(numberPr=\"\",\"\",numberPr),numberPr_ch)","v":"№ 480/2022-т"}]
[null,null,null,null,null,null,null,null,null,null,null,null,"Источник официального опубликования решения",{"$f":"IF(IstPub_ch=\"\",IF(IstPub=\"\",\"\",IstPub),IstPub_ch)","v":"сайт администрации Краснодарского края"}]
[null,null,null,null,null,null,null,null,null,null,null,null,null,null,null,null,null,null,null,null,null,null,null,null,null,null,null,null,"NDS","woNDS","NDS","woNDS"]
[null,null,null,null,null,null,null,null,null,null,null,null,null,null,null,null,null,null,null,null,null,null,null,null,null,null,null,null,null,null,null,null,null,null,null,"dp"]
[]
[null,null,null,null,null,null,null,null,null,null,null,"Параметры формы",null,null,null,null,null,null,null,null,null,null,null,null,null,null,null,null,null,null,null,null,null,null,null,null,null,"Описание параметров формы"]
[null,null,null,null,null,null,null,null,null,null,null,"№ п/п","Параметр дифференциации тарифа/Заявитель","Подключаемая нагрузка водопроводной сети, куб. м/сут",null,null,"Диапазон диаметров водопроводной сети, мм",null,null,null,"Протяженность водопроводной сети, км",null,null,null,"Условия прокладки сетей",null,null,null,"Период действия тарифа",null,null,null,null,null,null,"Наличие других периодов действия тарифа","Добавить период"]
[null,null,null,null,null,null,null,null,null,null,null,null,null,null,null,null,null,null,null,null,null,null,null,null,null,null,null,null,"Ставка тарифа за подключаемую нагрузку водопроводной сети, тыс. руб./куб. м в сут",null,"Ставка тарифа за протяженность водопроводной сети диаметром d, тыс. руб./км",null,"Период действия"]
[null,null,null,null,null,null,null,null,null,null,null,null,null,null,null,null,null,null,null,null,null,null,null,null,null,null,null,null,"С НДС","Без НДС","С НДС","Без НДС","Дата начала","Дата окончания"]
[null,null,null,null,null,null,null,null,null,null,1,"1","2",{"$f":"OFFSET(N18,0,-1)+1","v":3},null,null,{"$f":"OFFSET(Q18,0,-3)+1","v":4},null,null,null,{"$f":"OFFSET(U18,0,-4)+1","v":5},null,null,null,null,null,{"$f":"OFFSET(U18,0,0)+1","v":6},{"$f":"AA18","v":6},{"$f":"OFFSET(AC18,0,-1)+1","v":7},8,9,10,11,12,13,14,null,15]
[1,null,null,null,null,null,null,null,null,null,null,{"$f":"mergeValue(A19)","v":1},"Наименование тарифа",null,null,null,null,null,null,null,null,null,null,null,null,null,null,null,null,null,null,null,null,null,null,null,null,"Указывается наименование тарифа в случае утверждения нескольких тарифов.\nВ случае наличия нескольких тарифов информация по ним указывается в отдельных строках."]
[null,1,null,null,null,null,null,null,null,null,null,{"$f":"mergeValue(A20) &\".\"& mergeValue(B20)","v":"1.1"},"Территория действия тарифа",null,null,null,null,null,null,null,null,null,null,null,null,null,null,null,null,null,null,null,null,null,null,null,null,"Указывается наименование территории действия тарифа при наличии дифференциации тарифа по территориальному признаку.\nВ случае дифференциации тарифов по территориальному признаку информация по ним указывается в отдельных строках."]
[null,null,1,null,null,null,null,null,null,null,null,{"$f":"mergeValue(A21) &\".\"& mergeValue(B21)&\".\"& mergeValue(C21)","v":"1.1.1"},"Наименование централизованной системы горячего водоснабжения",null,null,null,null,null,null,null,null,null,null,null,null,null,null,null,null,null,null,null,null,null,null,null,null,"Указывается наименование централизованной системы горячего водоснабжения при наличии дифференциации тарифа по централизованным системам горячего водоснабжения.\nВ случае дифференциации тарифов по централизованным системам  горячего водоснабжения информация по ним указывается в отдельных строках."]
[null,null,null,1,null,null,null,null,null,null,null,{"$f":"mergeValue(A22) &\".\"& mergeValue(B22)&\".\"& mergeValue(C22)&\".\"& mergeValue(D22)","v":"1.1.1.1"},null,null,"1",null,"нет",null,1,null,"нет",null,"1",null,"нет",null,1,null,null,null,null,null,null,"да",null,"нет",null,"В колонке «Параметр дифференциации тарифа/Заявитель» указывается наименование категории потребителей, к которой относится тариф.\nДаты начала и окончания указываются в виде «ДД.ММ.ГГГГ».\nВ случае отсутствия даты окончания тарифа в колонке «Дата окончания» указывается «Нет».\nВ случае наличия дифференциации по подключаемой нагрузке, диапазону диаметров, протяженности, условиям прокладки водопроводной сети информация по ним указывается в отдельных строках.\nВ случае дифференциации тарифов по периодам действия тарифа информация по ним указывается в отдельных колонках.",{"$f":"strCheckDateOnDP(AC22:AK22,List06_10_DP)","v":""},{"$f":"IF(AND(COUNTIF(AO18:AO26,AO22)>1,AO22<>\"\"),\"ErrUnique:HasDoubleConn\",\"\")","v":""}]
[null,null,null,null,null,null,null,null,null,null,null,null,null,null,null,null,null,null,null,null,null,null,null,null,null,null,null,null,null,null,null,{"$f":"AG22 & \"-\" & AI22","v":"-"},null,null,null,"нет"]
[]
[]
[null,null,null,null,null,null,null,null,null,null,null,null,null,null,null,"Добавить подключаемую нагрузку"]
[null,null,null,null,null,null,null,null,null,null,null,null,"Добавить строку"]
[null,null,null,null,null,null,null,null,null,null,null,null,"Добавить наименование системы водоснабжения"]
[null,null,null,null,null,null,null,null,null,null,null,null,"Добавить территорию действия тарифа"]
[null,null,null,null,null,null,null,null,null,null,null,null,"Добавить наименование тарифа"]
[]
[null,null,null,null,null,null,null,null,null,null,null,1,"При размещении информации по данной форме дополнительно указываются: наименование органа регулирования, принявшего решение об утверждении(изменении) тарифа, дата и номер документа об утверждении(изменении) тарифа, источник официального опубликования решения."]

{"sheet":"Форма 1.0.1 | Форма 1.8","index":14,"n_rows":15,"n_cols":10,"rows_kept":15,"cut":false,"hidden":false,"merged":[[14,6,14,7],[1,5,1,7],[3,5,3,7],[3,8,4,8],[7,0,12,0],[10,1,12,1],[11,2,12,2]]}
["11"]
[null,null,null,null,null,"Форма 1.0.1 Основные параметры раскрываемой информации 1"]
[]
[null,null,null,null,null,"Параметры формы",null,null,"Описание параметров формы"]
[null,null,null,null,null,"№ п/п","Наименование параметра","Информация"]
[null,null,null,null,null,"1",2,3,4,4]
[null,null,null,null,null,1,"Дата заполнения/внесения изменений",{"$f":"IF(dateCh=\"\",\"\",dateCh)","v":"21.11.2022"},"Указывается календарная дата первичного заполнения или внесения изменений в форму в виде «ДД.ММ.ГГГГ»."]
[1,null,null,null,null,{"$f":"\"2.\" &mergeValue(A8)","v":"2.1"},"Наименование централизованной системы коммунальной инфраструктуры",{"$f":"IF('Перечень тарифов'!R21=\"\",\"наименование отсутствует\",\"\" & 'Перечень тарифов'!R21 & \"\")","v":"наименование отсутствует"},"Указывается наименование централизованной системы холодного водоснабжения/горячего водоснабжения/водоотведения/теплоснабжения, к которой относится размещаемая информация.\nВ случае наличия нескольких централизованных систем коммунальной инфраструктуры, информация по каждой из них указывается в отдельной строке."]
[null,null,null,null,null,{"$f":"\"3.\" &mergeValue(A9)","v":"3.1"},"Наименование регулируемого вида деятельности",{"$f":"IF('Перечень тарифов'!F21=\"\",\"наименование отсутствует\",\"\" & 'Перечень тарифов'!F21 & \"\")","v":"Горячее водоснабжение"},"Указывается наименование вида регулируемой деятельности."]
[null,null,null,null,null,{"$f":"\"4.\"&mergeValue(A10)","v":"4.1"},"Территория оказания услуги по регулируемому виду деятельности","x"]
[null,1,null,null,null,{"$f":"\"4.\"&mergeValue(A11) &\".\"&mergeValue(B11)","v":"4.1.1"},"Субъект Российской Федерации",{"$f":"IF(region_name=\"\",\"\",region_name)","v":"Краснодарский край"},"Указывается наименование субъекта Российской Федерации"]
[null,null,1,null,null,{"$f":"\"4.\"&mergeValue(A12) &\".\"&mergeValue(B12)&\".\"&mergeValue(C12)","v":"4.1.1.1"},"муниципальный район",{"$f":"IF(Территории!H13=\"\",\"\",\"\" & Территории!H13 & \"\")","v":"Тихорецкий муниципальный район"},"Указывается наименование муниципального района, на территории которого организация оказывает услуги по регулируемому виду деятельности."]
[null,null,null,1,null,{"$f":"\"4.\"&mergeValue(A13) &\".\"&mergeValue(B13)&\".\"&mergeValue(C13)&\".\"&mergeValue(D13)","v":"4.1.1.1.1"},"муниципальное образование",{"$f":"IF(Территории!R14=\"\",\"\",\"\" & Территории!R14 & \"\")","v":"Тихорецкое городское (03654101)"},"Указывается наименование и код муниципального района, муниципального образования в соответствии с Общероссийским классификатором территорий муниципальных образований (далее - ОКТМО), входящего в муниципальный район, на территории которого организация оказывает услуги по регулируемому виду деятельности.\nВ случае оказания услуг по регулируемому виду деятельности на территории нескольких муниципальных районов (муниципальных образований) данные по каждому их них указываются в отдельной строке."]
[]
[null,null,null,null,null,null,"  1 Информация размещается при раскрытии информации по каждой из форм."]

{"sheet":"Форма 1.8","index":15,"n_rows":17,"n_cols":7,"rows_kept":17,"cut":false,"hidden":false,"merged":[[6,3,6,5],[6,6,7,6],[11,6,13,6],[15,6,16,6],[4,3,4,5]]}
[]
[]
[]
[]
[null,null,null,"Форма 1.8 Информация об условиях, на которых осуществляется поставка регулируемых товаров и (или) оказание регулируемых услуг"]
[]
[null,null,null,"Параметры формы",null,null,"Описание параметров формы"]
[null,null,null,"№ п/п","Наименование параметра","Ссылка на документ"]
[null,null,null,"1","2","3","4"]
[null,null,null,1,"Сведения об условиях публичных договоров поставок регулируемых товаров, оказания регулируемых услуг, в том числе договоров о подключении к централизованной системе горячего водоснабжения","x"]
[null,null,null,"1.1","форма публичного договора поставки регулируемых товаров, оказания регулируемых услуг","x"]
[null,null,null,"1.1.1","население","https://portal.eias.ru/Portal/DownloadPage.aspx?type=12&guid=42fa35e2-11d0-4fec-98e1-00d2b3dfc881","Указывается форма договора, используемая регулируемой организацией, в виде ссылки на документ, предварительно загруженный в хранилище файлов ФГИС ЕИАС.\nВ случае наличия нескольких форм таких договоров информация по каждой из них указывается в отдельной строке."]
[null,null,"О","1.1.2","юрлица","https://portal.eias.ru/Portal/DownloadPage.aspx?type=12&guid=c3763ce6-8de5-4671-800e-14c441faf09e"]
[null,null,null,null,"Добавить сведения"]
[null,null,null,"1.2","договор о подключении к централизованной системе горячего водоснабжения","x"]
[null,null,null,"1.2.1","договор о подключении к централизованной системе горячего водоснабжения","https://regportal-tariff.ru/disclo/get_file?p_guid=a57d6bd5-700b-4fb5-8d1b-0ed4a3aa164c","Информация размещается в случае, если регулируемая организация осуществляет услуги по подключению (технологическому присоединению) к централизованной системе горячего водоснабжения.\nУказывается ссылка на документ, предварительно загруженный в хранилище файлов ФГИС ЕИАС.\nВ случае наличия нескольких договоров о подключении к централизованной системе горячего водоснабжения информация по каждому из них указывается в отдельной строке."]
[null,null,null,null,"Добавить сведения"]

{"sheet":"Форма 1.0.1 | Форма 1.9","index":16,"n_rows":15,"n_cols":10,"rows_kept":15,"cut":false,"hidden":false,"merged":[[14,6,14,7],[1,5,1,7],[3,5,3,7],[3,8,4,8],[7,0,12,0],[10,1,12,1],[11,2,12,2]]}
["11"]
[null,null,null,null,null,"Форма 1.0.1 Основные параметры раскрываемой информации 1"]
[]
[null,null,null,null,null,"Параметры формы",null,null,"Описание параметров формы"]
[null,null,null,null,null,"№ п/п","Наименование параметра","Информация"]
[null,null,null,null,null,"1",2,3,4,4]
[null,null,null,null,null,1,"Дата заполнения/внесения изменений",{"$f":"IF(dateCh=\"\",\"\",dateCh)","v":"21.11.2022"},"Указывается календарная дата первичного заполнения или внесения изменений в форму в виде «ДД.ММ.ГГГГ»."]
[1,null,null,null,null,{"$f":"\"2.\" &mergeValue(A8)","v":"2.1"},"Наименование централизованной системы коммунальной инфраструктуры",{"$f":"IF('Перечень тарифов'!R21=\"\",\"наименование отсутствует\",\"\" & 'Перечень тарифов'!R21 & \"\")","v":"наименование отсутствует"},"Указывается наименование централизованной системы холодного водоснабжения/горячего водоснабжения/водоотведения/теплоснабжения, к которой относится размещаемая информация.\nВ случае наличия нескольких централизованных систем коммунальной инфраструктуры, информация по каждой из них указывается в отдельной строке."]
[null,null,null,null,null,{"$f":"\"3.\" &mergeValue(A9)","v":"3.1"},"Наименование регулируемого вида деятельности",{"$f":"IF('Перечень тарифов'!F21=\"\",\"наименование отсутствует\",\"\" & 'Перечень тарифов'!F21 & \"\")","v":"Горячее водоснабжение"},"Указывается наименование вида регулируемой деятельности."]
[null,null,null,null,null,{"$f":"\"4.\"&mergeValue(A10)","v":"4.1"},"Территория оказания услуги по регулируемому виду деятельности","x"]
[null,1,null,null,null,{"$f":"\"4.\"&mergeValue(A11) &\".\"&mergeValue(B11)","v":"4.1.1"},"Субъект Российской Федерации",{"$f":"IF(region_name=\"\",\"\",region_name)","v":"Краснодарский край"},"Указывается наименование субъекта Российской Федерации"]
[null,null,1,null,null,{"$f":"\"4.\"&mergeValue(A12) &\".\"&mergeValue(B12)&\".\"&mergeValue(C12)","v":"4.1.1.1"},"муниципальный район",{"$f":"IF(Территории!H13=\"\",\"\",\"\" & Территории!H13 & \"\")","v":"Тихорецкий муниципальный район"},"Указывается наименование муниципального района, на территории которого организация оказывает услуги по регулируемому виду деятельности."]
[null,null,null,1,null,{"$f":"\"4.\"&mergeValue(A13) &\".\"&mergeValue(B13)&\".\"&mergeValue(C13)&\".\"&mergeValue(D13)","v":"4.1.1.1.1"},"муниципальное образование",{"$f":"IF(Территории!R14=\"\",\"\",\"\" & Территории!R14 & \"\")","v":"Тихорецкое городское (03654101)"},"Указывается наименование и код муниципального района, муниципального образования в соответствии с Общероссийским классификатором территорий муниципальных образований (далее - ОКТМО), входящего в муниципальный район, на территории которого организация оказывает услуги по регулируемому виду деятельности.\nВ случае оказания услуг по регулируемому виду деятельности на территории нескольких муниципальных районов (муниципальных образований) данные по каждому их них указываются в отдельной строке."]
[]
[null,null,null,null,null,null,"  1 Информация размещается при раскрытии информации по каждой из форм."]

{"sheet":"Форма 1.9","index":17,"n_rows":35,"n_cols":12,"rows_kept":35,"cut":false,"hidden":false,"merged":[[17,8,18,8],[19,4,19,7],[4,3,4,7],[6,3,6,7],[6,8,7,8],[9,4,9,7],[13,4,13,7],[14,8,15,8],[16,4,16,7],[34,4,34,8],[29,4,29,7],[20,4,20,7],[23,4,23,7],[26,4,26,7],[21,8,22,8],[24,8,25,8],[27,8,28,8],[30,8,32,8]]}
[]
[]
[]
[]
[null,null,null,"Форма 1.9 Информация о порядке выполнения технологических, технических и других мероприятий, связанных с подключением к централизованной системе горячего водоснабжения1"]
[]
[null,null,null,"Параметры формы",null,null,null,null,"Описание параметров формы"]
[null,null,null,"№ п/п","Наименование параметра",null,"Информация","Ссылка на документ"]
[null,null,null,"1","2",null,"3","4","5"]
[null,null,null,1,"Информация о размещении данных на сайте регулируемой организации"]
[null,null,null,"1.1","дата размещения информации",null,"24.11.2022","x","Дата размещения информации указывается в виде «ДД.ММ.ГГГГ»."]
[null,null,null,"1.2","адрес страницы сайта в сети «Интернет» и ссылка на документ",null,"отсутствует","https://portal.eias.ru/Portal/DownloadPage.aspx?type=12&guid=7e77be5f-c7b6-4fe7-b626-f037250ffb24","В колонке «Информация» указывается адрес страницы сайта в сети «Интернет», на которой размещена информация.\nВ колонке «Ссылка на документ» указывается ссылка на снимок экрана монитора (далее – скриншот) со страницей сайта в сети «Интернет», предварительно загруженный в хранилище файлов ФГИС ЕИАС, на которой размещена информация."]
[null,3,null,2,"Форма заявки о подключении к централизованной системе горячего водоснабжения",null,"x","https://portal.eias.ru/Portal/DownloadPage.aspx?type=12&guid=241185ce-29ae-4842-97ff-cd7a97febc61","Указывается ссылка на документ, предварительно загруженный в хранилище файлов ФГИС ЕИАС."]
[null,null,null,3,"Перечень документов и сведений, представляемых одновременно с заявкой о подключении к централизованной системе горячего водоснабжения, и указание на запрет требовать представления документов и сведений или осуществления действий, представление или осуществление которых не предусмотрено законодательством Российской Федерации о градостроительной деятельности и законодательством в сфере водоснабжения и водоотведения"]
[null,null,null,"3.1","Перечень документов и сведений, представляемых одновременно с заявкой о подключении к централизованной системе горячего водоснабжения, и указание на запрет требовать представления документов и сведений или осуществления действий, представление или осущест",null,"x","https://regportal-tariff.ru/disclo/get_file?p_guid=d7876618-a226-450d-a2fb-a80894e46711","Указывается ссылка на документ, предварительно загруженный в хранилище файлов ФГИС ЕИАС.\nВ случае наличия дополнительных сведений информация по ним указывается в отдельных строках."]
[null,null,null,null,"Добавить сведения"]
[null,3,null,4,"Реквизиты нормативных правовых актов (далее – НПА), регламентирующих порядок действий заявителя и регулируемой организации при подаче, приеме, обработке заявки о подключении к централизованной системе горячего водоснабжения (в том числе в форме электронного документа), принятии решения и информировании о принятом по результатам рассмотрения указанной заявки решении (возврат документов, прилагаемых к заявке о подключении к централизованной системе горячего водоснабжения, либо направление подписанного проекта договора о подключении к централизованной системе горячего водоснабжения), основания для отказа в принятии к рассмотрению документов, прилагаемых к заявлению о подключении к централизованной системе горячего водоснабжения, в подписании договора о подключении к централизованной системе горячего водоснабжения"]
[null,null,null,"4.1","наименование НПА",null,"Постановление Правительства РФ от 30.11.2021 года № 2130 \"Об утверждении  Правил подключения (технологического присоединения) объектов капитального строительства к централизованным системам горячего водоснабжения, холодного водоснабжения и (или) водоотведения, о внесении изменений в отдельные акты Правительства Российской Федерации и признании утратившими силу отдельных актов Правительства Российской Федерации и положений отдельных актов Правительства Российской Федерации\"","x","В колонке «Информация» указывается полное наименование и реквизиты НПА.\nВ случае наличия нескольких НПА каждое из них указывается в отдельной строке."]
[null,null,null,null,"Добавить сведения"]
[null,3,null,5,"Телефоны, адреса и график работы службы, ответственной за прием и обработку заявок о подключении к централизованной системе горячего водоснабжения"]
[null,null,null,"5.1","телефоны службы, ответственной за прием и обработку заявок о подключении к централизованной системе горячего водоснабжения"]
[null,null,null,"5.1.1","контактный телефон службы",null,"(86196)47715","x","Указывается номер контактного телефона службы, ответственной за прием и обработку заявок о подключении к централизованной системе горячего водоснабжения. \nВ случае наличия нескольких служб и (или) номеров телефонов, информация по каждому из них указывается в отдельной строке."]
[null,null,null,null,"Добавить сведения"]
[null,null,null,"5.2","адреса службы, ответственной за прием и обработку заявок о подключении к централизованной системе горячего водоснабжения"]
[null,null,null,"5.2.1","адрес службы",null,"Краснодарский край, Тихорецкий район, пос. Парковый, ул. Совхозная, 2 \"А\", офис 1","x","Указывается наименование субъекта Российской Федерации, муниципального района, города, иного населенного пункта, улицы, номер дома, при необходимости указывается корпус, строение, литера или дополнительная территория. Данные указываются согласно наименованиям адресных объектов в ФИАС.\nВ случае наличия нескольких служб и (или) адресов, информация по каждому из них указывается в отдельной строке."]
[null,null,null,null,"Добавить сведения"]
[null,null,null,"5.3","график работы службы, ответственной за прием и обработку заявок о подключении к централизованной системе горячего водоснабжения"]
[null,null,null,"5.3.1","график работы службы",null,"c 08:00 до 17:00","x","Указывается график работы службы, ответственной за прием и обработку заявок о подключении к централизованной системе горячего водоснабжения. \nВ случае наличия нескольких служб и (или) графиков работы, информация по каждому из них указывается в отдельной строке.",null,null,"c 08:00 до 17:00"]
[null,null,null,null,"Добавить сведения"]
[null,3,null,"6","Регламент подключения к централизованной системе горячего водоснабжения, утверждаемый регулируемой организацией, включающий сроки, состав и последовательность действий при осуществлении подключения к централизованной системе горячего водоснабжения, сведения о размере платы за услуги по подключению к централизованной системе горячего водоснабжения, информацию о месте нахождения и графике работы, справочных телефонах, адресе официального сайта регулируемой организации в сети «Интернет» и блок-схему, отражающую графическое изображение последовательности действий, осуществляемых при подключении к централизованной системе горячего водоснабжения"]
[null,null,null,"6.1","Регламент подключения к централизованной системе горячего водоснабжения, утверждаемый регулируемой организацией, включающий сроки, состав и последовательность действий при осуществлении подключения к централизованной системе горячего водоснабжения, сведен",null,"x","https://regportal-tariff.ru/disclo/get_file?p_guid=672e0209-7826-4217-a551-37105712e719","Указывается ссылка на документ, предварительно загруженный в хранилище файлов ФГИС ЕИАС.\nВ случае наличия дополнительных сведений информация по ним указывается в отдельных строках."]
[null,null,"О","6.2","блок-схема","x","x","https://regportal-tariff.ru/disclo/get_file?p_guid=c0b6ce61-e4c5-4885-b0b7-c16c79c2fbcd"]
[null,null,null,null,"Добавить сведения"]
[]
[null,null,null,1,"Информация раскрывается в случае, если регулируемая организация осуществляет услуги по подключению (технологическому присоединению) к централизованной системе горячего водоснабжения."]

{"sheet":"Форма 1.0.2","index":18,"n_rows":15,"n_cols":13,"rows_kept":15,"cut":false,"hidden":true,"merged":[[4,3,4,9],[14,4,14,9],[11,10,12,10],[7,3,7,9],[8,4,8,5],[7,10,9,10],[8,6,8,9],[8,3,9,3]]}
[]
[]
[]
[]
[null,null,null,"Форма 1.0.2 Информация о публикации в печатных изданиях 2"]
[]
[]
[null,null,null,"Параметры формы",null,null,null,null,null,null,"Описание параметров формы"]
[null,null,null,"№ п/п","Форма публикации",null,"Официальное печатное издание"]
[null,null,null,null,"Номер","Наименование","Наименование","Номер","Дата выпуска","Ссылка на документ"]
[null,null,null,"1","2","3","4","5","6","7","8"]
["3","",null,"1",null,null,null,null,null,null,"В колонке «Дата выпуска» дата выпуска печатного издания указывается в виде «ДД.ММ.ГГГГ».\nВ колонке «Ссылка на документ» указывается ссылка на отсканированную копию печатного издания, предварительно загруженную в хранилище федеральной государственной информационной системы «Единая информационно-аналитическая система «Федеральный орган регулирования - региональные органы регулирования - субъекты регулирования» (далее – ФГИС ЕИАС), с опубликованной информацией.\nВ случае публикации информации в нескольких печатных изданиях информация по каждому из них указывается в отдельной строке.",null,{"$f":"IF(ISERROR(INDEX(kind_of_nameforms,MATCH(E12,kind_of_forms,0),1)),\"\",INDEX(kind_of_nameforms,MATCH(E12,kind_of_forms,0),1))","v":""}]
[null,null,null,null,"Добавить строку"]
[]
[null,null,null,null,"2 Размещается информация по каждой из форм раскрытия, данные в которой относятся к муниципальному образованию, в котором отсутствует доступ в сеть «Интернет»."]

{"sheet":"Сведения об изменении","index":19,"n_rows":15,"n_cols":5,"rows_kept":15,"cut":false,"hidden":true,"merged":[[6,3,6,4],[14,3,14,4]]}
[]
[]
[]
[]
[]
[]
[null,null,null,"Сведения об изменениях в первоначально опубликованной информации*"]
[]
[null,null,null,"№ п/п","Сведения"]
[null,null,null,"1","2"]
[null,null,null,0]
[null,null,null,1]
[null,null,null,null,"Добавить"]
[]
[null,null,null,"* Лист заполняется в случае, если на Титульном листе в поле \"Тип отчета\" выбрано значение «Изменения в раскрытой ранее информации»."]

{"sheet":"Комментарии","index":20,"n_rows":13,"n_cols":5,"rows_kept":13,"cut":false,"hidden":false,"merged":[[6,3,6,4]]}
[]
[]
[]
[]
[]
[]
[null,null,null,"Комментарии"]
[]
[null,null,null,"№ п/п","Комментарий"]
[null,null,null,"1","2"]
[null,null,null,0]
[null,null,"О",1,"Тарифы для юрлиц указаны без НДС. Тарифы для населения указаны с НДС"]
[null,null,null,null,"Добавить"]

{"sheet":"Проверка","index":21,"n_rows":4,"n_cols":4,"rows_kept":4,"cut":false,"hidden":false,"merged":[[1,1,1,3]]}
[]
[null,"Результат проверки"]
[]
[null,"Ссылка","Причина","Статус"]

{"sheet":"modListTempFilter","index":22,"n_rows":0,"n_cols":0,"rows_kept":0,"cut":false,"hidden":true,"merged":[]}

{"sheet":"modCheckCyan","index":23,"n_rows":236,"n_cols":1,"rows_kept":236,"cut":false,"hidden":true,"merged":[]}
[{"$f":"IF('Форма 1.2 | Т-транс'!$O$22=\"\",1,0)","v":1}]
[{"$f":"IF('Форма 1.2 | Т-транс'!$R$23=\"\",1,0)","v":1}]
[{"$f":"IF('Форма 1.2 | Т-транс'!$T$23=\"\",1,0)","v":1}]
[{"$f":"IF('Форма 1.2 | Т-транс'!$S$23=\"\",1,0)","v":0}]
[{"$f":"IF('Форма 1.2 | Т-транс'!$U$23=\"\",1,0)","v":0}]
[{"$f":"IF('Форма 1.2 | Т-гор.вода'!$O$22=\"\",1,0)","v":0}]
[{"$f":"IF('Форма 1.2 | Т-гор.вода'!$Y$23=\"\",1,0)","v":0}]
[{"$f":"IF('Форма 1.2 | Т-гор.вода'!$Z$23=\"\",1,0)","v":0}]
[{"$f":"IF('Форма 1.2 | Т-гор.вода'!$AB$23=\"\",1,0)","v":0}]
[{"$f":"IF('Форма 1.3 | Т-подкл(инд)'!$M$22=\"\",1,0)","v":1}]
[{"$f":"IF('Форма 1.3 | Т-подкл(инд)'!$Q$22=\"\",1,0)","v":1}]
[{"$f":"IF('Форма 1.3 | Т-подкл(инд)'!$AD$22=\"\",1,0)","v":1}]
[{"$f":"IF('Форма 1.3 | Т-подкл(инд)'!$AE$22=\"\",1,0)","v":1}]
[{"$f":"IF('Форма 1.3 | Т-подкл(инд)'!$AF$22=\"\",1,0)","v":1}]
[{"$f":"IF('Форма 1.3 | Т-подкл(инд)'!$AG$22=\"\",1,0)","v":1}]
[{"$f":"IF('Форма 1.3 | Т-подкл(инд)'!$AH$22=\"\",1,0)","v":1}]
[{"$f":"IF('Форма 1.3 | Т-подкл(инд)'!$AJ$22=\"\",1,0)","v":1}]
[{"$f":"IF('Форма 1.3 | Т-подкл(инд)'!$N$22=\"\",1,0)","v":0}]
[{"$f":"IF('Форма 1.3 | Т-подкл(инд)'!$R$22=\"\",1,0)","v":0}]
[{"$f":"IF('Форма 1.3 | Т-подкл(инд)'!$V$22=\"\",1,0)","v":0}]
[{"$f":"IF('Форма 1.3 | Т-подкл(инд)'!$Z$22=\"\",1,0)","v":0}]
[{"$f":"IF('Форма 1.3 | Т-подкл(инд)'!$AI$22=\"\",1,0)","v":0}]
[{"$f":"IF('Форма 1.3 | Т-подкл(инд)'!$AK$22=\"\",1,0)","v":0}]
[{"$f":"IF('Форма 1.3 | Т-подкл'!$P$22=\"\",1,0)","v":1}]
[{"$f":"IF('Форма 1.3 | Т-подкл'!$AC$22=\"\",1,0)","v":1}]
[{"$f":"IF('Форма 1.3 | Т-подкл'!$AD$22=\"\",1,0)","v":1}]
[{"$f":"IF('Форма 1.3 | Т-подкл'!$AE$22=\"\",1,0)","v":1}]
[{"$f":"IF('Форма 1.3 | Т-подкл'!$AF$22=\"\",1,0)","v":1}]
[{"$f":"IF('Форма 1.3 | Т-подкл'!$AG$22=\"\",1,0)","v":1}]
[{"$f":"IF('Форма 1.3 | Т-подкл'!$AI$22=\"\",1,0)","v":1}]
[{"$f":"IF('Форма 1.3 | Т-подкл'!$Q$22=\"\",1,0)","v":0}]
[{"$f":"IF('Форма 1.3 | Т-подкл'!$U$22=\"\",1,0)","v":0}]
[{"$f":"IF('Форма 1.3 | Т-подкл'!$Y$22=\"\",1,0)","v":0}]
[{"$f":"IF('Форма 1.3 | Т-подкл'!$AH$22=\"\",1,0)","v":0}]
[{"$f":"IF('Форма 1.3 | Т-подкл'!$AJ$22=\"\",1,0)","v":0}]
[{"$f":"IF('Форма 1.8'!$E$12=\"\",1,0)","v":0}]
[{"$f":"IF('Форма 1.8'!$F$12=\"\",1,0)","v":0}]
[{"$f":"IF('Форма 1.9'!$G$11=\"\",1,0)","v":0}]
[{"$f":"IF('Форма 1.9'!$G$12=\"\",1,0)","v":0}]
[{"$f":"IF('Форма 1.9'!$H$12=\"\",1,0)","v":0}]
[{"$f":"IF('Форма 1.9'!$H$13=\"\",1,0)","v":0}]
[{"$f":"IF('Форма 1.9'!$E$15=\"\",1,0)","v":0}]
[{"$f":"IF('Форма 1.9'!$H$15=\"\",1,0)","v":0}]
[{"$f":"IF('Форма 1.9'!$G$18=\"\",1,0)","v":0}]
[{"$f":"IF('Форма 1.9'!$G$22=\"\",1,0)","v":0}]
[{"$f":"IF('Форма 1.9'!$G$25=\"\",1,0)","v":0}]
[{"$f":"IF('Форма 1.9'!$E$31=\"\",1,0)","v":0}]
[{"$f":"IF('Форма 1.9'!$H$31=\"\",1,0)","v":0}]
[{"$f":"IF('Форма 1.9'!$G$28=\"\",1,0)","v":0}]
[{"$f":"IF('Форма 1.0.2'!$E$12=\"\",1,0)","v":1}]
[{"$f":"IF('Форма 1.0.2'!$F$12=\"\",1,0)","v":1}]
[{"$f":"IF('Форма 1.0.2'!$G$12=\"\",1,0)","v":1}]
[{"$f":"IF('Форма 1.0.2'!$H$12=\"\",1,0)","v":1}]
[{"$f":"IF('Форма 1.0.2'!$I$12=\"\",1,0)","v":1}]
[{"$f":"IF('Форма 1.0.2'!$J$12=\"\",1,0)","v":1}]
[{"$f":"IF('Сведения об изменении'!$E$12=\"\",1,0)","v":1}]
[{"$f":"IF('Форма 1.8'!$F$16=\"\",1,0)","v":0}]
[{"$f":"IF('Форма 1.8'!$E$16=\"\",1,0)","v":0}]
[{"$f":"IF(Территории!$E$12=\"\",1,0)","v":0}]
[{"$f":"IF('Перечень тарифов'!$E$21=\"\",1,0)","v":0}]
[{"$f":"IF('Перечень тарифов'!$F$21=\"\",1,0)","v":0}]
[{"$f":"IF('Перечень тарифов'!$G$21=\"\",1,0)","v":0}]
[{"$f":"IF('Перечень тарифов'!$K$21=\"\",1,0)","v":0}]
[{"$f":"IF('Перечень тарифов'!$O$21=\"\",1,0)","v":0}]
[{"$f":"IF('Перечень тарифов'!$G$11=\"\",1,0)","v":0}]
[{"$f":"IF('Форма 1.2 | Т-гор.вода'!$O$27=\"\",1,0)","v":0}]
[{"$f":"IF('Форма 1.2 | Т-гор.вода'!$Y$28=\"\",1,0)","v":0}]
[{"$f":"IF('Форма 1.2 | Т-гор.вода'!$Z$28=\"\",1,0)","v":0}]
[{"$f":"IF('Форма 1.2 | Т-гор.вода'!$AB$28=\"\",1,0)","v":0}]
[{"$f":"IF('Форма 1.2 | Т-гор.вода'!$O$32=\"\",1,0)","v":0}]
[{"$f":"IF('Форма 1.2 | Т-гор.вода'!$Y$33=\"\",1,0)","v":0}]
[{"$f":"IF('Форма 1.2 | Т-гор.вода'!$Z$33=\"\",1,0)","v":0}]
[{"$f":"IF('Форма 1.2 | Т-гор.вода'!$AB$33=\"\",1,0)","v":0}]
[{"$f":"IF('Форма 1.2 | Т-гор.вода'!$AD$28=\"\",1,0)","v":0}]
[{"$f":"IF('Форма 1.2 | Т-гор.вода'!$AE$28=\"\",1,0)","v":0}]
[{"$f":"IF('Форма 1.2 | Т-гор.вода'!$AF$28=\"\",1,0)","v":0}]
[{"$f":"IF('Форма 1.2 | Т-гор.вода'!$AM$28=\"\",1,0)","v":0}]
[{"$f":"IF('Форма 1.2 | Т-гор.вода'!$AO$28=\"\",1,0)","v":0}]
[{"$f":"IF('Форма 1.2 | Т-гор.вода'!$AN$28=\"\",1,0)","v":0}]
[{"$f":"IF('Форма 1.2 | Т-гор.вода'!$AP$28=\"\",1,0)","v":0}]
[{"$f":"IF('Форма 1.2 | Т-гор.вода'!$AD$33=\"\",1,0)","v":0}]
[{"$f":"IF('Форма 1.2 | Т-гор.вода'!$AE$33=\"\",1,0)","v":0}]
[{"$f":"IF('Форма 1.2 | Т-гор.вода'!$AF$33=\"\",1,0)","v":0}]
[{"$f":"IF('Форма 1.2 | Т-гор.вода'!$AM$33=\"\",1,0)","v":0}]
[{"$f":"IF('Форма 1.2 | Т-гор.вода'!$AO$33=\"\",1,0)","v":0}]
[{"$f":"IF('Форма 1.2 | Т-гор.вода'!$AN$33=\"\",1,0)","v":0}]
[{"$f":"IF('Форма 1.2 | Т-гор.вода'!$AP$33=\"\",1,0)","v":0}]
[{"$f":"IF('Форма 1.2 | Т-гор.вода'!$AD$23=\"\",1,0)","v":0}]
[{"$f":"IF('Форма 1.2 | Т-гор.вода'!$AE$23=\"\",1,0)","v":0}]
[{"$f":"IF('Форма 1.2 | Т-гор.вода'!$AF$23=\"\",1,0)","v":0}]
[{"$f":"IF('Форма 1.2 | Т-гор.вода'!$AM$23=\"\",1,0)","v":0}]
[{"$f":"IF('Форма 1.2 | Т-гор.вода'!$AN$23=\"\",1,0)","v":0}]
[{"$f":"IF('Форма 1.2 | Т-гор.вода'!$AP$23=\"\",1,0)","v":0}]
[{"$f":"IF('Форма 1.2 | Т-гор.вода'!$AA$23=\"\",1,0)","v":0}]
[{"$f":"IF('Форма 1.2 | Т-гор.вода'!$AA$28=\"\",1,0)","v":0}]
[{"$f":"IF('Форма 1.2 | Т-гор.вода'!$AA$33=\"\",1,0)","v":0}]
[{"$f":"IF('Форма 1.2 | Т-гор.вода'!$AO$23=\"\",1,0)","v":0}]
[{"$f":"IF('Форма 1.2 | Т-гор.вода'!$Q$23=\"\",1,0)","v":0}]
[{"$f":"IF('Форма 1.2 | Т-гор.вода'!$R$23=\"\",1,0)","v":0}]
[{"$f":"IF('Форма 1.2 | Т-гор.вода'!$P$23=\"\",1,0)","v":0}]
[{"$f":"IF('Форма 1.2 | Т-гор.вода'!$Q$28=\"\",1,0)","v":0}]
[{"$f":"IF('Форма 1.2 | Т-гор.вода'!$R$28=\"\",1,0)","v":0}]
[{"$f":"IF('Форма 1.2 | Т-гор.вода'!$P$28=\"\",1,0)","v":0}]
[{"$f":"IF('Форма 1.2 | Т-гор.вода'!$Q$33=\"\",1,0)","v":0}]
[{"$f":"IF('Форма 1.2 | Т-гор.вода'!$R$33=\"\",1,0)","v":0}]
[{"$f":"IF('Форма 1.2 | Т-гор.вода'!$P$33=\"\",1,0)","v":0}]
[{"$f":"IF('Форма 1.2 | Т-гор.вода'!$AR$33=\"\",1,0)","v":0}]
[{"$f":"IF('Форма 1.2 | Т-гор.вода'!$AS$33=\"\",1,0)","v":0}]
[{"$f":"IF('Форма 1.2 | Т-гор.вода'!$AT$33=\"\",1,0)","v":0}]
[{"$f":"IF('Форма 1.2 | Т-гор.вода'!$BA$33=\"\",1,0)","v":0}]
[{"$f":"IF('Форма 1.2 | Т-гор.вода'!$BC$33=\"\",1,0)","v":0}]
[{"$f":"IF('Форма 1.2 | Т-гор.вода'!$BB$33=\"\",1,0)","v":0}]
[{"$f":"IF('Форма 1.2 | Т-гор.вода'!$BD$33=\"\",1,0)","v":0}]
[{"$f":"IF('Форма 1.2 | Т-гор.вода'!$AR$23=\"\",1,0)","v":0}]
[{"$f":"IF('Форма 1.2 | Т-гор.вода'!$AS$23=\"\",1,0)","v":0}]
[{"$f":"IF('Форма 1.2 | Т-гор.вода'!$AT$23=\"\",1,0)","v":0}]
[{"$f":"IF('Форма 1.2 | Т-гор.вода'!$BA$23=\"\",1,0)","v":0}]
[{"$f":"IF('Форма 1.2 | Т-гор.вода'!$BC$23=\"\",1,0)","v":0}]
[{"$f":"IF('Форма 1.2 | Т-гор.вода'!$BB$23=\"\",1,0)","v":0}]
[{"$f":"IF('Форма 1.2 | Т-гор.вода'!$BD$23=\"\",1,0)","v":0}]
[{"$f":"IF('Форма 1.2 | Т-гор.вода'!$AR$28=\"\",1,0)","v":0}]
[{"$f":"IF('Форма 1.2 | Т-гор.вода'!$AS$28=\"\",1,0)","v":0}]
[{"$f":"IF('Форма 1.2 | Т-гор.вода'!$AT$28=\"\",1,0)","v":0}]
[{"$f":"IF('Форма 1.2 | Т-гор.вода'!$BA$28=\"\",1,0)","v":0}]
[{"$f":"IF('Форма 1.2 | Т-гор.вода'!$BC$28=\"\",1,0)","v":0}]
[{"$f":"IF('Форма 1.2 | Т-гор.вода'!$BB$28=\"\",1,0)","v":0}]
[{"$f":"IF('Форма 1.2 | Т-гор.вода'!$BD$28=\"\",1,0)","v":0}]
[{"$f":"IF('Форма 1.2 | Т-гор.вода'!$BF$23=\"\",1,0)","v":0}]
[{"$f":"IF('Форма 1.2 | Т-гор.вода'!$BG$23=\"\",1,0)","v":0}]
[{"$f":"IF('Форма 1.2 | Т-гор.вода'!$BH$23=\"\",1,0)","v":0}]
[{"$f":"IF('Форма 1.2 | Т-гор.вода'!$BO$23=\"\",1,0)","v":0}]
[{"$f":"IF('Форма 1.2 | Т-гор.вода'!$BQ$23=\"\",1,0)","v":0}]
[{"$f":"IF('Форма 1.2 | Т-гор.вода'!$BP$23=\"\",1,0)","v":0}]
[{"$f":"IF('Форма 1.2 | Т-гор.вода'!$BR$23=\"\",1,0)","v":0}]
[{"$f":"IF('Форма 1.2 | Т-гор.вода'!$BF$28=\"\",1,0)","v":0}]
[{"$f":"IF('Форма 1.2 | Т-гор.вода'!$BG$28=\"\",1,0)","v":0}]
[{"$f":"IF('Форма 1.2 | Т-гор.вода'!$BH$28=\"\",1,0)","v":0}]
[{"$f":"IF('Форма 1.2 | Т-гор.вода'!$BO$28=\"\",1,0)","v":0}]
[{"$f":"IF('Форма 1.2 | Т-гор.вода'!$BQ$28=\"\",1,0)","v":0}]
[{"$f":"IF('Форма 1.2 | Т-гор.вода'!$BP$28=\"\",1,0)","v":0}]
[{"$f":"IF('Форма 1.2 | Т-гор.вода'!$BR$28=\"\",1,0)","v":0}]
[{"$f":"IF('Форма 1.2 | Т-гор.вода'!$BF$33=\"\",1,0)","v":0}]
[{"$f":"IF('Форма 1.2 | Т-гор.вода'!$BG$33=\"\",1,0)","v":0}]
[{"$f":"IF('Форма 1.2 | Т-гор.вода'!$BH$33=\"\",1,0)","v":0}]
[{"$f":"IF('Форма 1.2 | Т-гор.вода'!$BO$33=\"\",1,0)","v":0}]
[{"$f":"IF('Форма 1.2 | Т-гор.вода'!$BQ$33=\"\",1,0)","v":0}]
[{"$f":"IF('Форма 1.2 | Т-гор.вода'!$BP$33=\"\",1,0)","v":0}]
[{"$f":"IF('Форма 1.2 | Т-гор.вода'!$BR$33=\"\",1,0)","v":0}]
[{"$f":"IF('Форма 1.2 | Т-гор.вода'!$BT$28=\"\",1,0)","v":0}]
[{"$f":"IF('Форма 1.2 | Т-гор.вода'!$BU$28=\"\",1,0)","v":0}]
[{"$f":"IF('Форма 1.2 | Т-гор.вода'!$BV$28=\"\",1,0)","v":0}]
[{"$f":"IF('Форма 1.2 | Т-гор.вода'!$CC$28=\"\",1,0)","v":0}]
[{"$f":"IF('Форма 1.2 | Т-гор.вода'!$CE$28=\"\",1,0)","v":0}]
[{"$f":"IF('Форма 1.2 | Т-гор.вода'!$CD$28=\"\",1,0)","v":0}]
[{"$f":"IF('Форма 1.2 | Т-гор.вода'!$CF$28=\"\",1,0)","v":0}]
[{"$f":"IF('Форма 1.2 | Т-гор.вода'!$BT$33=\"\",1,0)","v":0}]
[{"$f":"IF('Форма 1.2 | Т-гор.вода'!$BU$33=\"\",1,0)","v":0}]
[{"$f":"IF('Форма 1.2 | Т-гор.вода'!$BV$33=\"\",1,0)","v":0}]
[{"$f":"IF('Форма 1.2 | Т-гор.вода'!$CC$33=\"\",1,0)","v":0}]
[{"$f":"IF('Форма 1.2 | Т-гор.вода'!$CE$33=\"\",1,0)","v":0}]
[{"$f":"IF('Форма 1.2 | Т-гор.вода'!$CD$33=\"\",1,0)","v":0}]
[{"$f":"IF('Форма 1.2 | Т-гор.вода'!$CF$33=\"\",1,0)","v":0}]
[{"$f":"IF('Форма 1.2 | Т-гор.вода'!$BT$23=\"\",1,0)","v":0}]
[{"$f":"IF('Форма 1.2 | Т-гор.вода'!$BU$23=\"\",1,0)","v":0}]
[{"$f":"IF('Форма 1.2 | Т-гор.вода'!$BV$23=\"\",1,0)","v":0}]
[{"$f":"IF('Форма 1.2 | Т-гор.вода'!$CC$23=\"\",1,0)","v":0}]
[{"$f":"IF('Форма 1.2 | Т-гор.вода'!$CE$23=\"\",1,0)","v":0}]
[{"$f":"IF('Форма 1.2 | Т-гор.вода'!$CD$23=\"\",1,0)","v":0}]
[{"$f":"IF('Форма 1.2 | Т-гор.вода'!$CF$23=\"\",1,0)","v":0}]
[{"$f":"IF('Форма 1.2 | Т-гор.вода'!$CH$33=\"\",1,0)","v":0}]
[{"$f":"IF('Форма 1.2 | Т-гор.вода'!$CI$33=\"\",1,0)","v":0}]
[{"$f":"IF('Форма 1.2 | Т-гор.вода'!$CJ$33=\"\",1,0)","v":0}]
[{"$f":"IF('Форма 1.2 | Т-гор.вода'!$CQ$33=\"\",1,0)","v":0}]
[{"$f":"IF('Форма 1.2 | Т-гор.вода'!$CS$33=\"\",1,0)","v":0}]
[{"$f":"IF('Форма 1.2 | Т-гор.вода'!$CR$33=\"\",1,0)","v":0}]
[{"$f":"IF('Форма 1.2 | Т-гор.вода'!$CT$33=\"\",1,0)","v":0}]
[{"$f":"IF('Форма 1.2 | Т-гор.вода'!$CH$23=\"\",1,0)","v":0}]
[{"$f":"IF('Форма 1.2 | Т-гор.вода'!$CI$23=\"\",1,0)","v":0}]
[{"$f":"IF('Форма 1.2 | Т-гор.вода'!$CJ$23=\"\",1,0)","v":0}]
[{"$f":"IF('Форма 1.2 | Т-гор.вода'!$CQ$23=\"\",1,0)","v":0}]
[{"$f":"IF('Форма 1.2 | Т-гор.вода'!$CS$23=\"\",1,0)","v":0}]
[{"$f":"IF('Форма 1.2 | Т-гор.вода'!$CR$23=\"\",1,0)","v":0}]
[{"$f":"IF('Форма 1.2 | Т-гор.вода'!$CT$23=\"\",1,0)","v":0}]
[{"$f":"IF('Форма 1.2 | Т-гор.вода'!$CH$28=\"\",1,0)","v":0}]
[{"$f":"IF('Форма 1.2 | Т-гор.вода'!$CI$28=\"\",1,0)","v":0}]
[{"$f":"IF('Форма 1.2 | Т-гор.вода'!$CJ$28=\"\",1,0)","v":0}]
[{"$f":"IF('Форма 1.2 | Т-гор.вода'!$CQ$28=\"\",1,0)","v":0}]
[{"$f":"IF('Форма 1.2 | Т-гор.вода'!$CS$28=\"\",1,0)","v":0}]
[{"$f":"IF('Форма 1.2 | Т-гор.вода'!$CR$28=\"\",1,0)","v":0}]
[{"$f":"IF('Форма 1.2 | Т-гор.вода'!$CT$28=\"\",1,0)","v":0}]
[{"$f":"IF('Форма 1.2 | Т-гор.вода'!$CV$23=\"\",1,0)","v":0}]
[{"$f":"IF('Форма 1.2 | Т-гор.вода'!$CW$23=\"\",1,0)","v":0}]
[{"$f":"IF('Форма 1.2 | Т-гор.вода'!$CX$23=\"\",1,0)","v":0}]
[{"$f":"IF('Форма 1.2 | Т-гор.вода'!$DE$23=\"\",1,0)","v":0}]
[{"$f":"IF('Форма 1.2 | Т-гор.вода'!$DG$23=\"\",1,0)","v":0}]
[{"$f":"IF('Форма 1.2 | Т-гор.вода'!$DF$23=\"\",1,0)","v":0}]
[{"$f":"IF('Форма 1.2 | Т-гор.вода'!$DH$23=\"\",1,0)","v":0}]
[{"$f":"IF('Форма 1.2 | Т-гор.вода'!$CV$28=\"\",1,0)","v":0}]
[{"$f":"IF('Форма 1.2 | Т-гор.вода'!$CW$28=\"\",1,0)","v":0}]
[{"$f":"IF('Форма 1.2 | Т-гор.вода'!$CX$28=\"\",1,0)","v":0}]
[{"$f":"IF('Форма 1.2 | Т-гор.вода'!$DE$28=\"\",1,0)","v":0}]
[{"$f":"IF('Форма 1.2 | Т-гор.вода'!$DG$28=\"\",1,0)","v":0}]
[{"$f":"IF('Форма 1.2 | Т-гор.вода'!$DF$28=\"\",1,0)","v":0}]
[{"$f":"IF('Форма 1.2 | Т-гор.вода'!$DH$28=\"\",1,0)","v":0}]
[{"$f":"IF('Форма 1.2 | Т-гор.вода'!$CV$33=\"\",1,0)","v":0}]
[{"$f":"IF('Форма 1.2 | Т-гор.вода'!$CW$33=\"\",1,0)","v":0}]
[{"$f":"IF('Форма 1.2 | Т-гор.вода'!$CX$33=\"\",1,0)","v":0}]
[{"$f":"IF('Форма 1.2 | Т-гор.вода'!$DE$33=\"\",1,0)","v":0}]
[{"$f":"IF('Форма 1.2 | Т-гор.вода'!$DG$33=\"\",1,0)","v":0}]
[{"$f":"IF('Форма 1.2 | Т-гор.вода'!$DF$33=\"\",1,0)","v":0}]
[{"$f":"IF('Форма 1.2 | Т-гор.вода'!$DH$33=\"\",1,0)","v":0}]
[{"$f":"IF('Форма 1.2 | Т-гор.вода'!$DJ$28=\"\",1,0)","v":0}]
[{"$f":"IF('Форма 1.2 | Т-гор.вода'!$DK$28=\"\",1,0)","v":0}]
[{"$f":"IF('Форма 1.2 | Т-гор.вода'!$DL$28=\"\",1,0)","v":0}]
[{"$f":"IF('Форма 1.2 | Т-гор.вода'!$DS$28=\"\",1,0)","v":0}]
[{"$f":"IF('Форма 1.2 | Т-гор.вода'!$DU$28=\"\",1,0)","v":0}]
[{"$f":"IF('Форма 1.2 | Т-гор.вода'!$DT$28=\"\",1,0)","v":0}]
[{"$f":"IF('Форма 1.2 | Т-гор.вода'!$DV$28=\"\",1,0)","v":0}]
[{"$f":"IF('Форма 1.2 | Т-гор.вода'!$DJ$33=\"\",1,0)","v":0}]
[{"$f":"IF('Форма 1.2 | Т-гор.вода'!$DK$33=\"\",1,0)","v":0}]
[{"$f":"IF('Форма 1.2 | Т-гор.вода'!$DL$33=\"\",1,0)","v":0}]
[{"$f":"IF('Форма 1.2 | Т-гор.вода'!$DS$33=\"\",1,0)","v":0}]
[{"$f":"IF('Форма 1.2 | Т-гор.вода'!$DU$33=\"\",1,0)","v":0}]
[{"$f":"IF('Форма 1.2 | Т-гор.вода'!$DT$33=\"\",1,0)","v":0}]
[{"$f":"IF('Форма 1.2 | Т-гор.вода'!$DV$33=\"\",1,0)","v":0}]
[{"$f":"IF('Форма 1.2 | Т-гор.вода'!$DJ$23=\"\",1,0)","v":0}]
[{"$f":"IF('Форма 1.2 | Т-гор.вода'!$DK$23=\"\",1,0)","v":0}]
[{"$f":"IF('Форма 1.2 | Т-гор.вода'!$DL$23=\"\",1,0)","v":0}]
[{"$f":"IF('Форма 1.2 | Т-гор.вода'!$DS$23=\"\",1,0)","v":0}]
[{"$f":"IF('Форма 1.2 | Т-гор.вода'!$DU$23=\"\",1,0)","v":0}]
[{"$f":"IF('Форма 1.2 | Т-гор.вода'!$DT$23=\"\",1,0)","v":0}]
[{"$f":"IF('Форма 1.2 | Т-гор.вода'!$DV$23=\"\",1,0)","v":0}]
[{"$f":"IF('Форма 1.8'!$E$13=\"\",1,0)","v":0}]
[{"$f":"IF('Форма 1.8'!$F$13=\"\",1,0)","v":0}]
[{"$f":"IF('Форма 1.9'!$E$32=\"\",1,0)","v":0}]
[{"$f":"IF('Форма 1.9'!$H$32=\"\",1,0)","v":0}]

{"sheet":"REESTR_LINK","index":24,"n_rows":3,"n_cols":3,"rows_kept":3,"cut":false,"hidden":true,"merged":[]}
["ID","LINK_NAME","REGION"]
[4189678,"https://portal.eias.ru/Portal/DownloadPage.aspx?type=12&guid=????????-????-????-????-????????????","ALL"]
[4190415,"https://eias.fstrf.ru/disclo/get_file?p_guid=????????-????-????-????-????????????","ALL"]

{"sheet":"REESTR_DS","index":25,"n_rows":6,"n_cols":2,"rows_kept":6,"cut":false,"hidden":true,"merged":[]}
[]
[]
[null,"Тихорецкий муниципальный район, Тихорецкое городское (03654101);"]
[null,"территория 2"]
[null,"территория 3"]
[null,"территория 4"]

{"sheet":"modHTTP","index":26,"n_rows":0,"n_cols":0,"rows_kept":0,"cut":false,"hidden":true,"merged":[]}

{"sheet":"modfrmRezimChoose","index":27,"n_rows":0,"n_cols":0,"rows_kept":0,"cut":false,"hidden":true,"merged":[]}

{"sheet":"modSheetMain","index":28,"n_rows":1,"n_cols":2,"rows_kept":1,"cut":false,"hidden":true,"merged":[]}
["Форма","Листы"]

{"sheet":"REESTR_VT","index":29,"n_rows":5,"n_cols":2,"rows_kept":5,"cut":false,"hidden":true,"merged":[]}
["ID_TARIFF_NAME","TARIFF_NAME"]
[4213767,"Тариф на горячую воду в закрытой системе горячего водоснабжения (горячее водоснабжение)"]
[4213768,"Тариф на транспортировку горячей воды"]
[4213769,"Тариф на подключение к централизованной системе горячего водоснабжения"]
[4213770,"Тариф на подключение к централизованной системе горячего водоснабжения (инд)"]

{"sheet":"REESTR_VED","index":30,"n_rows":4,"n_cols":2,"rows_kept":4,"cut":false,"hidden":true,"merged":[]}
["ID_TARIFF_NAME","VED_NAME"]
[4189706,"Горячее водоснабжение"]
[4189705,"Транспортировка"]
[4189707,"Подключение (технологическое присоединение) к централизованной системе горячего водоснабжения"]

{"sheet":"modfrmReestrObj","index":31,"n_rows":0,"n_cols":0,"rows_kept":0,"cut":false,"hidden":true,"merged":[]}

{"sheet":"AllSheetsInThisWorkbook","index":32,"n_rows":42,"n_cols":2,"rows_kept":42,"cut":false,"hidden":true,"merged":[]}
["Расчетные листы","Скрытые листы"]
["Instruction","modList00"]
["modUpdTemplLogger","modListTempFilter"]
["List00","modCheckCyan"]
["List01","REESTR_LINK"]
["List02","REESTR_DS"]
["List05_2","modHTTP"]
["List06_2","modfrmRezimChoose"]
["List05_5","modSheetMain"]
["List06_5","REESTR_VT"]
["List05_9","REESTR_VED"]
["List06_9","modfrmReestrObj"]
["List05_10","AllSheetsInThisWorkbook"]
["List06_10","TSH_et_union_vert"]
["List05_11","modInstruction"]
["List11","modRegion"]
["List12","modReestr"]
["List03","modfrmReestr"]
["List07","modUpdTemplMain"]
["ListComm","TSH_REESTR_ORG"]
["ListCheck","modClassifierValidate"]
[null,"modProv"]
[null,"modHyp"]
[null,"modServiceModule"]
[null,"modList01"]
[null,"modList02"]
[null,"modList03"]
[null,"TSH_REESTR_MO_FILTER"]
[null,"TSH_REESTR_MO"]
[null,"TSH_et_union_hor"]
[null,"TEHSHEET"]
[null,"modInfo"]
[null,"modList05"]
[null,"modList06"]
[null,"modList07"]
[null,"modList11"]
[null,"modList12"]
[null,"modfrmDateChoose"]
[null,"modComm"]
[null,"modThisWorkbook"]
[null,"modfrmReestrMR"]
[null,"modfrmCheckUpdates"]

{"sheet":"et_union_vert","index":33,"n_rows":0,"n_cols":0,"rows_kept":0,"cut":false,"hidden":true,"merged":[]}

{"sheet":"modInstruction","index":34,"n_rows":0,"n_cols":0,"rows_kept":0,"cut":false,"hidden":true,"merged":[]}

{"sheet":"modRegion","index":35,"n_rows":0,"n_cols":0,"rows_kept":0,"cut":false,"hidden":true,"merged":[]}

{"sheet":"modReestr","index":36,"n_rows":0,"n_cols":0,"rows_kept":0,"cut":false,"hidden":true,"merged":[]}

{"sheet":"modfrmReestr","index":37,"n_rows":0,"n_cols":0,"rows_kept":0,"cut":false,"hidden":true,"merged":[]}

{"sheet":"modUpdTemplMain","index":38,"n_rows":0,"n_cols":0,"rows_kept":0,"cut":false,"hidden":true,"merged":[]}

{"sheet":"REESTR_ORG","index":39,"n_rows":144,"n_cols":10,"rows_kept":144,"cut":false,"hidden":true,"merged":[]}
["№","REGION_ID","REGION_NAME","RST_ORG_ID","ORG_NAME","INN_NAME","KPP_NAME","ORG_START_DATE","ORG_END_DATE"]
[1,"2622","Краснодарский край","26468799","АО \"Березанское ПЖКХ\"","2328017200","232801001","12-05-2006 00:00:00",null,"HOT_VS"]
[2,"2622","Краснодарский край","30335229","АО \"ГУ ЖКХ\"","5116000922","770401001",null,null,"HOT_VS"]
[3,"2622","Краснодарский край","26518197","АО \"Краснодартеплосеть\"","2312122495","230801001",null,null,"HOT_VS"]
[4,"2622","Краснодарский край","26355045","АО \"Лотос\"","2310111522","231001001",null,null,"HOT_VS"]
[5,"2622","Краснодарский край","26355062","АО \"Международный аэропорт \"Краснодар\"","2312126429","231201001","03-04-2006 00:00:00",null,"HOT_VS"]
[6,"2622","Краснодарский край","28061874","АО \"Международный аэропорт Сочи\"","2317044843","230750001",null,null,"HOT_VS"]
[7,"2622","Краснодарский край","26355156","АО \"Предприятие \"Усть-Лабинскрайгаз\"","2356036532","235601001",null,null,"HOT_VS"]
[8,"2622","Краснодарский край","26355077","АО \"Прибой\"","2315012170","231501001",null,null,"HOT_VS"]
[9,"2622","Краснодарский край","28795169","АО \"РТСК\"","2310159122","231001001",null,null,"HOT_VS"]
[10,"2622","Краснодарский край","30837540","АО \"Санаторий \"Кудепста\"","2319004652","231901001","03-03-1993 00:00:00",null,"HOT_VS"]
[11,"2622","Краснодарский край","30923635","АО \"Сочинский хлебокомбинат\"","2320145827","232001001",null,null,"HOT_VS"]
[12,"2622","Краснодарский край","26508107","АО \"Тепловые сети\"","2346013656","234601001",null,null,"HOT_VS"]
[13,"2622","Краснодарский край","26528443","АО \"Теплоэнерго\"","2301080564","230101001",null,null,"HOT_VS"]
[14,"2622","Краснодарский край","26516100","АО \"Усть-Лабинсктеплоэнерго\"","2356038360","235601001",null,null,"HOT_VS"]
[15,"2622","Краснодарский край","27897001","АО МПМК \"Краснодарская - 1\"","2309001518","230901001","18-02-1993 00:00:00",null,"HOT_VS"]
[16,"2622","Краснодарский край","31625572","Апшеронский филиал ООО \"ТТР\"","2310221733","231001001","18-10-2022 00:00:00",null,"HOT_VS"]
[17,"2622","Краснодарский край","30876376","Армавирский Филиал ООО \"Газпром теплоэнерго Краснодар\"","2308206128","237243001","30-11-2016 00:00:00",null,"HOT_VS"]
[18,"2622","Краснодарский край","26355104","Брюховецкий филиал ЗАО «СК «Ленинградский»","2341015890","232743001","17-10-2012 00:00:00",null,"HOT_VS"]
[19,"2622","Краснодарский край","27590945","Вагонный участок Адлер - структурное подразделение Северо-Кавказского филиала АО \"ФПК\"","7708709686","231745001",null,null,"HOT_VS"]
[20,"2622","Краснодарский край","26760597","Вагонный участок Новороссийск - структурное подразделение Северо - Кавказского филиала АО \"ФПК\"","7708709686","231545001",null,null,"HOT_VS"]
[21,"2622","Краснодарский край","28507902","ГБПОУ КК \"БАК\", Брюховецкий район","2327001327","232701001","26-12-2002 00:00:00",null,"HOT_VS"]
[22,"2622","Краснодарский край","31598276","ГУ \"Санаторий \"Беларусь\"","2320042317","232001001","25-12-2002 00:00:00",null,"HOT_VS"]
[23,"2622","Краснодарский край","30876390","Геленджикский Филиал ООО \"Газпром теплоэнерго Краснодар\"","2308206128","230443001","30-11-2016 00:00:00",null,"HOT_VS"]
[24,"2622","Краснодарский край","26355108","Гирейское ЗАО \"Железобетон\"","2329000209","232901001",null,null,"HOT_VS"]
[25,"2622","Краснодарский край","26355015","ЗАО \"Санаторий Ейск\"","2306001189","230601001",null,null,"HOT_VS"]
[26,"2622","Краснодарский край","28084316","ИП Карапетян Л.К.","231122656389","отсутствует","18-05-2012 00:00:00",null,"HOT_VS"]
[27,"2622","Краснодарский край","28493735","ККО ОГО ВФСО \"Динамо\"","2310000935","231001001","04-07-2006 00:00:00",null,"HOT_VS"]
[28,"2622","Краснодарский край","30876458","Кропоткинский Филиал ООО \"Газпром теплоэнерго Краснодар\"","2308206128","236443001","30-11-2016 00:00:00",null,"HOT_VS"]
[29,"2622","Краснодарский край","26470943","МП \"ЖКХ\" Красноармейского района","2336001098","233601001",null,null,"HOT_VS"]
[30,"2622","Краснодарский край","26355016","МУП  \"Ейские тепловые сети\"","2306009759","230601001",null,null,"HOT_VS"]
[31,"2622","Краснодарский край","26545756","МУП \"Белоглинская теплосистема\"","2326007862","232601001",null,null,"HOT_VS"]
[32,"2622","Краснодарский край","27183657","МУП \"Выселковские коммунальные системы\"","2328000573","232801001","24-06-2011 00:00:00",null,"HOT_VS"]
[33,"2622","Краснодарский край","30349482","МУП \"Динком \"ТЕПЛО\"","2373008912","237301001","01-08-2015 00:00:00",null,"HOT_VS"]
[34,"2622","Краснодарский край","27892167","МУП \"ЖКХ Тбилисского района\"","2364007045","236401001","27-07-2012 00:00:00",null,"HOT_VS"]
[35,"2622","Краснодарский край","30377855","МУП \"ЖКХ Тихорецкого района\"","2360008633","236001001","11-12-2015 00:00:00",null,"HOT_VS"]
[36,"2622","Краснодарский край","26532106","МУП \"Ленинградский Теплоцентр\"","2341014776","234101001",null,null,"HOT_VS"]
[37,"2622","Краснодарский край","26492043","МУП \"Мостовские тепловые сети\"","2342017970","234201001",null,null,"HOT_VS"]
[38,"2622","Краснодарский край","26468858","МУП \"Родное подворье\"","2330032780","233001001",null,null,"HOT_VS"]
[39,"2622","Краснодарский край","26508493","МУП \"Сочитеплоэнерго\"","2320033802","232001001",null,null,"HOT_VS"]
[40,"2622","Краснодарский край","31521886","МУП \"ТЭК Крымского района\"","2376004271","237601001","16-08-2021 00:00:00",null,"HOT_VS"]
[41,"2622","Краснодарский край","26468913","МУП \"Тепловодокомплекс Темижбекский\"","2332017202","233201001","16-11-2006 00:00:00",null,"HOT_VS"]
[42,"2622","Краснодарский край","26489059","МУП \"Тепловое хозяйство\"","2343019875","234301001",null,null,"HOT_VS"]
[43,"2622","Краснодарский край","28816743","МУП \"Тепловые сети Тбилисского района\"","2364010802","236401001","23-07-2014 00:00:00",null,"HOT_VS"]
[44,"2622","Краснодарский край","30360877","МУП \"Тепловые сети\", г. Горячий Ключ","2305028942","230501001","16-04-2014 00:00:00",null,"HOT_VS"]
[45,"2622","Краснодарский край","28269915","МУП \"Тепловые сети\", г.Приморско-Ахтарск","2347015590","234701001","17-05-2013 00:00:00",null,"HOT_VS"]
[46,"2622","Краснодарский край","26355008","МУП \"Тепловые сети\", город- курорт Геленджик","2304002170","230401001",null,null,"HOT_VS"]
[47,"2622","Краснодарский край","28868089","МУП \"Теплокомплекс\"","2370003850","237001001","30-07-2014 00:00:00",null,"HOT_VS"]
[48,"2622","Краснодарский край","26532003","МУП \"Теплоэнергетик\"","2340019933","234001001",null,null,"HOT_VS"]
[49,"2622","Краснодарский край","26537645","МУП \"Универсал\"","2323026458","232301001","22-02-2007 00:00:00",null,"HOT_VS"]
[50,"2622","Краснодарский край","26468864","МУП \"ЮГ\"","2330022454","233001001",null,null,"HOT_VS"]
[51,"2622","Краснодарский край","26531974","МУП «Тепловые сети», Крыловский район","2338011479","233801001",null,null,"HOT_VS"]
[52,"2622","Краснодарский край","27903086","МУП БГП БР \"Белореченские тепловые сети\"","2368003595","236801001","24-05-2012 00:00:00",null,"HOT_VS"]
[53,"2622","Краснодарский край","26516731","МУП Каневского района \"Каневские тепловые сети\"","2334022039","233401001",null,null,"HOT_VS"]
[54,"2622","Краснодарский край","26528220","МУП МО Курганинский район \"Курганинсктеплоэнерго\"","2339017924","233901001","15-06-2013 00:00:00",null,"HOT_VS"]
[55,"2622","Краснодарский край","26490767","МУП ОР КК \"Теплоэнергия\"","2345011744","234501001",null,null,"HOT_VS"]
[56,"2622","Краснодарский край","26355118","МУП ТВК \"Кавказский\"","2332017210","233201001","17-11-2006 00:00:00",null,"HOT_VS"]
[57,"2622","Краснодарский край","26355098","МУП ТГП ТР  \"Тихорецктепло\"","2321009390","236001001",null,null,"HOT_VS"]
[58,"2622","Краснодарский край","26528098","МУП гор.Лабинска \"Тепловые сети\"","2314001584","231401001",null,null,"HOT_VS"]
[59,"2622","Краснодарский край","26355051","МУП совхоз \"Прогресс\"","2311030611","231101001","10-01-2003 00:00:00",null,"HOT_VS"]
[60,"2622","Краснодарский край","30837945","НАО \"ТЭК\"","5321172297","532101001","13-11-2014 00:00:00",null,"HOT_VS"]
[61,"2622","Краснодарский край","26468820","Новомалороссийское МУМП ЖКХ","2328014400","232801001",null,null,"HOT_VS"]
[62,"2622","Краснодарский край","26518989","ОАО \"Теплосервис\"","2335015394","233501001","31-05-2010 00:00:00",null,"HOT_VS"]
[63,"2622","Краснодарский край","26473871","ОАО АПСК \"Гулькевичский\"","2329007878","232901001",null,null,"HOT_VS"]
[64,"2622","Краснодарский край","28855684","ОАО агрофирма \"Нива\"","2353016432","235301001","29-03-1999 00:00:00",null,"HOT_VS"]
[65,"2622","Краснодарский край","31557493","ООО \"АСУ-Сервис\"","2309067371","230801001","28-01-2022 00:00:00",null,"HOT_VS"]
[66,"2622","Краснодарский край","31498899","ООО \"Базис\"","2312153704","231201001","01-09-2008 00:00:00",null,"HOT_VS"]
[67,"2622","Краснодарский край","26355106","ООО \"Брюховецкие тепловые сети\"","2327009703","232701001",null,null,"HOT_VS"]
[68,"2622","Краснодарский край","28221015","ООО \"Газпром трансгаз Краснодар\" филиал Медико-санитарная часть","2308128945","230802004",null,null,"HOT_VS"]
[69,"2622","Краснодарский край","30924762","ООО \"КТИ\"","2311194722","230901001","10-07-2015 00:00:00",null,"HOT_VS"]
[70,"2622","Краснодарский край","31517228","ООО \"КТЭ\"","2311322773","231101001","16-08-2021 00:00:00",null,"HOT_VS"]
[71,"2622","Краснодарский край","31447831","ООО \"Кубанская Тепловая Компания\"\"","2311305312","231101001","16-10-2020 00:00:00",null,"HOT_VS"]
[72,"2622","Краснодарский край","31625756","ООО \"Кубанькрайгаз\"","2360010921","236001001",null,null,"HOT_VS"]
[73,"2622","Краснодарский край","31220953","ООО \"МТС\"","2369006704","236901001","09-11-2018 00:00:00",null,"HOT_VS"]
[74,"2622","Краснодарский край","31448096","ООО \"МЭС\"","2321016736","234601001","16-08-2022 00:00:00",null,"HOT_VS"]
[75,"2622","Краснодарский край","28861442","ООО \"Ноябрь\"","2310165831","231001001","07-11-2014 00:00:00",null,"HOT_VS"]
[76,"2622","Краснодарский край","31214534","ООО \"СЗ ЧЕРНОМОР\"","2320225840","232001001","23-10-2014 00:00:00",null,"HOT_VS"]
[77,"2622","Краснодарский край","31349809","ООО \"СПКК\"","7814299632","781401001","22-12-2015 00:00:00",null,"HOT_VS"]
[78,"2622","Краснодарский край","26355094","ООО \"Санаторий \"Заполярье\"","2320126214","231101001","28-06-2004 00:00:00",null,"HOT_VS"]
[79,"2622","Краснодарский край","26509884","ООО \"Санаторий \"С.С.С.Р.\"","2317036306","231701001",null,null,"HOT_VS"]
[80,"2622","Краснодарский край","26355044","ООО \"Славяне\"","2310097839","231001001","14-11-2004 00:00:00",null,"HOT_VS"]
[81,"2622","Краснодарский край","31638727","ООО \"Славянсктеплоэнерго\"","2370010511","237001001","22-06-2020 00:00:00",null,"HOT_VS"]
[82,"2622","Краснодарский край","30840101","ООО \"ТД94\"","2309150358","230901001","21-04-2016 00:00:00",null,"HOT_VS"]
[83,"2622","Краснодарский край","26516342","ООО \"Тепловые сети Апшеронского района\"","2325020959","232501001",null,null,"HOT_VS"]
[84,"2622","Краснодарский край","26532030","ООО \"Теплосети\"","2333011450","233301001",null,null,"HOT_VS"]
[85,"2622","Краснодарский край","30992313","ООО \"Теплоэнергетик\"","2311241073","231101001","21-07-2017 00:00:00",null,"HOT_VS"]
[86,"2622","Краснодарский край","26529467","ООО \"Теплоэнергетическая компания\"","2337032892","233701001",null,null,"HOT_VS"]
[87,"2622","Краснодарский край","30802627","ООО \"ТермоТрон\"","5024159342","502401001","02-11-2015 00:00:00",null,"HOT_VS"]
[88,"2622","Краснодарский край","28828091","ООО \"ТихорецкЭнерго\"","2360007809","236001001",null,null,"HOT_VS"]
[89,"2622","Краснодарский край","26355026","ООО \"Универсал-Плюс-Сервис\"","2308068559","230901001","06-01-2003 00:00:00",null,"HOT_VS"]
[90,"2622","Краснодарский край","26516316","ООО \"Усть-Лабинскгазстрой\"","2356036356","235601001",null,null,"HOT_VS"]
[91,"2622","Краснодарский край","26318591","ООО \"Хоста\"","2319018550","231901001",null,null,"HOT_VS"]
[92,"2622","Краснодарский край","31190212","ООО \"Хранитель\"","2310158305","231101001","15-11-2011 00:00:00",null,"HOT_VS"]
[93,"2622","Краснодарский край","31491578","ООО \"ЦУП ЖКХ\"","7811207760","781101001","11-06-2015 00:00:00",null,"HOT_VS"]
[94,"2622","Краснодарский край","26355085","ООО \"Черномормебель ТЭН\"","2315118923","231501001",null,null,"HOT_VS"]
[95,"2622","Краснодарский край","31579640","ООО \"ЭТК\"","2311327242","231101001","26-11-2021 00:00:00",null,"HOT_VS"]
[96,"2622","Краснодарский край","28221002","ООО \"ЮТЭП\"","2311151510","231101001","28-11-2012 00:00:00",null,"HOT_VS"]
[97,"2622","Краснодарский край","26562795","ООО \"Юг-Теплосервис\"","2348031322","234801001",null,null,"HOT_VS"]
[98,"2622","Краснодарский край","31002183","ООО \"ЮгСети\"","2312258464","231201001","10-04-2017 00:00:00",null,"HOT_VS"]
[99,"2622","Краснодарский край","31524191","ООО \"ЮгЭнергоИнвест\"","2312294984","231201001","30-09-2020 00:00:00",null,"HOT_VS"]
[100,"2622","Краснодарский край","26355120","ООО «Каневской ЗГА»","2334013965","233401001",null,null,"HOT_VS"]
[101,"2622","Краснодарский край","31455451","ООО УК \"Домус\"","2311308063","231101001","03-12-2020 00:00:00",null,"HOT_VS"]
[102,"2622","Краснодарский край","30438799","ООО УК \"Заречье\"","2365021934","236501001","08-04-2016 00:00:00",null,"HOT_VS"]
[103,"2622","Краснодарский край","30414883","ОП \"Краснодарское\" АО \"ГУ ЖКХ\"","5116000922","230845001","12-10-2015 00:00:00",null,"HOT_VS"]
[104,"2622","Краснодарский край","31635406","Обособленное подразделение имущественного комплекса г. Новороссийск филиала \"Дирекция по эксплуатации имущественного комплекса\" ФГУП \"ГУСС\"","2315078029","770643001",null,null,"HOT_VS"]
[105,"2622","Краснодарский край","31006022","Общество с ограниченной отвественностью \"Комфорт Сити\"","2301094373","230101001","02-05-2017 00:00:00",null,"HOT_VS"]
[106,"2622","Краснодарский край","26814881","ПАО \"Сургутнефтегаз\" Оздоровительный трест \" Сургут\"","8602060555","860201001",null,null,"HOT_VS"]
[107,"2622","Краснодарский край","26359319","СХК \"Донагрокурорт\" Филиал - санаторий \"Тихий Дон\"","6163051203","231802001","20-02-1998 00:00:00",null,"HOT_VS"]
[108,"2622","Краснодарский край","26816056","Северо-Кавказская дирекция по тепловодоснабжению структурное подразделение Центральной дирекции по тепловодоснабжению - филиала ОАО \"РЖД\"","7708503727","616745019",null,null,"HOT_VS"]
[109,"2622","Краснодарский край","26322297","Северо-Кавказский филиал ООО \"Газпром энерго\"","7736186950","263602001","27-07-1998 00:00:00",null,"HOT_VS"]
[110,"2622","Краснодарский край","26355090","Служба охраны на Кавказе ФСО России","2319019338","231901001",null,null,"HOT_VS"]
[111,"2622","Краснодарский край","30876488","Туапсинский Филиал ООО \"Газпром теплоэнерго Краснодар\"","2308206128","236543001","30-11-2016 00:00:00",null,"HOT_VS"]
[112,"2622","Краснодарский край","26531972","ФБУ ИК-4 УФСИН России по Краснодарскому краю","2302031224","230201001",null,null,"HOT_VS"]
[113,"2622","Краснодарский край","26355151","ФГАУ \"Дом отдыха \"Туапсе\"  Управление делами Президента РФ","2355004425","236501001","03-12-2002 00:00:00",null,"HOT_VS"]
[114,"2622","Краснодарский край","26507578","ФГБНУ \"НЦЗ им. П.П. Лукьяненко\"","2311014916","231101001","12-10-2002 00:00:00",null,"HOT_VS"]
[115,"2622","Краснодарский край","26355150","ФГБОУ ВДЦ \"Орленок\"","2355004390","236501001","10-10-2002 00:00:00",null,"HOT_VS"]
[116,"2622","Краснодарский край","28859259","ФГБОУ ВО \"КГИК\"","2311021085","231101001",null,null,"HOT_VS"]
[117,"2622","Краснодарский край","26528683","ФГБУ \"Объединённый санаторий \"Русь\"","2319023817","232001001",null,null,"HOT_VS"]
[118,"2622","Краснодарский край","30903763","ФГБУ \"ЦЖКУ\" МИНОБОРОНЫ РОССИИ","7729314745","770101001",null,null,"HOT_VS"]
[119,"2622","Краснодарский край","28828283","ФГКОУ ИБО ФСБ России","2301064107","230101001","30-11-2011 00:00:00",null,"HOT_VS"]
[120,"2622","Краснодарский край","26355092","ФГКУ \"ЦКС им. Ф.Э.Дзержинского ФСБ России\"","2320054778","232001001",null,null,"HOT_VS"]
[121,"2622","Краснодарский край","30993299","ФГКУЗ \"Санаторий \"Солнечный\" войск национальной гвардии Российской Федерации\"","2355000438","236501001","14-09-1993 00:00:00",null,"HOT_VS"]
[122,"2622","Краснодарский край","26355052","ФГУП \"ЖКК\"","2311215718","231101001","20-06-2016 00:00:00",null,"HOT_VS"]
[123,"2622","Краснодарский край","26355091","ФКУ «Санаторий Правда»","2319022330","231901001",null,null,"HOT_VS"]
[124,"2622","Краснодарский край","26355088","ФКУЗ \"Санаторий \"Искра\" МВД России\"","2319018052","231901001",null,null,"HOT_VS"]
[125,"2622","Краснодарский край","27579515","ФКУЗ \"Санаторий \"Прогресс\" МВД России","2319023221","231901001",null,null,"HOT_VS"]
[126,"2622","Краснодарский край","26355152","ФКУЗ \"Санаторий \"Сосновый\" МВД России","2355004898","236501001","31-10-2002 00:00:00",null,"HOT_VS"]
[127,"2622","Краснодарский край","31635591","Филиал \"СЕВЕРСКИЙ\" ООО \"АСУ-Сервис\"","2309067371","234843001","15-11-2022 00:00:00",null,"HOT_VS"]
[128,"2622","Краснодарский край","31491315","Филиал \"СИС\" ООО \"ЦУП ЖКХ\"","7811207760","234843001","05-06-2020 00:00:00",null,"HOT_VS"]
[129,"2622","Краснодарский край","26355083","Филиал «УПП № 422» ФГУП «ГУСС»","2315078029","231501001",null,null,"HOT_VS"]
[130,"2622","Краснодарский край","26653550","Филиал АО \"АТЭК\" \"Абинские тепловые сети\"","2312054894","232343001","12-10-2010 00:00:00",null,"HOT_VS"]
[131,"2622","Краснодарский край","27581284","Филиал АО \"АТЭК\" \"Гулькевичские тепловые сети\"","2312054894","236443001",null,null,"HOT_VS"]
[132,"2622","Краснодарский край","27683182","Филиал АО \"АТЭК\" \"Краснодартеплоэнерго\"","2312054894","231243001","12-05-2011 00:00:00",null,"HOT_VS"]
[133,"2622","Краснодарский край","27710026","Филиал ОАО \"РЭУ\" \"Сочинский\"","7714783092","231943002","18-06-2009 00:00:00",null,"HOT_VS"]
[134,"2622","Краснодарский край","31503844","Филиал ООО \"КТИ\" \"Темрюкские Тепловые Сети\"","2311194722","235243001",null,null,"HOT_VS"]
[135,"2622","Краснодарский край","31493295","Филиал ООО \"МЭС\" г. Горячий Ключ","2321016736","236843001","20-11-2020 00:00:00",null,"HOT_VS"]
[136,"2622","Краснодарский край","31632789","Филиал ООО \"МЭС\" пгт. Мостовской","2321016736","237743001","07-10-2022 00:00:00",null,"HOT_VS"]
[137,"2622","Краснодарский край","30856184","филиал \"ЕИС\" ООО \"ЦУП ЖКХ\"","7811207760","236143001","11-06-2015 00:00:00",null,"HOT_VS"]
[138,"2622","Краснодарский край","31617884","филиал \"Прогресс\" ООО \"АСУ-Сервис\"","2309067371","231143001",null,null,"HOT_VS"]
[139,"2622","Краснодарский край","26472933","филиал АО \"АТЭК\"  \"Новороссийские тепловые сети\"","2312054894","231503001",null,null,"HOT_VS"]
[140,"2622","Краснодарский край","26505597","филиал АО \"АТЭК\"  \"Тимашевские тепловые сети\"","2312054894","236943001","01-07-2011 00:00:00",null,"HOT_VS"]
[141,"2622","Краснодарский край","28817151","филиал АО \"РТСК\" \"Новоростепло\"","2310159122","231543001",null,null,"HOT_VS"]
[142,"2622","Краснодарский край","31448028","филиал ООО \"МЭС\" с. Успенское","2321016736","237243001","01-10-2020 00:00:00",null,"HOT_VS"]
[143,"2622","Краснодарский край","26809129","филиал ПАО \"ОГК-2\" - Адлерская ТЭС","2607018122","231743001",null,null,"HOT_VS"]

{"sheet":"modClassifierValidate","index":40,"n_rows":0,"n_cols":0,"rows_kept":0,"cut":false,"hidden":true,"merged":[]}

{"sheet":"modProv","index":41,"n_rows":0,"n_cols":0,"rows_kept":0,"cut":false,"hidden":true,"merged":[]}

{"sheet":"modHyp","index":42,"n_rows":0,"n_cols":0,"rows_kept":0,"cut":false,"hidden":true,"merged":[]}

{"sheet":"modServiceModule","index":43,"n_rows":0,"n_cols":0,"rows_kept":0,"cut":false,"hidden":true,"merged":[]}

{"sheet":"modList01","index":44,"n_rows":0,"n_cols":0,"rows_kept":0,"cut":false,"hidden":true,"merged":[]}

{"sheet":"modList02","index":45,"n_rows":0,"n_cols":0,"rows_kept":0,"cut":false,"hidden":true,"merged":[]}

{"sheet":"modList03","index":46,"n_rows":0,"n_cols":0,"rows_kept":0,"cut":false,"hidden":true,"merged":[]}

{"sheet":"REESTR_MO_FILTER","index":47,"n_rows":0,"n_cols":0,"rows_kept":0,"cut":false,"hidden":true,"merged":[]}

{"sheet":"REESTR_MO","index":48,"n_rows":428,"n_cols":4,"rows_kept":428,"cut":false,"hidden":true,"merged":[]}
["№","МР","МО","МО_ОКТМО"]
[1,"Абинский муниципальный район","Абинский муниципальный район","03601000"]
[2,"Абинский муниципальный район","Абинское городское","03601101"]
[3,"Абинский муниципальный район","Ахтырское городское","03601153"]
[4,"Абинский муниципальный район","Варнавинское","03601401"]
[5,"Абинский муниципальный район","Мингрельское","03601403"]
[6,"Абинский муниципальный район","Ольгинское","03601402"]
[7,"Абинский муниципальный район","Светлогорское","03601405"]
[8,"Абинский муниципальный район","Федоровское","03601406"]
[9,"Абинский муниципальный район","Холмское","03601408"]
[10,"Апшеронский муниципальный район","Апшеронский муниципальный район","03605000"]
[11,"Апшеронский муниципальный район","Апшеронское городское","03605101"]
[12,"Апшеронский муниципальный район","Кабардинское","03605407"]
[13,"Апшеронский муниципальный район","Кубанское","03605410"]
[14,"Апшеронский муниципальный район","Куринское","03605413"]
[15,"Апшеронский муниципальный район","Мезмайское","03605416"]
[16,"Апшеронский муниципальный район","Нефтегорское городское","03605157"]
[17,"Апшеронский муниципальный район","Нижегородское","03605418"]
[18,"Апшеронский муниципальный район","Новополянское","03605419"]
[19,"Апшеронский муниципальный район","Отдаленное","03605422"]
[20,"Апшеронский муниципальный район","Тверское","03605431"]
[21,"Апшеронский муниципальный район","Хадыженское городское","03605109"]
[22,"Апшеронский муниципальный район","Черниговское","03605434"]
[23,"Белоглинский муниципальный район","Белоглинский муниципальный район","03607000"]
[24,"Белоглинский муниципальный район","Белоглинское","03607402"]
[25,"Белоглинский муниципальный район","Новопавловское","03607404"]
[26,"Белоглинский муниципальный район","Успенское","03607407"]
[27,"Белоглинский муниципальный район","Центральное","03607410"]
[28,"Белореченский муниципальный район","Белореченский муниципальный район","03608000"]
[29,"Белореченский муниципальный район","Белореченское городское","03608101"]
[30,"Белореченский муниципальный район","Бжедуховское","03608402"]
[31,"Белореченский муниципальный район","Великовечненское","03608404"]
[32,"Белореченский муниципальный район","Дружненское","03608405"]
[33,"Белореченский муниципальный район","Первомайское","03608407"]
[34,"Белореченский муниципальный район","Пшехское","03608410"]
[35,"Белореченский муниципальный район","Родниковское","03608412"]
[36,"Белореченский муниципальный район","Рязанское","03608413"]
[37,"Белореченский муниципальный район","Черниговское","03608416"]
[38,"Белореченский муниципальный район","Школьненское","03608419"]
[39,"Белореченский муниципальный район","Южненское","03608420"]
[40,"Брюховецкий муниципальный район","Батуринское","03610402"]
[41,"Брюховецкий муниципальный район","Большебейсугское","03610404"]
[42,"Брюховецкий муниципальный район","Брюховецкий муниципальный район","03610000"]
[43,"Брюховецкий муниципальный район","Брюховецкое","03610407"]
[44,"Брюховецкий муниципальный район","Новоджерелиевское","03610410"]
[45,"Брюховецкий муниципальный район","Новосельское","03610413"]
[46,"Брюховецкий муниципальный район","Переясловское","03610416"]
[47,"Брюховецкий муниципальный район","Свободненское","03610419"]
[48,"Брюховецкий муниципальный район","Чепигинское","03610422"]
[49,"Выселковский муниципальный район","Бейсугское","03612402"]
[50,"Выселковский муниципальный район","Бейсужекское","03612404"]
[51,"Выселковский муниципальный район","Березанское","03612407"]
[52,"Выселковский муниципальный район","Бузиновское","03612410"]
[53,"Выселковский муниципальный район","Выселковский муниципальный район","03612000"]
[54,"Выселковский муниципальный район","Выселковское","03612413"]
[55,"Выселковский муниципальный район","Газырское","03612416"]
[56,"Выселковский муниципальный район","Ирклиевское","03612419"]
[57,"Выселковский муниципальный район","Крупское","03612420"]
[58,"Выселковский муниципальный район","Новобейсугское","03612422"]
[59,"Выселковский муниципальный район","Новомалороссийское","03612425"]
[60,"Город Армавир","Город Армавир","03705000"]
[61,"Город Горячий Ключ","Город Горячий Ключ","03709000"]
[62,"Город Краснодар","Город Краснодар","03701000"]
[63,"Город Новороссийск","Город Новороссийск","03720000"]
[64,"Город-курорт Анапа","Город-курорт Анапа","03703000"]
[65,"Город-курорт Геленджик","Город-курорт Геленджик","03708000"]
[66,"Город-курорт Сочи","Город-курорт Сочи","03726000"]
[67,"Гулькевичский муниципальный район","Венцы-Заря","03613404"]
[68,"Гулькевичский муниципальный район","Гирейское городское","03613154"]
[69,"Гулькевичский муниципальный район","Гулькевичский муниципальный район","03613000"]
[70,"Гулькевичский муниципальный район","Гулькевичское городское","03613101"]
[71,"Гулькевичский муниципальный район","Комсомольское","03613413"]
[72,"Гулькевичский муниципальный район","Красносельское городское","03613162"]
[73,"Гулькевичский муниципальный район","Кубань","03613416"]
[74,"Гулькевичский муниципальный район","Николенское","03613425"]
[75,"Гулькевичский муниципальный район","Новоукраинское","03613429"]
[76,"Гулькевичский муниципальный район","Отрадо-Кубанское","03613434"]
[77,"Гулькевичский муниципальный район","Отрадо-Ольгинское","03613437"]
[78,"Гулькевичский муниципальный район","Пушкинское","03613440"]
[79,"Гулькевичский муниципальный район","Скобелевское","03613445"]
[80,"Гулькевичский муниципальный район","Соколовское","03613448"]
[81,"Гулькевичский муниципальный район","Союз Четырех Хуторов","03613450"]
[82,"Гулькевичский муниципальный район","Тысячное","03613455"]
[83,"Динской муниципальный район","Васюринское","03614402"]
[84,"Динской муниципальный район","Динское","03614404"]
[85,"Динской муниципальный район","Динской муниципальный район","03614000"]
[86,"Динской муниципальный район","Красносельское","03614410"]
[87,"Динской муниципальный район","Мичуринское","03614412"]
[88,"Динской муниципальный район","Нововеличковское","03614414"]
[89,"Динской муниципальный район","Новотитаровское","03614416"]
[90,"Динской муниципальный район","Первореченское","03614419"]
[91,"Динской муниципальный район","Пластуновское","03614422"]
[92,"Динской муниципальный район","Старомышастовское","03614428"]
[93,"Динской муниципальный район","Южно-Кубанское","03614445"]
[94,"Ейский муниципальный район","Александровское","03616402"]
[95,"Ейский муниципальный район","Должанское","03616404"]
[96,"Ейский муниципальный район","Ейский муниципальный район","03616000"]
[97,"Ейский муниципальный район","Ейское","03616407"]
[98,"Ейский муниципальный район","Ейское городское","03616101"]
[99,"Ейский муниципальный район","Камышеватское","03616410"]
[100,"Ейский муниципальный район","Копанское","03616413"]
[101,"Ейский муниципальный район","Красноармейское","03616416"]
[102,"Ейский муниципальный район","Кухаривское","03616419"]
[103,"Ейский муниципальный район","Моревское","03616420"]
[104,"Ейский муниципальный район","Трудовое","03616421"]
[105,"Ейский муниципальный район","Ясенское","03616422"]
[106,"Кавказский муниципальный район","Дмитриевское","03618404"]
[107,"Кавказский муниципальный район","Кавказский муниципальный район","03618000"]
[108,"Кавказский муниципальный район","Кавказское","03618410"]
[109,"Кавказский муниципальный район","Казанское","03618413"]
[110,"Кавказский муниципальный район","Кропоткинское городское","03618101"]
[111,"Кавказский муниципальный район","Лосевское","03618419"]
[112,"Кавказский муниципальный район","Мирское","03618422"]
[113,"Кавказский муниципальный район","Привольное","03618432"]
[114,"Кавказский муниципальный район","Темижбекское","03618452"]
[115,"Кавказский муниципальный район","им М Горького","03618407"]
[116,"Калининский муниципальный район","Бойкопонурское","03619405"]
[117,"Калининский муниципальный район","Гривенское","03619406"]
[118,"Калининский муниципальный район","Гришковское","03619407"]
[119,"Калининский муниципальный район","Джумайловское","03619408"]
[120,"Калининский муниципальный район","Калининский муниципальный район","03619000"]
[121,"Калининский муниципальный район","Калининское","03619420"]
[122,"Калининский муниципальный район","Куйбышевское","03619422"]
[123,"Калининский муниципальный район","Новониколаевское","03619427"]
[124,"Калининский муниципальный район","Старовеличковское","03619435"]
[125,"Каневской муниципальный район","Каневское","03620402"]
[126,"Каневской муниципальный район","Каневской муниципальный район","03620000"]
[127,"Каневской муниципальный район","Красногвардейское","03620404"]
[128,"Каневской муниципальный район","Кубанскостепное","03620405"]
[129,"Каневской муниципальный район","Новодеревянковское","03620407"]
[130,"Каневской муниципальный район","Новоминское","03620410"]
[131,"Каневской муниципальный район","Привольненское","03620413"]
[132,"Каневской муниципальный район","Придорожное","03620414"]
[133,"Каневской муниципальный район","Стародеревянковское","03620416"]
[134,"Каневской муниципальный район","Челбасское","03620419"]
[135,"Кореновский муниципальный район","Братковское","03621402"]
[136,"Кореновский муниципальный район","Бураковское","03621404"]
[137,"Кореновский муниципальный район","Дядьковское","03621407"]
[138,"Кореновский муниципальный район","Журавское","03621410"]
[139,"Кореновский муниципальный район","Кореновский муниципальный район","03621000"]
[140,"Кореновский муниципальный район","Кореновское городское","03621101"]
[141,"Кореновский муниципальный район","Новоберезанское","03621413"]
[142,"Кореновский муниципальный район","Платнировское","03621419"]
[143,"Кореновский муниципальный район","Пролетарское","03621422"]
[144,"Кореновский муниципальный район","Раздольненское","03621425"]
[145,"Кореновский муниципальный район","Сергиевское","03621428"]
[146,"Красноармейский муниципальный район","Ивановское","03623407"]
[147,"Красноармейский муниципальный район","Красноармейский муниципальный район","03623000"]
[148,"Красноармейский муниципальный район","Марьянское","03623412"]
[149,"Красноармейский муниципальный район","Новомышастовское","03623413"]
[150,"Красноармейский муниципальный район","Октябрьское","03623419"]
[151,"Красноармейский муниципальный район","Полтавское","03623410"]
[152,"Красноармейский муниципальный район","Протичкинское","03623420"]
[153,"Красноармейский муниципальный район","Староджерелиевское","03623422"]
[154,"Красноармейский муниципальный район","Старонижестеблиевское","03623425"]
[155,"Красноармейский муниципальный район","Трудобеликовское","03623428"]
[156,"Красноармейский муниципальный район","Чебургольское","03623431"]
[157,"Крыловский муниципальный район","Крыловский муниципальный район","03624000"]
[158,"Крыловский муниципальный район","Крыловское","03624411"]
[159,"Крыловский муниципальный район","Кугоейское","03624414"]
[160,"Крыловский муниципальный район","Новопашковское","03624418"]
[161,"Крыловский муниципальный район","Новосергиевское","03624421"]
[162,"Крыловский муниципальный район","Октябрьское","03624424"]
[163,"Крыловский муниципальный район","Шевченковское","03624430"]
[164,"Крымский муниципальный район","Адагумское","03625402"]
[165,"Крымский муниципальный район","Варениковское","03625404"]
[166,"Крымский муниципальный район","Кеслеровское","03625407"]
[167,"Крымский муниципальный район","Киевское","03625410"]
[168,"Крымский муниципальный район","Крымский муниципальный район","03625000"]
[169,"Крымский муниципальный район","Крымское городское","03625101"]
[170,"Крымский муниципальный район","Мерчанское","03625416"]
[171,"Крымский муниципальный район","Молдаванское","03625419"]
[172,"Крымский муниципальный район","Нижнебаканское","03625412"]
[173,"Крымский муниципальный район","Пригородное","03625413"]
[174,"Крымский муниципальный район","Троицкое","03625422"]
[175,"Крымский муниципальный район","Южное","03625431"]
[176,"Курганинский муниципальный район","Безводное","03627402"]
[177,"Курганинский муниципальный район","Воздвиженское","03627404"]
[178,"Курганинский муниципальный район","Константиновское","03627407"]
[179,"Курганинский муниципальный район","Курганинский муниципальный район","03627000"]
[180,"Курганинский муниципальный район","Курганинское городское","03627101"]
[181,"Курганинский муниципальный район","Михайловское","03627410"]
[182,"Курганинский муниципальный район","Новоалексеевское","03627413"]
[183,"Курганинский муниципальный район","Октябрьское","03627416"]
[184,"Курганинский муниципальный район","Петропавловское","03627419"]
[185,"Курганинский муниципальный район","Родниковское","03627422"]
[186,"Курганинский муниципальный район","Темиргоевское","03627425"]
[187,"Кущевский муниципальный район","Глебовское","03628403"]
[188,"Кущевский муниципальный район","Ильинское","03628404"]
[189,"Кущевский муниципальный район","Кисляковское","03628407"]
[190,"Кущевский муниципальный район","Краснополянское","03628402"]
[191,"Кущевский муниципальный район","Красносельское","03628410"]
[192,"Кущевский муниципальный район","Кущевский муниципальный район","03628000"]
[193,"Кущевский муниципальный район","Кущевское","03628416"]
[194,"Кущевский муниципальный район","Новомихайловское","03628420"]
[195,"Кущевский муниципальный район","Первомайское","03628422"]
[196,"Кущевский муниципальный район","Полтавченское","03628425"]
[197,"Кущевский муниципальный район","Раздольненское","03628428"]
[198,"Кущевский муниципальный район","Среднечубуркское","03628429"]
[199,"Кущевский муниципальный район","Шкуринское","03628431"]
[200,"Лабинский муниципальный район","Ахметовское","03630404"]
[201,"Лабинский муниципальный район","Владимирское","03630416"]
[202,"Лабинский муниципальный район","Вознесенское","03630419"]
[203,"Лабинский муниципальный район","Зассовское","03630425"]
[204,"Лабинский муниципальный район","Каладжинское","03630428"]
[205,"Лабинский муниципальный район","Лабинский муниципальный район","03630000"]
[206,"Лабинский муниципальный район","Лабинское городское","03630101"]
[207,"Лабинский муниципальный район","Лучевое","03630439"]
[208,"Лабинский муниципальный район","Отважненское","03630443"]
[209,"Лабинский муниципальный район","Первосинюхинское","03630446"]
[210,"Лабинский муниципальный район","Сладковское","03630450"]
[211,"Лабинский муниципальный район","Упорненское","03630455"]
[212,"Лабинский муниципальный район","Харьковское","03630458"]
[213,"Лабинский муниципальный район","Чамлыкское","03630437"]
[214,"Ленинградский муниципальный район","Белохуторское","03632401"]
[215,"Ленинградский муниципальный район","Восточное","03632402"]
[216,"Ленинградский муниципальный район","Западное","03632420"]
[217,"Ленинградский муниципальный район","Коржовское","03632403"]
[218,"Ленинградский муниципальный район","Крыловское","03632404"]
[219,"Ленинградский муниципальный район","Куликовское","03632407"]
[220,"Ленинградский муниципальный район","Ленинградский муниципальный район","03632000"]
[221,"Ленинградский муниципальный район","Ленинградское","03632410"]
[222,"Ленинградский муниципальный район","Новоплатнировское","03632413"]
[223,"Ленинградский муниципальный район","Новоуманское","03632414"]
[224,"Ленинградский муниципальный район","Образцовое","03632415"]
[225,"Ленинградский муниципальный район","Первомайское","03632417"]
[226,"Ленинградский муниципальный район","Уманское","03632416"]
[227,"Мостовский муниципальный район","Андрюковское","03633404"]
[228,"Мостовский муниципальный район","Баговское","03633407"]
[229,"Мостовский муниципальный район","Беноковское","03633410"]
[230,"Мостовский муниципальный район","Бесленеевское","03633413"]
[231,"Мостовский муниципальный район","Губское","03633422"]
[232,"Мостовский муниципальный район","Костромское","03633431"]
[233,"Мостовский муниципальный район","Краснокутское","03633434"]
[234,"Мостовский муниципальный район","Махошевское","03633440"]
[235,"Мостовский муниципальный район","Мостовский муниципальный район","03633000"]
[236,"Мостовский муниципальный район","Мостовское городское","03633151"]
[237,"Мостовский муниципальный район","Переправненское","03633449"]
[238,"Мостовский муниципальный район","Псебайское городское","03633156"]
[239,"Мостовский муниципальный район","Унароковское","03633452"]
[240,"Мостовский муниципальный район","Шедокское","03633461"]
[241,"Мостовский муниципальный район","Ярославское","03633464"]
[242,"Новокубанский муниципальный район","Бесскорбненское","03634402"]
[243,"Новокубанский муниципальный район","Верхнекубанское","03634403"]
[244,"Новокубанский муниципальный район","Ковалевское","03634407"]
[245,"Новокубанский муниципальный район","Ляпинское","03634413"]
[246,"Новокубанский муниципальный район","Новокубанский муниципальный район","03634000"]
[247,"Новокубанский муниципальный район","Новокубанское городское","03634101"]
[248,"Новокубанский муниципальный район","Новосельское","03634422"]
[249,"Новокубанский муниципальный район","Прикубанское","03634425"]
[250,"Новокубанский муниципальный район","Прочноокопское","03634428"]
[251,"Новокубанский муниципальный район","Советское","03634431"]
[252,"Новопокровский муниципальный район","Горькобалковское","03635402"]
[253,"Новопокровский муниципальный район","Ильинское","03635404"]
[254,"Новопокровский муниципальный район","Калниболотское","03635407"]
[255,"Новопокровский муниципальный район","Кубанское","03635410"]
[256,"Новопокровский муниципальный район","Незамаевское","03635413"]
[257,"Новопокровский муниципальный район","Новоивановское","03635416"]
[258,"Новопокровский муниципальный район","Новопокровский муниципальный район","03635000"]
[259,"Новопокровский муниципальный район","Новопокровское","03635419"]
[260,"Новопокровский муниципальный район","Покровское","03635422"]
[261,"Отрадненский муниципальный район","Бесстрашненское","03637401"]
[262,"Отрадненский муниципальный район","Благодарненское","03637402"]
[263,"Отрадненский муниципальный район","Красногвардейское","03637404"]
[264,"Отрадненский муниципальный район","Малотенгинское","03637407"]
[265,"Отрадненский муниципальный район","Маякское","03637408"]
[266,"Отрадненский муниципальный район","Надежненское","03637410"]
[267,"Отрадненский муниципальный район","Отрадненский муниципальный район","03637000"]
[268,"Отрадненский муниципальный район","Отрадненское","03637413"]
[269,"Отрадненский муниципальный район","Передовское","03637416"]
[270,"Отрадненский муниципальный район","Подгорненское","03637419"]
[271,"Отрадненский муниципальный район","Подгорно-Синюхинское","03637422"]
[272,"Отрадненский муниципальный район","Попутненское","03637425"]
[273,"Отрадненский муниципальный район","Рудьевское","03637426"]
[274,"Отрадненский муниципальный район","Спокойненское","03637428"]
[275,"Отрадненский муниципальный район","Удобненское","03637431"]
[276,"Павловский муниципальный район","Атаманское","03639402"]
[277,"Павловский муниципальный район","Веселовское","03639404"]
[278,"Павловский муниципальный район","Незамаевское","03639410"]
[279,"Павловский муниципальный район","Новолеушковское","03639413"]
[280,"Павловский муниципальный район","Новопетровское","03639419"]
[281,"Павловский муниципальный район","Новопластуновское","03639422"]
[282,"Павловский муниципальный район","Павловский муниципальный район","03639000"]
[283,"Павловский муниципальный район","Павловское","03639428"]
[284,"Павловский муниципальный район","Северное","03639430"]
[285,"Павловский муниципальный район","Среднечелбасское","03639431"]
[286,"Павловский муниципальный район","Старолеушковское","03639434"]
[287,"Павловский муниципальный район","Упорненское","03639440"]
[288,"Приморско-Ахтарский муниципальный район","Ахтарское","03641401"]
[289,"Приморско-Ахтарский муниципальный район","Бородинское","03641402"]
[290,"Приморско-Ахтарский муниципальный район","Бриньковское","03641404"]
[291,"Приморско-Ахтарский муниципальный район","Новопокровское","03641407"]
[292,"Приморско-Ахтарский муниципальный район","Ольгинское","03641410"]
[293,"Приморско-Ахтарский муниципальный район","Приазовское","03641413"]
[294,"Приморско-Ахтарский муниципальный район","Приморско-Ахтарский муниципальный район","03641000"]
[295,"Приморско-Ахтарский муниципальный район","Приморско-Ахтарское городское","03641101"]
[296,"Приморско-Ахтарский муниципальный район","Свободное","03641416"]
[297,"Приморско-Ахтарский муниципальный район","Степное","03641419"]
[298,"Северский муниципальный район","Азовское","03643402"]
[299,"Северский муниципальный район","Афипское городское","03643152"]
[300,"Северский муниципальный район","Григорьевское","03643404"]
[301,"Северский муниципальный район","Ильское городское","03643155"]
[302,"Северский муниципальный район","Калужское","03643406"]
[303,"Северский муниципальный район","Львовское","03643407"]
[304,"Северский муниципальный район","Михайловское","03643408"]
[305,"Северский муниципальный район","Новодмитриевское","03643410"]
[306,"Северский муниципальный район","Северский муниципальный район","03643000"]
[307,"Северский муниципальный район","Северское","03643413"]
[308,"Северский муниципальный район","Смоленское","03643416"]
[309,"Северский муниципальный район","Черноморское","03643158"]
[310,"Северский муниципальный район","Шабановское","03643419"]
[311,"Сириус","Сириус","03731000"]
[312,"Славянский муниципальный район","Анастасиевское","03645402"]
[313,"Славянский муниципальный район","Ачуевское","03645401"]
[314,"Славянский муниципальный район","Голубая Нива","03645403"]
[315,"Славянский муниципальный район","Забойское","03645404"]
[316,"Славянский муниципальный район","Кировское","03645407"]
[317,"Славянский муниципальный район","Коржевское","03645410"]
[318,"Славянский муниципальный район","Маевское","03645412"]
[319,"Славянский муниципальный район","Петровское","03645413"]
[320,"Славянский муниципальный район","Прибрежное","03645414"]
[321,"Славянский муниципальный район","Прикубанское","03645415"]
[322,"Славянский муниципальный район","Протокское","03645416"]
[323,"Славянский муниципальный район","Рисовое","03645420"]
[324,"Славянский муниципальный район","Славянский муниципальный район","03645000"]
[325,"Славянский муниципальный район","Славянское городское","03645101"]
[326,"Славянский муниципальный район","Целинное","03645425"]
[327,"Славянский муниципальный район","Черноерковское","03645429"]
[328,"Староминский муниципальный район","Канеловское","03647402"]
[329,"Староминский муниципальный район","Куйбышевское","03647404"]
[330,"Староминский муниципальный район","Новоясенское","03647407"]
[331,"Староминский муниципальный район","Рассветовское","03647410"]
[332,"Староминский муниципальный район","Староминский муниципальный район","03647000"]
[333,"Староминский муниципальный район","Староминское","03647413"]
[334,"Тбилисский муниципальный район","Алексее-Тенгинское","03649401"]
[335,"Тбилисский муниципальный район","Ванновское","03649402"]
[336,"Тбилисский муниципальный район","Геймановское","03649404"]
[337,"Тбилисский муниципальный район","Ловлинское","03649407"]
[338,"Тбилисский муниципальный район","Марьинское","03649410"]
[339,"Тбилисский муниципальный район","Нововладимировское","03649413"]
[340,"Тбилисский муниципальный район","Песчаное","03649416"]
[341,"Тбилисский муниципальный район","Тбилисский муниципальный район","03649000"]
[342,"Тбилисский муниципальный район","Тбилисское","03649419"]
[343,"Темрюкский муниципальный район","Ахтанизовское","03651402"]
[344,"Темрюкский муниципальный район","Вышестеблиевское","03651404"]
[345,"Темрюкский муниципальный район","Голубицкое","03651407"]
[346,"Темрюкский муниципальный район","Запорожское","03651410"]
[347,"Темрюкский муниципальный район","Краснострельское","03651413"]
[348,"Темрюкский муниципальный район","Курчанское","03651416"]
[349,"Темрюкский муниципальный район","Новотаманское","03651418"]
[350,"Темрюкский муниципальный район","Сенное","03651419"]
[351,"Темрюкский муниципальный район","Старотитаровское","03651422"]
[352,"Темрюкский муниципальный район","Таманское","03651425"]
[353,"Темрюкский муниципальный район","Темрюкский муниципальный район","03651000"]
[354,"Темрюкский муниципальный район","Темрюкское городское","03651101"]
[355,"Темрюкский муниципальный район","Фонталовское","03651430"]
[356,"Тимашевский муниципальный район","Дербентское","03653402"]
[357,"Тимашевский муниципальный район","Днепровское","03653404"]
[358,"Тимашевский муниципальный район","Кубанец","03653410"]
[359,"Тимашевский муниципальный район","Медведовское","03653413"]
[360,"Тимашевский муниципальный район","Незаймановское","03653416"]
[361,"Тимашевский муниципальный район","Новокорсунское","03653419"]
[362,"Тимашевский муниципальный район","Новоленинское","03653422"]
[363,"Тимашевский муниципальный район","Поселковое","03653425"]
[364,"Тимашевский муниципальный район","Роговское","03653428"]
[365,"Тимашевский муниципальный район","Тимашевский муниципальный район","03653000"]
[366,"Тимашевский муниципальный район","Тимашевское городское","03653101"]
[367,"Тихорецкий муниципальный район","Алексеевское","03654402"]
[368,"Тихорецкий муниципальный район","Архангельское","03654404"]
[369,"Тихорецкий муниципальный район","Братское","03654405"]
[370,"Тихорецкий муниципальный район","Еремизино-Борисовское","03654407"]
[371,"Тихорецкий муниципальный район","Крутое","03654408"]
[372,"Тихорецкий муниципальный район","Новорождественское","03654410"]
[373,"Тихорецкий муниципальный район","Отрадненское","03654413"]
[374,"Тихорецкий муниципальный район","Парковское","03654416"]
[375,"Тихорецкий муниципальный район","Терновское","03654419"]
[376,"Тихорецкий муниципальный район","Тихорецкий муниципальный район","03654000"]
[377,"Тихорецкий муниципальный район","Тихорецкое городское","03654101"]
[378,"Тихорецкий муниципальный район","Фастовецкое","03654422"]
[379,"Тихорецкий муниципальный район","Хоперское","03654425"]
[380,"Тихорецкий муниципальный район","Юго-Северное","03654435"]
[381,"Туапсинский муниципальный район","Вельяминовское","03655404"]
[382,"Туапсинский муниципальный район","Георгиевское","03655407"]
[383,"Туапсинский муниципальный район","Джубгское городское","03655154"]
[384,"Туапсинский муниципальный район","Небугское","03655402"]
[385,"Туапсинский муниципальный район","Новомихайловское городское","03655158"]
[386,"Туапсинский муниципальный район","Октябрьское","03655410"]
[387,"Туапсинский муниципальный район","Тенгинское","03655412"]
[388,"Туапсинский муниципальный район","Туапсинский муниципальный район","03655000"]
[389,"Туапсинский муниципальный район","Туапсинское","03655101"]
[390,"Туапсинский муниципальный район","Шаумянское","03655413"]
[391,"Туапсинский муниципальный район","Шепсинское","03655415"]
[392,"Успенский муниципальный район","Веселовское","03656402"]
[393,"Успенский муниципальный район","Вольненское","03656404"]
[394,"Успенский муниципальный район","Коноковское","03656410"]
[395,"Успенский муниципальный район","Кургоковское","03656413"]
[396,"Успенский муниципальный район","Маламинское","03656416"]
[397,"Успенский муниципальный район","Николаевское","03656419"]
[398,"Успенский муниципальный район","Трехсельское","03656434"]
[399,"Успенский муниципальный район","Убеженское","03656437"]
[400,"Успенский муниципальный район","Урупское","03656440"]
[401,"Успенский муниципальный район","Успенский муниципальный район","03656000"]
[402,"Успенский муниципальный район","Успенское","03656443"]
[403,"Усть-Лабинский муниципальный район","Александровское","03657402"]
[404,"Усть-Лабинский муниципальный район","Братское","03657404"]
[405,"Усть-Лабинский муниципальный район","Вимовское","03657405"]
[406,"Усть-Лабинский муниципальный район","Воронежское","03657407"]
[407,"Усть-Лабинский муниципальный район","Восточное","03657410"]
[408,"Усть-Лабинский муниципальный район","Двубратское","03657412"]
[409,"Усть-Лабинский муниципальный район","Железное","03657413"]
[410,"Усть-Лабинский муниципальный район","Кирпильское","03657416"]
[411,"Усть-Лабинский муниципальный район","Ладожское","03657419"]
[412,"Усть-Лабинский муниципальный район","Ленинское","03657422"]
[413,"Усть-Лабинский муниципальный район","Некрасовское","03657425"]
[414,"Усть-Лабинский муниципальный район","Новолабинское","03657428"]
[415,"Усть-Лабинский муниципальный район","Суворовское","03657431"]
[416,"Усть-Лабинский муниципальный район","Тенгинское","03657433"]
[417,"Усть-Лабинский муниципальный район","Усть-Лабинский муниципальный район","03657000"]
[418,"Усть-Лабинский муниципальный район","Усть-Лабинское городское","03657101"]
[419,"Щербиновский муниципальный район","Глафировское","03659402"]
[420,"Щербиновский муниципальный район","Ейскоукрепленское","03659404"]
[421,"Щербиновский муниципальный район","Екатериновское","03659407"]
[422,"Щербиновский муниципальный район","Николаевское","03659409"]
[423,"Щербиновский муниципальный район","Новощербиновское","03659410"]
[424,"Щербиновский муниципальный район","Старощербиновское","03659413"]
[425,"Щербиновский муниципальный район","Шабельское","03659416"]
[426,"Щербиновский муниципальный район","Щербиновский муниципальный район","03659000"]
[427,"Щербиновский муниципальный район","Щербиновское","03659419"]

{"sheet":"et_union_hor","index":49,"n_rows":295,"n_cols":131,"rows_kept":295,"cut":false,"hidden":true,"merged":[[180,37,185,37],[150,20,151,20],[180,23,181,23],[180,19,182,19],[180,22,181,22],[180,21,181,21],[180,20,182,20],[180,18,182,18],[44,14,44,21],[45,14,45,21],[46,14,46,21],[47,14,47,21],[48,14,48,21],[76,14,76,21],[81,22,83,22],[81,19,82,19],[65,22,67,22],[112,14,112,21],[113,14,113,21],[116,19,117,19],[115,14,115,21],[129,14,129,21],[116,20,117,20],[127,14,127,21],[196,24,197,24],[196,23,197,23],[196,22,197,22],[180,24,181,24],[196,21,197,21],[196,16,199,16],[196,20,198,20],[196,19,198,19],[196,17,198,17],[196,18,198,18],[8,3,11,3],[13,3,16,3],[33,18,34,18],[8,14,9,14],[24,17,25,19],[8,8,10,8],[13,7,15,7],[13,9,15,9],[148,8,153,8],[131,8,136,8],[114,8,119,8],[13,10,15,10],[49,19,50,19],[115,9,118,9],[149,9,152,9],[13,12,14,12],[13,14,14,14],[81,17,82,17],[13,11,14,11],[24,14,24,16],[132,14,132,21],[26,18,26,19],[132,9,135,9],[133,19,134,19],[8,11,9,11],[64,9,67,9],[25,14,26,14],[27,14,27,20],[33,13,34,13],[13,13,14,13],[8,4,11,4],[8,13,9,13],[8,10,10,10],[8,9,10,9],[8,5,11,5],[13,4,16,4],[13,8,15,8],[8,12,9,12],[13,5,16,5],[8,6,11,6],[31,8,36,8],[8,7,10,7],[33,20,34,20],[24,20,26,20],[65,18,66,18],[65,13,66,13],[13,6,16,6],[47,7,52,7],[24,22,26,22],[49,18,50,18],[33,17,34,17],[33,19,34,19],[48,9,51,9],[49,17,50,17],[32,9,35,9],[25,15,25,16],[33,22,35,22],[28,14,28,21],[29,14,29,21],[30,14,30,21],[31,14,31,21],[32,14,32,21],[49,13,50,13],[49,22,51,22],[65,19,66,19],[60,14,60,21],[61,14,61,21],[62,14,62,21],[47,3,52,3],[81,20,82,20],[77,14,77,21],[78,14,78,21],[80,4,83,4],[63,3,68,3],[64,4,67,4],[49,20,50,20],[63,14,63,21],[64,14,64,21],[80,9,83,9],[65,20,66,20],[65,17,66,17],[47,8,52,8],[60,0,71,0],[79,3,84,3],[63,8,68,8],[79,8,84,8],[81,18,82,18],[245,3,246,3],[245,4,246,4],[180,3,184,3],[61,1,70,1],[62,2,69,2],[76,0,87,0],[77,1,86,1],[78,2,85,2],[133,17,134,17],[150,17,151,17],[165,11,169,11],[150,18,151,18],[180,17,182,17],[165,12,169,12],[180,15,183,15],[180,16,183,16],[180,11,184,11],[180,12,184,12],[180,14,183,14],[28,0,39,0],[29,1,38,1],[30,2,37,2],[31,3,36,3],[32,4,35,4],[44,0,55,0],[48,4,51,4],[45,1,54,1],[46,2,53,2],[165,38,170,38],[165,25,166,25],[165,24,166,24],[165,20,167,20],[133,20,134,20],[165,18,167,18],[179,13,179,36],[165,16,168,16],[165,22,166,22],[178,13,178,36],[165,15,168,15],[165,17,168,17],[165,23,166,23],[145,14,145,21],[165,14,168,14],[165,19,167,19],[148,14,148,21],[150,19,151,19],[165,21,167,21],[177,13,177,36],[162,13,162,37],[163,13,163,37],[164,13,164,37],[149,14,149,21],[285,0,293,0],[289,2,291,2],[290,8,291,8],[165,13,169,13],[178,1,186,1],[250,7,251,7],[163,1,171,1],[180,8,184,8],[180,9,184,9],[180,13,183,13],[165,3,169,3],[177,0,187,0],[162,0,172,0],[288,1,292,1],[245,2,246,2],[250,2,251,2],[180,10,184,10],[165,10,169,10],[165,8,169,8],[165,9,169,9],[250,5,251,5],[250,6,251,6],[179,2,185,2],[164,2,170,2],[147,14,147,21],[116,17,117,17],[128,14,128,21],[130,14,130,21],[79,14,79,21],[80,14,80,21],[116,18,117,18],[144,14,144,21],[111,14,111,21],[110,14,110,21],[146,14,146,21],[133,18,134,18],[91,0,103,0],[92,1,102,1],[93,2,101,2],[94,3,100,3],[94,7,100,7],[95,4,99,4],[95,8,99,8],[96,5,98,5],[96,26,97,26],[96,9,98,9],[91,14,91,126],[92,14,92,126],[93,14,93,126],[94,14,94,126],[95,14,95,126],[96,96,97,96],[96,97,97,97],[96,80,97,80],[96,81,97,81],[96,82,97,82],[96,83,97,83],[96,66,97,66],[96,67,97,67],[96,68,97,68],[96,69,97,69],[96,52,97,52],[96,53,97,53],[96,54,97,54],[96,55,97,55],[96,127,99,127],[96,13,97,13],[96,24,97,24],[96,25,97,25],[96,27,97,27],[96,38,97,38],[96,39,97,39],[96,40,97,40],[96,41,97,41],[96,122,97,122],[96,123,97,123],[96,124,97,124],[96,125,97,125],[96,108,97,108],[96,109,97,109],[96,110,97,110],[96,111,97,111],[96,94,97,94],[96,95,97,95]]}
[]
["et_Comm"]
[]
[]
[]
[]
["et_List02(_1,_2,_3)"]
[]
[null,null,null,1,null,null,"нет",null,1,null,"нет",null,"1",null,"нет",null,"1"]
[null,null,null,null,null,null,null,null,null,null,null,null,null,null,null,null,null,"Добавить ЦС ГВС для дифференциации"]
[null,null,null,null,null,null,null,null,null,null,null,null,null,"Добавить территорию для дифференциации"]
[]
[]
[null,null,null,null,null,null,null,null,1,null,"нет",null,"1",null,"нет",null,"1"]
[null,null,null,null,null,null,null,null,null,null,null,null,null,null,null,null,null,"Добавить ЦС ГВС для дифференциации"]
[null,null,null,null,null,null,null,null,null,null,null,null,null,"Добавить территорию для дифференциации"]
[]
[]
["et_List06(_1,_2,_3)",null,"1"]
[]
[]
[]
[]
[]
[null,null,null,null,null,null,null,null,null,null,null,null,null,null,"Величина установленного тарифа",null,null,"Срок действия цены (тарифа) на тепловую энергию (мощность)",null,null,"Наличие других периодов действия тарифа"]
[null,null,null,null,null,null,null,null,null,null,null,null,null,null,"Одноставочный тариф, руб./Гкал","Двухставочный тариф"]
[null,null,null,null,null,null,null,null,null,null,null,null,null,null,null,"ставка за тепловую  энергию, руб./Гкал","ставка за содержание тепловой мощности, тыс.руб./Гкал/ч/мес","дата начала","дата окончания"]
[null,null,null,null,null,null,null,null,null,null,null,null,"7"]
[1,null,null,null,null,null,null,null,null,null,null,{"$f":"mergeValue(A29)","v":1},"Наименование тарифа",null,null,null,null,null,null,null,null,null,"Указывается наименование тарифа в случае утверждения нескольких тарифов.\nВ случае наличия нескольких тарифов информация по ним указывается в отдельных строках."]
[null,1,null,null,null,null,null,null,null,null,null,{"$f":"mergeValue(A30) &\".\"& mergeValue(B30)","v":"1.1"},"Территория действия тарифа",null,null,null,null,null,null,null,null,null,"Указывается наименование территории действия тарифа при наличии дифференциации тарифа по территориальному признаку.\nВ случае дифференциации тарифов по территориальному признаку информация по ним указывается в отдельных строках."]
[null,null,1,null,null,null,null,null,null,null,null,{"$f":"mergeValue(A31) &\".\"& mergeValue(B31)&\".\"& mergeValue(C31)","v":"1.1.1"},"Наименование централизованной системы горячего водоснабжения",null,null,null,null,null,null,null,null,null,"Указывается наименование централизованной системы горячего водоснабжения при наличии дифференциации тарифа по централизованным системам горячего водоснабжения.\nВ случае дифференциации тарифов по централизованным системам горячего водоснабжения информация по ним указывается в отдельных строках."]
[null,null,null,1,null,null,null,null,null,null,null,{"$f":"mergeValue(A32) &\".\"& mergeValue(B32)&\".\"& mergeValue(C32)&\".\"& mergeValue(D32)","v":"1.1.1.1"},"Наименование признака дифференциации",null,null,null,null,null,null,null,null,null,"Указывается наименование дополнительного признака дифференциации (при наличии).\nДифференциация тарифа осуществляется в соответствии с законодательством в сфере водоснабжении и водоотведении.\nВ случае дифференциации тарифов по дополнительным признакам информация по ним указывается в отдельных строках."]
[null,null,null,null,1,null,null,null,null,null,null,{"$f":"mergeValue(A33) &\".\"& mergeValue(B33)&\".\"& mergeValue(C33)&\".\"& mergeValue(D33)&\".\"& mergeValue(E33)","v":"1.1.1.1.1"},"Группа потребителей",null,null,null,null,null,null,null,null,null,"Указывается группа потребителей при наличии дифференциации тарифа по группам потребителей.\nЗначение выбирается из перечня: Организации-перепродавцы; Бюджетные организации; Население; Прочие; Без дифференциации.\nВ случае дифференциации тарифов группам потребителей информация по ним указывается в отдельных строках.",null,{"$f":"strCheckUnique(Z33:Z36)","v":""}]
[null,null,null,null,null,1,null,null,null,null,null,{"$f":"mergeValue(A34) &\".\"& mergeValue(B34)&\".\"& mergeValue(C34)&\".\"& mergeValue(D34)&\".\"& mergeValue(E34)&\".\"& mergeValue(F34)","v":"1.1.1.1.1.1"},null,null,null,null,null,null,"да",null,"нет",null,"В колонке «Параметр дифференциации тарифов» указывается значение дополнительного признака дифференциации.\nПри утверждении двухставочного тарифа колонка «Одноставочный тариф» не заполняется.\nПри утверждении одноставочного тарифа колонки в блоке «Двухставочный тариф» не заполняются.\nДаты начала и окончания действия тарифов указываются в виде «ДД.ММ.ГГГГ».\nВ случае отсутствия даты окончания действия тарифа в колонке «Дата окончания» указывается «Нет».\nВ случае наличия нескольких значений признака дифференциации тарифов информация по ним указывается в отдельных строках.\nВ случае дифференциации тарифов по периодам действия тарифа информация по ним указывается в отдельных колонках.",{"$f":"strCheckDate(O35:V35)","v":""},null,{"$f":"IF(M34=\"\",\"\",M34 )","v":""}]
[null,null,null,null,null,null,null,null,null,null,null,null,null,null,null,null,{"$f":"R34 & \"-\" & T34","v":"-"}]
[null,null,null,null,null,null,null,null,null,null,null,null,"Добавить значение признака дифференциации"]
[null,null,null,null,null,null,null,null,null,null,null,null,"Добавить группу потребителей"]
[null,null,null,null,null,null,null,null,null,null,null,null,"Добавить наименование признака дифференциации"]
[null,null,null,null,null,null,null,null,null,null,null,null,"Добавить наименование системы водоснабжения"]
[null,null,null,null,null,null,null,null,null,null,null,null,"Добавить территорию действия тарифа"]
[null,null,null,null,null,null,null,null,null,null,null,null,"Добавить наименование тарифа"]
[]
["et_List06(_1,_2,_3)",null,"2"]
[]
[1,null,null,null,null,null,null,null,null,null,null,{"$f":"mergeValue(A45)","v":1},"Наименование тарифа",null,null,null,null,null,null,null,null,null,"Указывается наименование тарифа в случае утверждения нескольких тарифов.\nВ случае наличия нескольких тарифов информация по ним указывается в отдельных строках."]
[null,1,null,null,null,null,null,null,null,null,null,{"$f":"mergeValue(A46) &\".\"& mergeValue(B46)","v":"1.1"},"Территория действия тарифа",null,null,null,null,null,null,null,null,null,"Указывается наименование территории действия тарифа при наличии дифференциации тарифа по территориальному признаку.\nВ случае дифференциации тарифов по территориальному признаку информация по ним указывается в отдельных строках."]
[null,null,1,null,null,null,null,null,null,null,null,{"$f":"mergeValue(A47) &\".\"& mergeValue(B47)&\".\"& mergeValue(C47)","v":"1.1.1"},"Наименование централизованной системы горячего водоснабжения",null,null,null,null,null,null,null,null,null,"Указывается наименование централизованной системы горячего водоснабжения при наличии дифференциации тарифа по централизованным системам горячего водоснабжения.\nВ случае дифференциации тарифов по централизованным системам горячего водоснабжения информация по ним указывается в отдельных строках."]
[null,null,null,1,null,null,null,null,null,null,null,{"$f":"mergeValue(A48) &\".\"& mergeValue(B48)&\".\"& mergeValue(C48)&\".\"& mergeValue(D48)","v":"1.1.1.1"},"Наименование признака дифференциации",null,null,null,null,null,null,null,null,null,"Указывается наименование дополнительного признака дифференциации (при наличии).\nДифференциация тарифа осуществляется в соответствии с законодательством в сфере водоснабжения и водоотведения.\nВ случае дифференциации тарифов по дополнительным признакам информация по ним указывается в отдельных строках."]
[null,null,null,null,"1",null,null,null,null,null,null,{"$f":"mergeValue(A49) &\".\"& mergeValue(B49)&\".\"& mergeValue(C49)&\".\"& mergeValue(D49)&\".\"& mergeValue(E49)","v":"1.1.1.1.1"},"Группа потребителей",null,null,null,null,null,null,null,null,null,"Указывается группа потребителей при наличии дифференциации тарифа по группам потребителей.\nЗначение выбирается из перечня: Организации-перепродавцы; Бюджетные организации; Население; Прочие; Без дифференциации.\nВ случае дифференциации тарифов группам потребителей информация по ним указывается в отдельных строках.",null,{"$f":"strCheckUnique(Z49:Z52)","v":""}]
[null,null,null,null,null,1,null,null,null,null,null,{"$f":"mergeValue(A50) &\".\"& mergeValue(B50)&\".\"& mergeValue(C50)&\".\"& mergeValue(D50)&\".\"& mergeValue(E50)&\".\"& mergeValue(F50)","v":"1.1.1.1.1.1"},null,null,null,null,null,null,"да",null,"нет",null,"В колонке «Параметр дифференциации тарифов» указывается значение дополнительного признака дифференциации.\nПри утверждении двухставочного тарифа колонка «Одноставочный тариф» не заполняется.\nПри утверждении одноставочного тарифа колонки в блоке «Двухставочный тариф» не заполняются.\nВ случае утверждения однокомпонентного двухставочного тарифа данные указываются только в блоке «Двухставочный тариф (однокомпонентный)». \nВ случае утверждения двухкомпонентного двухставочного тарифа данные указываются только в блоке «Двухставочный тариф (двухкомпонентный)».\nДаты начала и окончания действия тарифов указываются в виде «ДД.ММ.ГГГГ».\nВ случае отсутствия даты окончания действия тарифа в колонке «Дата окончания» указывается «Нет».\nВ случае наличия нескольких значений признака дифференциации тарифов информация по ним указывается в отдельных строках.\nВ случае дифференциации тарифов по периодам действия тарифа информация по ним указывается в отдельных колонках.\nВ случае дифференциации компонента двухставочного тарифа на холодную воду по поставщикам строка \"Значение признака дифференциации\" не заполняется.\nВ случае отстутствия дифференциации компонента двухставочного тарифа на холодную воду по поставщикам строка \"Наименование поставщика\" не заполняется.",{"$f":"strCheckDate(O51:V51)","v":""},null,{"$f":"IF(M50=\"\",\"\",M50 )","v":""}]
[null,null,null,null,null,null,null,null,null,null,null,null,null,null,null,null,{"$f":"R50 & \"-\" & T50","v":"-"}]
[null,null,null,null,null,null,null,null,null,null,null,null,"Добавить значение признака дифференциации"]
[null,null,null,null,null,null,null,null,null,null,null,null,"Добавить группу потребителей"]
[null,null,null,null,null,null,null,null,null,null,null,null,"Добавить наименование признака дифференциации"]
[null,null,null,null,null,null,null,null,null,null,null,null,"Добавить наименование системы водоснабжения"]
[null,null,null,null,null,null,null,null,null,null,null,null,"Добавить территорию действия тарифа"]
[null,null,null,null,null,null,null,null,null,null,null,null,"Добавить наименование тарифа"]
[]
["et_List06(_1,_2,_3)",null,"3"]
[]
[1,null,null,null,null,null,null,null,null,null,null,{"$f":"mergeValue(A61)","v":1},"Наименование тарифа",null,null,null,null,null,null,null,null,null,"Указывается наименование тарифа в случае утверждения нескольких тарифов.\nВ случае наличия нескольких тарифов информация по ним указывается в отдельных строках."]
[null,1,null,null,null,null,null,null,null,null,null,{"$f":"mergeValue(A62) &\".\"& mergeValue(B62)","v":"1.1"},"Территория действия тарифа",null,null,null,null,null,null,null,null,null,"Указывается наименование территории действия тарифа при наличии дифференциации тарифа по территориальному признаку.\nВ случае дифференциации тарифов по территориальному признаку информация по ним указывается в отдельных строках."]
[null,null,1,null,null,null,null,null,null,null,null,{"$f":"mergeValue(A63) &\".\"& mergeValue(B63)&\".\"& mergeValue(C63)","v":"1.1.1"},"Наименование централизованной системы горячего водоснабжения",null,null,null,null,null,null,null,null,null,"Указывается наименование централизованной системы горячего водоснабжения при наличии дифференциации тарифа по централизованным системам горячего водоснабжения.\nВ случае дифференциации тарифов по централизованным системам горячего водоснабжения информация по ним указывается в отдельных строках."]
[null,null,null,1,null,null,null,null,null,null,null,{"$f":"mergeValue(A64) &\".\"& mergeValue(B64)&\".\"& mergeValue(C64)&\".\"& mergeValue(D64)","v":"1.1.1.1"},"Наименование признака дифференциации",null,null,null,null,null,null,null,null,null,"Указывается наименование дополнительного признака дифференциации (при наличии).\nДифференциация тарифа осуществляется в соответствии с законодательством в сфере водоснабжении и водоотведении.\nВ случае дифференциации тарифов по дополнительным признакам информация по ним указывается в отдельных строках."]
[null,null,null,null,1,null,null,null,null,null,null,{"$f":"mergeValue(A65) &\".\"& mergeValue(B65)&\".\"& mergeValue(C65)&\".\"& mergeValue(D65)&\".\"& mergeValue(E65)","v":"1.1.1.1.1"},"Группа потребителей",null,null,null,null,null,null,null,null,null,"Указывается группа потребителей при наличии дифференциации тарифа по группам потребителей.\nЗначение выбирается из перечня: Организации-перепродавцы; Бюджетные организации; Население; Прочие; Без дифференциации.\nВ случае дифференциации тарифов группам потребителей информация по ним указывается в отдельных строках.",null,{"$f":"strCheckUnique(Z65:Z68)","v":""}]
[null,null,null,null,null,1,null,null,null,null,null,{"$f":"mergeValue(A66) &\".\"& mergeValue(B66)&\".\"& mergeValue(C66)&\".\"& mergeValue(D66)&\".\"& mergeValue(E66)&\".\"& mergeValue(F66)","v":"1.1.1.1.1.1"},null,null,null,null,null,null,"да",null,"нет",null,"В колонке «Параметр дифференциации тарифов» указывается значение дополнительного признака дифференциации.\nПри утверждении двухставочного тарифа колонка «Одноставочный тариф» не заполняется.\nПри утверждении одноставочного тарифа колонки в блоке «Двухставочный тариф» не заполняются.\nДаты начала и окончания действия тарифов указываются в виде «ДД.ММ.ГГГГ».\nВ случае отсутствия даты окончания действия тарифа в колонке «Дата окончания» указывается «Нет».\nВ случае наличия нескольких значений признака дифференциации тарифов информация по ним указывается в отдельных строках.\nВ случае дифференциации тарифов по периодам действия тарифа информация по ним указывается в отдельных колонках.",{"$f":"strCheckDate(O67:V67)","v":""},null,{"$f":"IF(M66=\"\",\"\",M66 )","v":""}]
[null,null,null,null,null,null,null,null,null,null,null,null,null,null,null,null,{"$f":"R66 & \"-\" & T66","v":"-"}]
[null,null,null,null,null,null,null,null,null,null,null,null,"Добавить значение признака дифференциации"]
[null,null,null,null,null,null,null,null,null,null,null,null,"Добавить группу потребителей"]
[null,null,null,null,null,null,null,null,null,null,null,null,"Добавить наименование признака дифференциации"]
[null,null,null,null,null,null,null,null,null,null,null,null,"Добавить наименование системы водоснабжения"]
[null,null,null,null,null,null,null,null,null,null,null,null,"Добавить территорию действия тарифа"]
[null,null,null,null,null,null,null,null,null,null,null,null,"Добавить наименование тарифа"]
[]
["et_List06(_1,_2,_3)",null,"4"]
[]
[1,null,null,null,null,null,null,null,null,null,null,{"$f":"mergeValue(A77)","v":1},"Наименование тарифа",null,null,null,null,null,null,null,null,null,"Указывается наименование тарифа в случае утверждения нескольких тарифов.\nВ случае наличия нескольких тарифов информация по ним указывается в отдельных строках."]
[null,1,null,null,null,null,null,null,null,null,null,{"$f":"mergeValue(A78) &\".\"& mergeValue(B78)","v":"1.1"},"Территория действия тарифа",null,null,null,null,null,null,null,null,null,"Указывается наименование территории действия тарифа при наличии дифференциации тарифа по территориальному признаку.\nВ случае дифференциации тарифов по территориальному признаку информация по ним указывается в отдельных строках."]
[null,null,1,null,null,null,null,null,null,null,null,{"$f":"mergeValue(A79) &\".\"& mergeValue(B79)&\".\"& mergeValue(C79)","v":"1.1.1"},"Наименование централизованной системы горячего водоснабжения",null,null,null,null,null,null,null,null,null,"Указывается наименование централизованной системы горячего водоснабжения при наличии дифференциации тарифа по централизованным системам горячего водоснабжения.\nВ случае дифференциации тарифов по централизованным системам горячего водоснабжения информация по ним указывается в отдельных строках."]
[null,null,null,1,null,null,null,null,null,null,null,{"$f":"mergeValue(A80) &\".\"& mergeValue(B80)&\".\"& mergeValue(C80)&\".\"& mergeValue(D80)","v":"1.1.1.1"},"Наименование признака дифференциации",null,null,null,null,null,null,null,null,null,"Указывается наименование дополнительного признака дифференциации (при наличии).\nДифференциация тарифа осуществляется в соответствии с законодательством в сфере водоснабжении и водоотведении.\nВ случае дифференциации тарифов по дополнительным признакам информация по ним указывается в отдельных строках."]
[null,null,null,null,1,null,null,null,null,null,null,{"$f":"mergeValue(A81) &\".\"& mergeValue(B81)&\".\"& mergeValue(C81)&\".\"& mergeValue(D81)&\".\"& mergeValue(E81)","v":"1.1.1.1.1"},"Группа потребителей",null,null,null,null,null,null,null,null,null,"Указывается группа потребителей при наличии дифференциации тарифа по группам потребителей.\nЗначение выбирается из перечня: Организации-перепродавцы; Бюджетные организации; Население; Прочие; Без дифференциации.\nВ случае дифференциации тарифов группам потребителей информация по ним указывается в отдельных строках.",null,{"$f":"strCheckUnique(Z81:Z84)","v":""}]
[null,null,null,null,null,1,null,null,null,null,null,{"$f":"mergeValue(A82) &\".\"& mergeValue(B82)&\".\"& mergeValue(C82)&\".\"& mergeValue(D82)&\".\"& mergeValue(E82)&\".\"& mergeValue(F82)","v":"1.1.1.1.1.1"},null,null,null,null,null,null,"да",null,"нет",null,"В колонке «Параметр дифференциации тарифов» указывается значение дополнительного признака дифференциации.\nПри утверждении двухставочного тарифа колонка «Одноставочный тариф» не заполняется.\nПри утверждении одноставочного тарифа колонки в блоке «Двухставочный тариф» не заполняются.\nДаты начала и окончания действия тарифов указываются в виде «ДД.ММ.ГГГГ».\nВ случае отсутствия даты окончания действия тарифа в колонке «Дата окончания» указывается «Нет».\nВ случае наличия нескольких значений признака дифференциации тарифов информация по ним указывается в отдельных строках.\nВ случае дифференциации тарифов по периодам действия тарифа информация по ним указывается в отдельных колонках.",{"$f":"strCheckDate(O83:V83)","v":""},null,{"$f":"IF(M82=\"\",\"\",M82 )","v":""}]
[null,null,null,null,null,null,null,null,null,null,null,null,null,null,null,null,{"$f":"R82 & \"-\" & T82","v":"-"}]
[null,null,null,null,null,null,null,null,null,null,null,null,"Добавить значение признака дифференциации"]
[null,null,null,null,null,null,null,null,null,null,null,null,"Добавить группу потребителей"]
[null,null,null,null,null,null,null,null,null,null,null,null,"Добавить наименование признака дифференциации"]
[null,null,null,null,null,null,null,null,null,null,null,null,"Добавить наименование системы водоснабжения"]
[null,null,null,null,null,null,null,null,null,null,null,null,"Добавить территорию действия тарифа"]
[null,null,null,null,null,null,null,null,null,null,null,null,"Добавить наименование тарифа"]
[null,null,null,null,null,null,"et_List06(_1,_2,_3)",null,"5"]
[]
[1,null,null,null,null,null,null,null,null,null,null,{"$f":"mergeValue(A92)","v":1},"Наименование тарифа",null,null,null,null,null,null,null,null,null,null,null,null,null,null,null,null,null,null,null,null,null,null,null,null,null,null,null,null,null,null,null,null,null,null,null,null,null,null,null,null,null,null,null,null,null,null,null,null,null,null,null,null,null,null,null,null,null,null,null,null,null,null,null,null,null,null,null,null,null,null,null,null,null,null,null,null,null,null,null,null,null,null,null,null,null,null,null,null,null,null,null,null,null,null,null,null,null,null,null,null,null,null,null,null,null,null,null,null,null,null,null,null,null,null,"Указывается наименование тарифа в случае утверждения нескольких тарифов.\nВ случае наличия нескольких тарифов информация по ним указывается в отдельных строках."]
[null,1,null,null,null,null,null,null,null,null,null,{"$f":"mergeValue(A93) &\".\"& mergeValue(B93)","v":"1.1"},"Территория действия тарифа",null,null,null,null,null,null,null,null,null,null,null,null,null,null,null,null,null,null,null,null,null,null,null,null,null,null,null,null,null,null,null,null,null,null,null,null,null,null,null,null,null,null,null,null,null,null,null,null,null,null,null,null,null,null,null,null,null,null,null,null,null,null,null,null,null,null,null,null,null,null,null,null,null,null,null,null,null,null,null,null,null,null,null,null,null,null,null,null,null,null,null,null,null,null,null,null,null,null,null,null,null,null,null,null,null,null,null,null,null,null,null,null,null,null,"Указывается наименование территории действия тарифа при наличии дифференциации тарифа по территориальному признаку.\nВ случае дифференциации тарифов по территориальному признаку информация по ним указывается в отдельных строках."]
[null,null,1,null,null,null,null,null,null,null,null,{"$f":"mergeValue(A94) &\".\"& mergeValue(B94)&\".\"& mergeValue(C94)","v":"1.1.1"},"Наименование централизованной системы горячего водоснабжения",null,null,null,null,null,null,null,null,null,null,null,null,null,null,null,null,null,null,null,null,null,null,null,null,null,null,null,null,null,null,null,null,null,null,null,null,null,null,null,null,null,null,null,null,null,null,null,null,null,null,null,null,null,null,null,null,null,null,null,null,null,null,null,null,null,null,null,null,null,null,null,null,null,null,null,null,null,null,null,null,null,null,null,null,null,null,null,null,null,null,null,null,null,null,null,null,null,null,null,null,null,null,null,null,null,null,null,null,null,null,null,null,null,null,"Указывается наименование централизованной системы горячего водоснабжения при наличии дифференциации тарифа по централизованным системам горячего водоснабжения.\nВ случае дифференциации тарифов по централизованным системам горячего водоснабжения информация по ним указывается в отдельных строках."]
[null,null,null,1,null,null,null,null,null,null,null,{"$f":"mergeValue(A95) &\".\"& mergeValue(B95)&\".\"& mergeValue(C95)&\".\"& mergeValue(D95)","v":"1.1.1.1"},"Наименование признака дифференциации",null,null,null,null,null,null,null,null,null,null,null,null,null,null,null,null,null,null,null,null,null,null,null,null,null,null,null,null,null,null,null,null,null,null,null,null,null,null,null,null,null,null,null,null,null,null,null,null,null,null,null,null,null,null,null,null,null,null,null,null,null,null,null,null,null,null,null,null,null,null,null,null,null,null,null,null,null,null,null,null,null,null,null,null,null,null,null,null,null,null,null,null,null,null,null,null,null,null,null,null,null,null,null,null,null,null,null,null,null,null,null,null,null,null,"Указывается наименование дополнительного признака дифференциации (при наличии).\nДифференциация тарифа осуществляется в соответствии с законодательством в сфере водоснабжения и водоотведения.\nВ случае дифференциации тарифов по дополнительным признакам информация по ним указывается в отдельных строках."]
[null,null,null,null,"1",null,null,null,null,null,null,{"$f":"mergeValue(A96) &\".\"& mergeValue(B96)&\".\"& mergeValue(C96)&\".\"& mergeValue(D96)&\".\"& mergeValue(E96)","v":"1.1.1.1.1"},"Группа потребителей",null,null,null,null,null,null,null,null,null,null,null,null,null,null,null,null,null,null,null,null,null,null,null,null,null,null,null,null,null,null,null,null,null,null,null,null,null,null,null,null,null,null,null,null,null,null,null,null,null,null,null,null,null,null,null,null,null,null,null,null,null,null,null,null,null,null,null,null,null,null,null,null,null,null,null,null,null,null,null,null,null,null,null,null,null,null,null,null,null,null,null,null,null,null,null,null,null,null,null,null,null,null,null,null,null,null,null,null,null,null,null,null,null,null,"Указывается группа потребителей при наличии дифференциации тарифа по группам потребителей.\nЗначение выбирается из перечня: Организации-перепродавцы; Бюджетные организации; Население; Прочие; Без дифференциации.\nВ случае дифференциации тарифов группам потребителей информация по ним указывается в отдельных строках.",null,{"$f":"strCheckUnique(EA96:EA100)","v":""}]
[null,null,null,null,null,1,null,null,null,null,null,{"$f":"mergeValue(A97) &\".\"& mergeValue(B97)&\".\"& mergeValue(C97)&\".\"& mergeValue(D97)&\".\"& mergeValue(E97)&\".\"& mergeValue(F97)","v":"1.1.1.1.1.1"},null,null,null,null,null,null,null,null,null,null,null,null,null,"да",null,"да",null,null,null,null,null,null,null,null,null,null,null,"да",null,"да",null,null,null,null,null,null,null,null,null,null,null,"да",null,"да",null,null,null,null,null,null,null,null,null,null,null,"да",null,"да",null,null,null,null,null,null,null,null,null,null,null,"да",null,"да",null,null,null,null,null,null,null,null,null,null,null,"да",null,"да",null,null,null,null,null,null,null,null,null,null,null,"да",null,"да",null,null,null,null,null,null,null,null,null,null,null,"да",null,"нет",null,"В колонке «Параметр дифференциации тарифов» указывается значение дополнительного признака дифференциации.\nПри утверждении двухставочного тарифа колонка «Одноставочный тариф» не заполняется.\nПри утверждении одноставочного тарифа колонки в блоке «Двухставочный тариф» не заполняются.\nВ случае утверждения однокомпонентного двухставочного тарифа данные указываются только в блоке «Двухставочный тариф (однокомпонентный)». \nВ случае утверждения двухкомпонентного двухставочного тарифа данные указываются только в блоке «Двухставочный тариф (двухкомпонентный)».\nДаты начала и окончания действия тарифов указываются в виде «ДД.ММ.ГГГГ».\nВ случае отсутствия даты окончания действия тарифа в колонке «Дата окончания» указывается «Нет».\nВ случае наличия нескольких значений признака дифференциации тарифов информация по ним указывается в отдельных строках.\nВ случае дифференциации тарифов по периодам действия тарифа информация по ним указывается в отдельных колонках.\nВ случае дифференциации компонента двухставочного тарифа на холодную воду по поставщикам строка \"Значение признака дифференциации\" не заполняется.\nВ случае отстутствия дифференциации компонента двухставочного тарифа на холодную воду по поставщикам строка \"Наименование поставщика\" не заполняется.",{"$f":"strCheckDate(O98:DW98)","v":""},null,{"$f":"IF(M97=\"\",\"\",M97 )","v":""}]
[null,null,null,null,null,null,null,null,null,null,null,null,null,null,null,null,null,{"$f":"Y97 & \"-\" & AA97","v":"-"},null,null,null,null,null,null,null,null,null,null,null,null,null,{"$f":"AM97 & \"-\" & AO97","v":"-"},null,null,null,null,null,null,null,null,null,null,null,null,null,{"$f":"BA97 & \"-\" & BC97","v":"-"},null,null,null,null,null,null,null,null,null,null,null,null,null,{"$f":"BO97 & \"-\" & BQ97","v":"-"},null,null,null,null,null,null,null,null,null,null,null,null,null,{"$f":"CC97 & \"-\" & CE97","v":"-"},null,null,null,null,null,null,null,null,null,null,null,null,null,{"$f":"CQ97 & \"-\" & CS97","v":"-"},null,null,null,null,null,null,null,null,null,null,null,null,null,{"$f":"DE97 & \"-\" & DG97","v":"-"},null,null,null,null,null,null,null,null,null,null,null,null,null,{"$f":"DS97 & \"-\" & DU97","v":"-"}]
[]
[null,null,null,null,null,null,null,null,null,null,null,null,"Добавить значение признака дифференциации"]
[null,null,null,null,null,null,null,null,null,null,null,null,"Добавить группу потребителей"]
[null,null,null,null,null,null,null,null,null,null,null,null,"Добавить наименование признака дифференциации"]
[null,null,null,null,null,null,null,null,null,null,null,null,"Добавить наименование системы водоснабжения"]
[null,null,null,null,null,null,null,null,null,null,null,null,"Добавить территорию действия тарифа"]
[null,null,null,null,null,null,null,null,null,null,null,null,"Добавить наименование тарифа"]
[null,null,null,null,null,null,1,null,null,null,null,{"$f":"mergeValue(A106) &\".\"& mergeValue(B106)&\".\"& mergeValue(C106)&\".\"& mergeValue(D106)&\".\"& mergeValue(E106)&\".\"& mergeValue(F106)&\".\"& mergeValue(G106)","v":"......1"},null,null,null,null,null,null,null,null,null,null,null,null,null,"нет",null,null,null,null,null,null,null,null,null,null,null,null,null,"нет",null,null,null,null,null,null,null,null,null,null,null,null,null,"нет",null,null,null,null,null,null,null,null,null,null,null,null,null,"нет",null,null,null,null,null,null,null,null,null,null,null,null,null,"нет",null,null,null,null,null,null,null,null,null,null,null,null,null,"нет",null,null,null,null,null,null,null,null,null,null,null,null,null,"нет",null,null,null,null,null,null,null,null,null,null,null,null,null,"нет"]
[]
[]
[null,null,null,null,null,null,"et_List06(_1,_2,_3)",null,"6"]
[]
[null,null,null,null,null,null,null,null,null,null,null,"1","Наименование тарифа"]
[null,null,null,null,null,null,null,null,null,null,null,"1.1","Территория действия тарифа"]
[null,null,null,null,null,null,null,null,null,null,null,"1.1.1","Наименование системы теплоснабжения "]
[null,null,null,null,null,null,null,null,null,null,null,"1.1.1.1","Источник тепловой энергии  "]
[]
[null,null,null,null,null,null,null,null,null,null,null,"1.1.1.1.1.1","Группа потребителей",null,null,null,null,null,null,null,null,null,null,null,{"$f":"strCheckUnique(Z116:Z119)","v":""}]
[null,null,null,null,null,null,null,1,null,null,null,null,null,null,null,null,null,null,"да",null,"нет",null,null,{"$f":"strCheckDate(O118:V118)","v":""},null,{"$f":"IF(M117=\"\",\"\",M117 )","v":""}]
[null,null,null,null,null,null,null,null,null,null,null,null,null,null,null,null,{"$f":"R117 & \"-\" & T117","v":"-"}]
[null,null,null,null,null,null,null,null,null,null,null,null,"Добавить вид теплоносителя (параметры теплоносителя)"]
[null,null,null,null,null,null,null,null,null,null,null,null,"Добавить группу потребителей"]
[]
[null,null,null,null,null,null,null,null,null,null,null,null,"Добавить источник тепловой энергии"]
[null,null,null,null,null,null,null,null,null,null,null,null,"Добавить наименование системы теплоснабжения"]
[null,null,null,null,null,null,null,null,null,null,null,null,"Добавить территорию действия тарифа"]
[]
[null,null,null,null,null,null,"et_List06(_1,_2,_3)",null,"7"]
[]
[null,null,null,null,null,null,null,null,null,null,null,"1","Наименование тарифа"]
[null,null,null,null,null,null,null,null,null,null,null,"1.1","Территория действия тарифа"]
[null,null,null,null,null,null,null,null,null,null,null,"1.1.1","Наименование системы теплоснабжения "]
[null,null,null,null,null,null,null,null,null,null,null,"1.1.1.1","Источник тепловой энергии  "]
[]
[null,null,null,null,null,null,null,null,null,null,null,"1.1.1.1.1.1","Группа потребителей",null,null,null,null,null,null,null,null,null,null,null,{"$f":"strCheckUnique(Z133:Z136)","v":""}]
[null,null,null,null,null,null,null,1,null,null,null,null,null,null,null,null,null,null,"да",null,"нет",null,null,{"$f":"strCheckDate(O135:V135)","v":""},null,{"$f":"IF(M134=\"\",\"\",M134 )","v":""}]
[null,null,null,null,null,null,null,null,null,null,null,null,null,null,null,null,{"$f":"R134 & \"-\" & T134","v":"-"}]
[null,null,null,null,null,null,null,null,null,null,null,null,"Добавить вид теплоносителя (параметры теплоносителя)"]
[null,null,null,null,null,null,null,null,null,null,null,null,"Добавить группу потребителей"]
[]
[null,null,null,null,null,null,null,null,null,null,null,null,"Добавить источник тепловой энергии"]
[null,null,null,null,null,null,null,null,null,null,null,null,"Добавить наименование системы теплоснабжения"]
[null,null,null,null,null,null,null,null,null,null,null,null,"Добавить территорию действия тарифа"]
[]
[null,null,null,null,null,null,"et_List06(_1,_2,_3)",null,"8"]
[]
[null,null,null,null,null,null,null,null,null,null,null,"1","Наименование тарифа"]
[null,null,null,null,null,null,null,null,null,null,null,"1.1","Территория действия тарифа"]
[null,null,null,null,null,null,null,null,null,null,null,"1.1.1","Наименование системы теплоснабжения "]
[null,null,null,null,null,null,null,null,null,null,null,"1.1.1.1","Источник тепловой энергии  "]
[null,null,null,null,null,null,null,null,null,null,null,"1.1.1.1.1","Схема подключения теплопотребляющей установки к коллектору источника тепловой энергии"]
[null,null,null,null,null,null,null,null,null,null,null,"1.1.1.1.1.1","Группа потребителей",null,null,null,null,null,null,null,null,null,null,null,{"$f":"strCheckUnique(Z150:Z153)","v":""}]
[null,null,null,null,null,null,null,1,null,null,null,null,null,null,null,null,null,null,"да",null,"нет",null,null,{"$f":"strCheckDate(O152:V152)","v":""},null,{"$f":"IF(M151=\"\",\"\",M151 )","v":""}]
[null,null,null,null,null,null,null,null,null,null,null,null,null,null,null,null,{"$f":"R151 & \"-\" & T151","v":"-"}]
[null,null,null,null,null,null,null,null,null,null,null,null,"Добавить вид теплоносителя (параметры теплоносителя)"]
[null,null,null,null,null,null,null,null,null,null,null,null,"Добавить группу потребителей"]
[null,null,null,null,null,null,null,null,null,null,null,null,"Добавить схему подключения"]
[null,null,null,null,null,null,null,null,null,null,null,null,"Добавить источник тепловой энергии"]
[null,null,null,null,null,null,null,null,null,null,null,null,"Добавить наименование системы теплоснабжения"]
[null,null,null,null,null,null,null,null,null,null,null,null,"Добавить территорию действия тарифа"]
[]
["et_List06(_1,_2,_3)",null,"9"]
[]
[]
[1,null,null,null,null,null,null,null,null,null,null,{"$f":"mergeValue(A163)","v":1},"Наименование тарифа",null,null,null,null,null,null,null,null,null,null,null,null,null,null,null,null,null,null,null,null,null,null,null,null,null,"Указывается наименование тарифа в случае утверждения нескольких тарифов.\nВ случае наличия нескольких тарифов информация по ним указывается в отдельных строках."]
[null,1,null,null,null,null,null,null,null,null,null,{"$f":"mergeValue(A164) &\".\"& mergeValue(B164)","v":"1.1"},"Территория действия тарифа",null,null,null,null,null,null,null,null,null,null,null,null,null,null,null,null,null,null,null,null,null,null,null,null,null,"Указывается наименование территории действия тарифа при наличии дифференциации тарифа по территориальному признаку.\nВ случае дифференциации тарифов по территориальному признаку информация по ним указывается в отдельных строках."]
[null,null,1,null,null,null,null,null,null,null,null,{"$f":"mergeValue(A165) &\".\"& mergeValue(B165)&\".\"& mergeValue(C165)","v":"1.1.1"},"Наименование централизованной системы горячего водоснабжения",null,null,null,null,null,null,null,null,null,null,null,null,null,null,null,null,null,null,null,null,null,null,null,null,null,"Указывается наименование централизованной системы горячего водоснабжения при наличии дифференциации тарифа по централизованным системам горячего водоснабжения.\nВ случае дифференциации тарифов по централизованным системам  горячего водоснабжения информация по ним указывается в отдельных строках."]
[null,null,null,1,null,null,null,null,null,null,null,{"$f":"mergeValue(A166) &\".\"& mergeValue(B166)&\".\"& mergeValue(C166)&\".\"& mergeValue(D166)","v":"1.1.1.1"},null,"да",null,"1",null,"нет",null,1,null,"нет",null,1,null,"нет",null,1,null,null,null,null,null,null,"да",null,"нет",null,"В колонке «Параметр дифференциации тарифа/Заявитель» указывается наименование категории потребителей, к которой относится тариф.\nДаты начала и окончания указываются в виде «ДД.ММ.ГГГГ».\nВ случае отсутствия даты окончания тарифа в колонке «Дата окончания» указывается «Нет».\nВ случае наличия дифференциации по подключаемой нагрузке, диапазону диаметров, протяженности, условиям прокладки водопроводной сети информация по ним указывается в отдельных строках.\nВ случае дифференциации тарифов по периодам действия тарифа информация по ним указывается в отдельных колонках.",{"$f":"strCheckDateOnDP(AD166:AL166,List06_9_DP)","v":""},{"$f":"IF(AND(COUNTIF(AP162:AP162,AP166)>1,AP166<>\"\"),\"ErrUnique:HasDoubleConn\",\"\")","v":""}]
[null,null,null,null,null,null,null,null,null,null,null,null,null,null,null,null,null,null,null,null,null,null,null,null,null,null,null,null,null,null,null,null,{"$f":"AH166 & \"-\" & AJ166","v":"-"},null,null,null,"нет"]
[]
[]
[null,null,null,null,null,null,null,null,null,null,null,null,null,null,null,null,"Добавить подключаемую нагрузку"]
[null,null,null,null,null,null,null,null,null,null,null,null,"Добавить строку"]
[null,null,null,null,null,null,null,null,null,null,null,null,"Добавить наименование системы водоснабжения"]
[null,null,null,null,null,null,null,null,null,null,null,null,"Добавить территорию действия тарифа"]
[null,null,null,null,null,null,null,null,null,null,null,null,"Добавить наименование тарифа"]
[]
["et_List06(_1,_2,_3)",null,"10"]
[]
[1,null,null,null,null,null,null,null,null,null,null,{"$f":"mergeValue(A178)","v":1},"Наименование тарифа",null,null,null,null,null,null,null,null,null,null,null,null,null,null,null,null,null,null,null,null,null,null,null,null,"Указывается наименование тарифа в случае утверждения нескольких тарифов.\nВ случае наличия нескольких тарифов информация по ним указывается в отдельных строках."]
[null,1,null,null,null,null,null,null,null,null,null,{"$f":"mergeValue(A179) &\".\"& mergeValue(B179)","v":"1.1"},"Территория действия тарифа",null,null,null,null,null,null,null,null,null,null,null,null,null,null,null,null,null,null,null,null,null,null,null,null,"Указывается наименование территории действия тарифа при наличии дифференциации тарифа по территориальному признаку.\nВ случае дифференциации тарифов по территориальному признаку информация по ним указывается в отдельных строках."]
[null,null,1,null,null,null,null,null,null,null,null,{"$f":"mergeValue(A180) &\".\"& mergeValue(B180)&\".\"& mergeValue(C180)","v":"1.1.1"},"Наименование централизованной системы горячего водоснабжения",null,null,null,null,null,null,null,null,null,null,null,null,null,null,null,null,null,null,null,null,null,null,null,null,"Указывается наименование централизованной системы горячего водоснабжения при наличии дифференциации тарифа по централизованным системам горячего водоснабжения.\nВ случае дифференциации тарифов по централизованным системам  горячего водоснабжения информация по ним указывается в отдельных строках."]
[null,null,null,1,null,null,null,null,null,null,null,{"$f":"mergeValue(A181) &\".\"& mergeValue(B181)&\".\"& mergeValue(C181)&\".\"& mergeValue(D181)","v":"1.1.1.1"},null,null,"1",null,"нет",null,1,null,"нет",null,"1",null,"нет",null,1,null,null,null,null,null,null,"да",null,"нет",null,"В колонке «Параметр дифференциации тарифа/Заявитель» указывается наименование категории потребителей, к которой относится тариф.\nДаты начала и окончания указываются в виде «ДД.ММ.ГГГГ».\nВ случае отсутствия даты окончания тарифа в колонке «Дата окончания» указывается «Нет».\nВ случае наличия дифференциации по подключаемой нагрузке, диапазону диаметров, протяженности, условиям прокладки водопроводной сети информация по ним указывается в отдельных строках.\nВ случае дифференциации тарифов по периодам действия тарифа информация по ним указывается в отдельных колонках.",{"$f":"strCheckDateOnDP(AC181:AK181,List06_10_DP)","v":""},{"$f":"IF(AND(COUNTIF(AO177:AO177,AO181)>1,AO181<>\"\"),\"ErrUnique:HasDoubleConn\",\"\")","v":""}]
[null,null,null,null,null,null,null,null,null,null,null,null,null,null,null,null,null,null,null,null,null,null,null,null,null,null,null,null,null,null,null,{"$f":"AG181 & \"-\" & AI181","v":"-"},null,null,null,"нет"]
[]
[]
[null,null,null,null,null,null,null,null,null,null,null,null,null,null,null,"Добавить подключаемую нагрузку"]
[null,null,null,null,null,null,null,null,null,null,null,null,"Добавить строку"]
[null,null,null,null,null,null,null,null,null,null,null,null,"Добавить наименование системы водоснабжения"]
[null,null,null,null,null,null,null,null,null,null,null,null,"Добавить территорию действия тарифа"]
[null,null,null,null,null,null,null,null,null,null,null,null,"Добавить наименование тарифа"]
[]
[]
[]
[]
[]
[]
[]
[null,null,null,null,null,null,null,null,null,null,null,null,null,null,null,null,"нет",null,1,null,"да",null,1,null,"да",null,1]
[null,null,null,null,null,null,null,null,null,null,null,null,null,null,null,null,null,null,null,null,null,null,null,null,null,null,null,"Добавить условия прокладки сетей"]
[null,null,null,null,null,null,null,null,null,null,null,null,null,null,null,null,null,null,null,null,null,null,null,"Добавить протяженность водопроводной сети"]
[]
[]
[]
["et_List07"]
[]
[]
[]
["et_List06"]
[]
[null,null,null,null,1]
[]
["et_List07"]
[]
[null,null,null,null,"1"]
[]
["et_List08"]
[]
[null,null,null,null,"1"]
[]
["et_List00_01","et_List00_02","et_List00_03"]
[]
[null,null,null,null,null,"Адрес регулируемой организации"]
[null,null,null,null,"Юридический адрес"]
[null,null,null,null,"Почтовый адрес"]
[]
[null,null,null,null,null,"Руководитель"]
[null,null,null,null,"Фамилия, имя, отчество"]
[null,null,null,null,"(код) номер телефона"]
[]
[null,null,null,null,null,"Главный бухгалтер"]
[null,null,null,null,"Фамилия, имя, отчество"]
[null,null,null,null,"(код) номер телефона"]
[]
[null,null,null,null,null,"Должностное лицо, ответственное за составление формы"]
[null,null,null,null,"Фамилия, имя, отчество"]
[null,null,null,null,"Должность"]
[null,null,null,null,"(код) номер телефона"]
[null,null,null,null,"e-mail"]
[]
["et_List03"]
[]
["3","",null,null,null,"","","",null,null,null,null,{"$f":"IF(ISERROR(INDEX(kind_of_nameforms,MATCH(E241,kind_of_forms,0),1)),\"\",INDEX(kind_of_nameforms,MATCH(E241,kind_of_forms,0),1))","v":""}]
[]
[]
["et_List01_0"]
[]
[null,"auto",null,1,null,null,0,null,null,"0",null,null,{"$f":"mergeValue(H246)","v":0},null,null,{"$f":"IF(ISERROR(MATCH(Q246,MODesc,0)),\"n\",\"y\")","v":"n"},null,{"$f":"K246&\"(\"&L246&\")\"","v":"()"}]
[null,null,null,null,null,null,null,"Добавить МР"]
[]
["et_List01_1"]
[]
[null,"auto",null,null,null,null,0,null,null,"0",null,null,{"$f":"mergeValue(H251)","v":0},null,null,null,null,{"$f":"K251&\"(\"&L251&\")\"","v":"()"}]
[null,null,null,null,null,null,null,null,null,null,"Добавить МО"]
[]
["et_List01_2"]
[]
[null,"auto",null,null,null,null,null,null,null,0,null,null,{"$f":"mergeValue(H256)","v":0},null,null,null,null,{"$f":"K256&\" (\"&L256&\")\"","v":" ()"}]
[]
[]
["et_List11_1"]
[]
[]
[]
[]
["et_List12_1"]
[]
[null,null,null,null,null,"x","x"]
[]
[]
["et_List12_2"]
[]
[null,null,null,null,null,"x",null,"x"]
[]
[]
["et_List12_3"]
[]
[null,null,null,null,{"$f":"E275","v":0},"x",null,"x"]
[]
[]
["et_List12_4"]
[]
[null,null,null,null,{"$f":"E280","v":0},"x",null,"x"]
[]
[]
["et_List05(_1,_2,_3,_4)"]
[]
[1,null,null,null,null,{"$f":"\"2.\" &mergeValue(A286)","v":"2.1"},"Наименование централизованной системы коммунальной инфраструктуры",null,"Указывается наименование централизованной системы холодного водоснабжения/горячего водоснабжения/водоотведения/теплоснабжения, к которой относится размещаемая информация.\nВ случае наличия нескольких централизованных систем коммунальной инфраструктуры, информация по каждой из них указывается в отдельной строке."]
[null,null,null,null,null,{"$f":"\"3.\" &mergeValue(A287)","v":"3.1"},"Наименование регулируемого вида деятельности",null,"Указывается наименование вида регулируемой деятельности."]
[null,null,null,null,null,{"$f":"\"4.\"&mergeValue(A288)","v":"4.1"},"Территория оказания услуги по регулируемому виду деятельности","x"]
[null,1,null,null,null,{"$f":"\"4.\"&mergeValue(A289) &\".\"&mergeValue(B289)","v":"4.1.1"},"Субъект Российской Федерации",{"$f":"IF(region_name=\"\",\"\",region_name)","v":"Краснодарский край"},"Указывается наименование субъекта Российской Федерации"]
[null,null,1,null,null,{"$f":"\"4.\"&mergeValue(A290) &\".\"&mergeValue(B290)&\".\"&mergeValue(C290)","v":"4.1.1.1"},"муниципальный район",null,"Указывается наименование муниципального района, на территории которого организация оказывает услуги по регулируемому виду деятельности."]
[null,null,null,1,null,{"$f":"\"4.\"&mergeValue(A291) &\".\"&mergeValue(B291)&\".\"&mergeValue(C291)&\".\"&mergeValue(D291)","v":"4.1.1.1.1"},"муниципальное образование",null,"Указывается наименование и код муниципального района, муниципального образования в соответствии с Общероссийским классификатором территорий муниципальных образований (далее - ОКТМО), входящего в муниципальный район, на территории которого организация оказывает услуги по регулируемому виду деятельности.\nВ случае оказания услуг по регулируемому виду деятельности на территории нескольких муниципальных районов (муниципальных образований) данные по каждому их них указываются в отдельной строке."]
[null,null,null,null,null,null,"Добавить МО"]
[null,null,null,null,null,null,"Добавить МР"]
[null,null,null,null,null,null,"Добавить территорию"]
[null,null,null,null,null,null,"Добавить ЦС"]

{"sheet":"TEHSHEET","index":50,"n_rows":87,"n_cols":53,"rows_kept":87,"cut":false,"hidden":true,"merged":[[0,51,0,52]]}
["REGION","year_list1","year_list","logical","Месяц\n(MONTH)","Квартал\n(QUARTER)","Месяц\n(kind_of_publication)","НДС\n/kind_of_NDS/","Номер СЦХВ(СЦВО)\n/SKI_number/","Единица измерения объема оказываемых услуг ГВС\n/kind_of_unit_GVS/","Метод регулирования\n/kind_of_control_method/",null,null,"Вид деятельности, на которую установлен тариф /kind_of_activity_WARM/","Вид теплоносителя\n(kind_of_heat_transfer)","Тип данных\n(kind_of_data_type)","Схема подключения\n(kind_of_scheme_in)\n(kind_of_scheme_in2)","Группы потребителей\n(kind_of_cons)","Тип прокладки тепловых сетей\n(kind_of_nets)","Диапазаны диаметров тепловых сетей\n(kind_of_diameters)","Подключаемая тепловая нагрузка\n(kind_of_load)",null,"Форма 2, таблица Х","виды тарифа\n/kind_group_rates/","Заголовок таблицы",null,"name_rates_4",null,"name_rates_8",null,null,"Подключаемая тепловая нагрузка\n(kind_of_load3)",null,"Вид теплоносителя\n(kind_of_heat_transfer2)","Вид теплоносителя\n(kind_of_heat_transfer3)",null,"Вид топлива\n(kind_of_fuel)",null,"Способ закупки товаров\n(kind_of_zak)",null,null,"виды тарифа\n/kind_group_rates_load/","виды тарифа\n/kind_group_rates_load_filter/",null,"виды признаков дифференциации\n/kind_of_diff/",null,"Диапазаны диаметров водопроводных сетей\n(kind_of_diameters2)",null,"List_H","List_M",null,"Перечень форм\n(kind_of_forms)"]
["Алтайский край",2000,2013,"да","январь","I квартал","На официальном сайте организации","общий","1","тыс.куб.м/сутки","метод экономически обоснованных расходов (затрат)","метод экономически обоснованных расходов (затрат)",1,"Передача+Сбыт","Без дифференциации","первичное раскрытие информации","без дифференциации","организации-перепродавцы","надземная (наземная)","50 - 250 мм","не превышает 0,1 Гкал/ч",1,null,111,null,null,"Тариф на холодную воду питьевую","Тариф на холодную воду питьевую","Плата за услуги по поддержанию резервной тепловой мощности при отсутствии потребления тепловой энергии для отдельных категорий (групп) социально значимых потребителей","Плата за услуги по поддержанию резервной тепловой мощности при отсутствии потребления тепловой энергии для отдельных категорий (групп) социально значимых потребителей",null,"не превышает 0,1 Гкал/ч",null,"Вода","Вода",null,"Газ природный по регулируемой цене",null,"Конкурс",null,null,"Тариф на горячую воду в закрытой системе горячего водоснабжения (горячее водоснабжение)","Тариф на транспортировку горячей воды",null,"объемы потребления воды абонентами",null,"40 мм и менее",null,"00","00",null,"Форма 1.0.1","Основные параметры раскрываемой информации"]
["Амурская область",2001,2014,"нет","февраль","II квартал","На сайте регулирующего органа","общий с учетом освобождения от уплаты НДС","2","Гкал/ч","метод индексации установленных тарифов","метод индексации установленных тарифов",2,"Передача","Горячая вода","изменения в раскрытой ранее информации","к коллектору источника тепловой энергии","бюджетные организации","подземная (канальная)","251 - 400 мм","более 0,1 Гкал/ч и не превышает 1,5 Гкал/ч",2,null,"Тариф на транспортировку горячей воды","Форма 2.2 Информация о величинах тарифов на питьевую воду (питьевое водоснабжение), техническую воду, транспортировку воды, подвоз воды1",null,"Тариф на холодную воду артезианскую","Тариф на холодную воду артезианскую","Плата за услуги по поддержанию резервной тепловой мощности, оказываемые регулируемой организацией, мощность источников тепловой энергии которой используется для поддержания резервной мощности в соответствии со схемой теплоснабжения","Плата за услуги по поддержанию резервной тепловой мощности, оказываемые регулируемой организацией, мощность источников тепловой энергии которой используется для поддержания резервной мощности в соответствии со схемой теплоснабжения",null,"более 0,1 Гкал/ч и не превышает 1,5 Гкал/ч",null,"Отборный пар, 1,2-2,5 кг/см2","Пар",null,"Газ природный по нерегулируемой цене",null,"Аукцион",null,null,"Тариф на транспортировку горячей воды","Тариф на подключение к централизованной системе горячего водоснабжения",null,"соответствие качества питьевой воды и горячей воды требованиям, установленным санитарными нормами и правилами",null,"от 41 мм до 70 мм включительно",null,"01","01",null,"Форма 1.2","Информация о величинах тарифов на горячую воду, транспортировку воды"]
["Архангельская область",2002,2015,null,"март","III квартал",null,"специальный (упрощенная система налогообложения, система налогообложения для сельскохозяйственных производителей)","3","куб.м/ч","метод обеспечения доходности инвестированного капитала","метод обеспечения доходности инвестированного капитала",3,"производство комбинированная выработка","Холодная вода",null,"к тепловой сети без дополнительного преобразования на тепловых пунктах, эксплуатируемых теплоснабжающей организацией","население и приравненные категории","подземная (бесканальная)","401 - 550 мм","превышает 1,5 Гкал/ч при наличии технической возможности подключения",3,null,222,null,null,"Тариф на холодную воду поверхностную","Тариф на холодную воду поверхностную","Плата за услуги по поддержанию резервной тепловой мощности, оказываемые регулируемой организацией, мощность тепловых сетей которой используется для поддержания резервной мощности в соответствии со схемой теплоснабжения","Плата за услуги по поддержанию резервной тепловой мощности, оказываемые регулируемой организацией, мощность тепловых сетей которой используется для поддержания резервной мощности в соответствии со схемой теплоснабжения",null,"превышает 1,5 Гкал/ч при наличии технической возможности подключения",null,"Отборный пар, 2,5-7 кг/см2",null,null,"Уголь",null,"Аукцион в электронной форме",null,null,"Тариф на подключение к централизованной системе горячего водоснабжения","Тариф на подключение к централизованной системе горячего водоснабжения (инд)",null,"иное",null,"от 71 мм до 100 мм включительно",null,"02","02",null,"Форма 1.3","Информация о величинах тарифов на подключение к централизованной системе горячего водоснабжения"]
["Астраханская область",2003,2016,null,"апрель","IV квартал",null,null,"4",null,"метод сравнения аналогов","метод сравнения аналогов",4,"производство (некомбинированная выработка)+передача+сбыт","Вода",null,"к тепловой сети после тепловых пунктов (на тепловых пунктах), эксплуатируемых теплоснабжающей организацией","прочие",null,"551 - 700 мм","превышает 1,5 Гкал/ч при отсутствии технической возможности подключения",4,null,333,null,1,"Добавить вариант …","Добавить вариант …",null,null,null,"не известна",null,"Отборный пар, 7-13 кг/см2",null,null,"Мазут",null,"Запрос котировок",null,null,"Тариф на подключение к централизованной системе горячего водоснабжения (инд)",null,null,null,null,"от 101 мм до 150 мм включительно",null,"03","03",null,"Форма 1.8","Информация об условиях, на которых осуществляется поставка регулируемых товаров и (или) оказание регулируемых услуг"]
["Белгородская область",2004,2017,null,"май",null,"НДС общий\n/kind_of_NDS_tariff/","НДС\n/kind_of_NDS_tariff/","5","Вид тарифа на передачу тепловой энергии /kind_of_tariff_unit/",null,null,null,"производство (некомбинированная выработка)+передача","Пар",null,null,"без дифференциации",null,"701 мм и выше","не известна",5,null,"Тариф на горячую воду в закрытой системе горячего водоснабжения (горячее водоснабжение)","Форма 2.2 Информация о величинах тарифов на питьевую воду (питьевое водоснабжение), техническую воду, транспортировку воды, подвоз воды1",null,null,null,null,null,null,null,null,"Отборный пар, > 13 кг/см2",null,null,"Дизельное топливо",null,"Единственный поставщик",null,null,null,null,null,null,null,"от 151 мм до 200 мм включительно",null,"04","04",null,"Форма 1.9","Информация о порядке выполнения технологических, технических и других мероприятий, связанных с подключением к централизованной системе горячего водоснабжения"]
["Брянская область",2005,null,null,"июнь",null,"тариф указан с НДС для плательщиков НДС","тариф для организаций не являющихся плательщиками НДС","6","руб./Гкал/ч/мес",null,null,null,"производство (некомбинированная выработка)+сбыт","Отборный пар, 1,2-2,5 кг/см2",null,null,null,null,null,"нет","6",null,66666,null,null,null,null,null,null,null,null,null,"Острый и редуцированный пар",null,null,"Дрова",null,"Иное",null,null,null,null,null,null,null,"от 201 мм до 250 мм включительно",null,"05","05"]
["Владимирская область",2006,null,null,"июль",null,"тариф указан без НДС для плательщиков НДС","тариф не утверждался","7","руб./Гкал",null,null,null,"производство (некомбинированная выработка)","Отборный пар, 2,5-7 кг/см2",null,null,null,null,null,null,"7",null,77777,null,null,null,null,null,null,null,null,null,null,null,null,"Электроэнергия",null,null,null,null,null,null,null,null,null,"от 250  мм и более",null,"06","06"]
["Волгоградская область",2007,null,null,"август",null,"тариф не утверждался",null,"8",null,null,null,null,null,"Отборный пар, 7-13 кг/см2",null,null,null,null,null,null,"8",null,8888,null,1,null,null,null,null,null,null,null,null,null,null,"Прочее",null,null,null,null,null,null,null,null,null,null,null,"07","07"]
["Вологодская область",2008,null,null,"сентябрь",null,null,null,"9",null,null,null,null,null,"Отборный пар, > 13 кг/см2",null,null,null,null,null,null,"9",null,"Тариф на подключение к централизованной системе горячего водоснабжения (инд)","Форма 2.3 Информация о величинах тарифов на подключение к централизованной системе горячего водоснабжения1",null,null,null,null,null,null,null,null,null,null,null,null,null,null,null,null,null,null,null,null,null,null,null,"08","08"]
["Воронежская область",2009,null,null,"октябрь",null,null,null,"10",null,null,null,null,null,"Острый и редуцированный пар",null,null,null,null,null,null,"10",null,"Тариф на подключение к централизованной системе горячего водоснабжения","Форма 2.3 Информация о величинах тарифов на подключение к централизованной системе горячего водоснабжения1",null,null,null,null,null,null,null,null,null,null,null,null,null,null,null,null,null,null,null,null,null,null,null,"09","09"]
["г.Байконур",2010,null,null,"ноябрь",null,"НДС общий люди\n/kind_of_NDS_tariff_people/","НДС\n/kind_of_NDS_tariff_people/","11",null,null,null,null,null,"Горячая вода в системе централизованного теплоснабжения на отопление",null,null,null,null,null,null,null,null,null,null,null,null,null,null,null,null,null,null,null,null,null,null,null,null,null,null,null,null,null,null,null,null,null,"10","10"]
["г. Москва",2011,null,null,"декабрь",null,"тариф с НДС организаций-плательщиков НДС","тариф организаций не являющихся плательщиками НДС","12",null,null,null,null,null,"Прочее",null,null,null,null,null,null,null,null,null,null,null,null,null,null,null,null,null,null,null,null,null,null,null,null,null,null,null,null,null,null,null,null,null,"11","11"]
["г.Санкт-Петербург",2012,null,null,null,null,"тариф не утверждался","тариф не утверждался","13",null,null,null,null,"Вид деятельности /kind_of_activity/",null,null,null,null,null,null,null,null,null,null,null,null,null,null,null,null,null,null,null,null,null,null,null,null,null,null,null,null,null,null,null,null,null,null,"12","12"]
["г.Севастополь",2013,null,null,null,null,null,null,"14",null,null,null,null,"производство тепловой энергии (мощности) в режиме комбинированной выработки электрической и тепловой энергии источниками тепловой энергии с установленной генерирующей мощностью производства электрической энергии 25 МВт и более",null,null,null,null,null,null,null,null,null,null,null,null,null,null,null,null,null,null,null,null,null,null,null,null,null,null,null,null,null,null,null,null,null,null,"13","13"]
["Еврейская автономная область",2014,null,null,null,null,null,null,"15",null,null,null,null,"производство тепловой энергии (мощности) в режиме комбинированной выработки электрической и тепловой энергии источниками тепловой энергии с установленной генерирующей мощностью производства электрической энергии менее 25 МВт",null,null,null,null,null,null,null,null,null,null,null,null,null,null,null,null,null,null,null,null,null,null,null,null,null,null,null,null,null,null,null,null,null,null,"14","14"]
["Забайкальский край",2015,null,null,null,null,null,null,"16",null,null,null,null,"производство тепловой энергии (мощности) не в режиме комбинированной выработки электрической и тепловой энергии источниками тепловой энергии",null,null,null,null,null,null,null,null,null,null,null,null,null,null,null,null,null,null,null,null,null,null,null,null,null,null,null,null,null,null,null,null,null,null,"15","15"]
["Ивановская область",2016,null,null,null,null,null,null,"17",null,null,null,null,"производство теплоносителя",null,null,null,null,null,null,null,null,null,null,null,null,null,null,null,null,null,null,null,null,null,null,null,null,null,null,null,null,null,null,null,null,null,null,"16","16"]
["Иркутская область",2017,null,null,null,null,null,null,"18",null,null,null,null,"передача тепловой энергии и теплоносителя",null,null,null,null,null,null,null,null,null,null,null,null,null,null,null,null,null,null,null,null,null,null,null,null,null,null,null,null,null,null,null,null,null,null,"17","17"]
["Кабардино-Балкарская республика",2018,null,null,null,null,null,null,"19",null,null,null,null,"сбыт тепловой энергии и теплоносителя",null,null,null,null,null,null,null,null,null,null,null,null,null,null,null,null,null,null,null,null,null,null,null,null,null,null,null,null,null,null,null,null,null,null,"18","18"]
["Калининградская область",2019,null,null,null,null,null,null,"20",null,null,null,null,"подключение к системе теплоснабжения",null,null,null,null,null,null,null,null,null,null,null,null,null,null,null,null,null,null,null,null,null,null,null,null,null,null,null,null,null,null,null,null,null,null,"19","19"]
["Калужская область",2020,null,null,null,null,null,null,null,null,null,null,null,"поддержание резервной тепловой мощности при отсутствии потребления тепловой энергии",null,null,null,null,null,null,null,null,null,null,null,null,null,null,null,null,null,null,null,null,null,null,null,null,null,null,null,null,null,null,null,null,null,null,"20","20"]
["Камчатский край",2021,null,null,null,null,null,null,null,null,null,null,null,null,null,null,null,null,null,null,null,null,null,null,null,null,null,null,null,null,null,null,null,null,null,null,null,null,null,null,null,null,null,null,null,null,null,null,"21","21"]
["Карачаево-Черкесская республика",2022,null,null,null,null,null,null,null,null,null,null,null,null,null,null,null,null,null,null,null,null,null,null,null,null,null,null,null,null,null,null,null,null,null,null,null,null,null,null,null,null,null,null,null,null,null,null,"22","22"]
["Кемеровская область",2023,null,null,null,null,null,null,null,null,null,null,null,null,null,null,null,null,null,null,null,null,null,null,null,null,null,null,null,null,null,null,null,null,null,null,null,null,null,null,null,null,null,null,null,null,null,null,"23","23"]
["Кировская область",2024,null,null,null,null,null,null,null,null,null,null,null,null,null,null,null,null,null,null,null,null,null,null,null,null,null,null,null,null,null,null,null,null,null,null,null,null,null,null,null,null,null,null,null,null,null,null,null,"24"]
["Костромская область",2025,null,null,null,null,null,null,null,null,null,null,null,null,null,null,null,null,null,null,null,null,null,null,null,null,null,null,null,null,null,null,null,null,null,null,null,null,null,null,null,null,null,null,null,null,null,null,null,"25"]
["Краснодарский край",null,null,null,null,null,null,"Текущая дата",null,null,null,null,null,null,null,null,null,null,null,null,null,null,null,null,null,null,null,null,null,null,null,null,null,null,null,null,null,null,null,null,null,null,null,null,null,null,null,null,null,"26"]
["Красноярский край",null,null,"Организация",{"$f":"IF(periodStart = \"\",\"\", periodStart)","v":"01.12.2022"},{"$f":"IF(periodEnd = \"\",\"\", periodEnd)","v":"31.12.2026"},null,"24.11.2022 23:07:20",null,null,null,null,null,null,null,null,null,null,null,null,null,null,null,null,null,null,null,null,null,null,null,null,null,null,null,null,null,null,null,null,null,null,null,null,null,null,null,null,null,"27"]
["Курганская область",null,null,null,null,null,null,null,null,null,null,null,null,null,null,null,null,null,null,null,null,null,null,null,null,null,null,null,null,null,null,null,null,null,null,null,null,null,null,null,null,null,null,null,null,null,null,null,null,"28"]
["Курская область",null,null,null,null,null,null,null,null,null,null,null,null,null,null,null,null,null,null,null,null,null,null,null,null,null,null,null,null,null,null,null,null,null,null,null,null,null,null,null,null,null,null,null,null,null,null,null,null,"29"]
["Ленинградская область",null,null,"Виды деятельности",null,null,null,"https://appsrv.regportal-tariff.ru/procwsxls/",null,null,null,null,null,null,null,null,null,null,null,null,null,null,null,null,null,null,null,null,null,null,null,null,null,null,null,null,null,null,null,null,null,null,null,null,null,null,null,null,null,"30"]
["Липецкая область",null,null,null,null,null,null,null,null,null,null,null,null,null,null,null,null,null,null,null,null,null,null,null,null,null,null,null,null,null,null,null,null,null,null,null,null,null,null,null,null,null,null,null,null,null,null,null,null,"31"]
["Магаданская область",null,null,null,null,null,null,null,null,null,null,null,null,null,null,null,null,null,null,null,null,null,null,null,null,null,null,null,null,null,null,null,null,null,null,null,null,null,null,null,null,null,null,null,null,null,null,null,null,"32"]
["Московская область",null,null,null,null,null,null,null,null,null,null,null,null,null,null,null,null,null,null,null,null,null,null,null,null,null,null,null,null,null,null,null,null,null,null,null,null,null,null,null,null,null,null,null,null,null,null,null,null,"33"]
["Мурманская область",null,null,null,null,null,null,null,null,null,null,null,null,null,null,null,null,null,null,null,null,null,null,null,null,null,null,null,null,null,null,null,null,null,null,null,null,null,null,null,null,null,null,null,null,null,null,null,null,"34"]
["Ненецкий автономный округ",null,null,null,null,null,null,null,null,null,null,null,null,null,null,null,null,null,null,null,null,null,null,null,null,null,null,null,null,null,null,null,null,null,null,null,null,null,null,null,null,null,null,null,null,null,null,null,null,"35"]
["Нижегородская область",null,null,null,null,null,null,null,null,null,null,null,null,null,null,null,null,null,null,null,null,null,null,null,null,null,null,null,null,null,null,null,null,null,null,null,null,null,null,null,null,null,null,null,null,null,null,null,null,"36"]
["Новгородская область",null,null,null,null,null,null,null,null,null,null,null,null,null,null,null,null,null,null,null,null,null,null,null,null,null,null,null,null,null,null,null,null,null,null,null,null,null,null,null,null,null,null,null,null,null,null,null,null,"37"]
["Новосибирская область",null,null,null,null,null,null,null,null,null,null,null,null,null,null,null,null,null,null,null,null,null,null,null,null,null,null,null,null,null,null,null,null,null,null,null,null,null,null,null,null,null,null,null,null,null,null,null,null,"38"]
["Омская область",null,null,null,null,null,null,null,null,null,null,null,null,null,null,null,null,null,null,null,null,null,null,null,null,null,null,null,null,null,null,null,null,null,null,null,null,null,null,null,null,null,null,null,null,null,null,null,null,"39"]
["Оренбургская область",null,null,null,null,null,null,null,null,null,null,null,null,null,null,null,null,null,null,null,null,null,null,null,null,null,null,null,null,null,null,null,null,null,null,null,null,null,null,null,null,null,null,null,null,null,null,null,null,"40"]
["Орловская область",null,null,null,null,null,null,null,null,null,null,null,null,null,null,null,null,null,null,null,null,null,null,null,null,null,null,null,null,null,null,null,null,null,null,null,null,null,null,null,null,null,null,null,null,null,null,null,null,"41"]
["Пензенская область",null,null,null,null,null,null,null,null,null,null,null,null,null,null,null,null,null,null,null,null,null,null,null,null,null,null,null,null,null,null,null,null,null,null,null,null,null,null,null,null,null,null,null,null,null,null,null,null,"42"]
["Пермский край",null,null,null,null,null,null,null,null,null,null,null,null,null,null,null,null,null,null,null,null,null,null,null,null,null,null,null,null,null,null,null,null,null,null,null,null,null,null,null,null,null,null,null,null,null,null,null,null,"43"]
["Приморский край",null,null,null,null,null,null,null,null,null,null,null,null,null,null,null,null,null,null,null,null,null,null,null,null,null,null,null,null,null,null,null,null,null,null,null,null,null,null,null,null,null,null,null,null,null,null,null,null,"44"]
["Псковская область",null,null,null,null,null,null,null,null,null,null,null,null,null,null,null,null,null,null,null,null,null,null,null,null,null,null,null,null,null,null,null,null,null,null,null,null,null,null,null,null,null,null,null,null,null,null,null,null,"45"]
["Республика Адыгея",null,null,null,null,null,null,null,null,null,null,null,null,null,null,null,null,null,null,null,null,null,null,null,null,null,null,null,null,null,null,null,null,null,null,null,null,null,null,null,null,null,null,null,null,null,null,null,null,"46"]
["Республика Алтай",null,null,null,null,null,null,null,null,null,null,null,null,null,null,null,null,null,null,null,null,null,null,null,null,null,null,null,null,null,null,null,null,null,null,null,null,null,null,null,null,null,null,null,null,null,null,null,null,"47"]
["Республика Башкортостан",null,null,null,null,null,null,null,null,null,null,null,null,null,null,null,null,null,null,null,null,null,null,null,null,null,null,null,null,null,null,null,null,null,null,null,null,null,null,null,null,null,null,null,null,null,null,null,null,"48"]
["Республика Бурятия",null,null,null,null,null,null,null,null,null,null,null,null,null,null,null,null,null,null,null,null,null,null,null,null,null,null,null,null,null,null,null,null,null,null,null,null,null,null,null,null,null,null,null,null,null,null,null,null,"49"]
["Республика Дагестан",null,null,null,null,null,null,null,null,null,null,null,null,null,null,null,null,null,null,null,null,null,null,null,null,null,null,null,null,null,null,null,null,null,null,null,null,null,null,null,null,null,null,null,null,null,null,null,null,"50"]
["Республика Ингушетия",null,null,null,null,null,null,null,null,null,null,null,null,null,null,null,null,null,null,null,null,null,null,null,null,null,null,null,null,null,null,null,null,null,null,null,null,null,null,null,null,null,null,null,null,null,null,null,null,"51"]
["Республика Калмыкия",null,null,null,null,null,null,null,null,null,null,null,null,null,null,null,null,null,null,null,null,null,null,null,null,null,null,null,null,null,null,null,null,null,null,null,null,null,null,null,null,null,null,null,null,null,null,null,null,"52"]
["Республика Карелия",null,null,null,null,null,null,null,null,null,null,null,null,null,null,null,null,null,null,null,null,null,null,null,null,null,null,null,null,null,null,null,null,null,null,null,null,null,null,null,null,null,null,null,null,null,null,null,null,"53"]
["Республика Коми",null,null,null,null,null,null,null,null,null,null,null,null,null,null,null,null,null,null,null,null,null,null,null,null,null,null,null,null,null,null,null,null,null,null,null,null,null,null,null,null,null,null,null,null,null,null,null,null,"54"]
["Республика Крым",null,null,null,null,null,null,null,null,null,null,null,null,null,null,null,null,null,null,null,null,null,null,null,null,null,null,null,null,null,null,null,null,null,null,null,null,null,null,null,null,null,null,null,null,null,null,null,null,"55"]
["Республика Марий Эл",null,null,null,null,null,null,null,null,null,null,null,null,null,null,null,null,null,null,null,null,null,null,null,null,null,null,null,null,null,null,null,null,null,null,null,null,null,null,null,null,null,null,null,null,null,null,null,null,"56"]
["Республика Мордовия",null,null,null,null,null,null,null,null,null,null,null,null,null,null,null,null,null,null,null,null,null,null,null,null,null,null,null,null,null,null,null,null,null,null,null,null,null,null,null,null,null,null,null,null,null,null,null,null,"57"]
["Республика Саха (Якутия)",null,null,null,null,null,null,null,null,null,null,null,null,null,null,null,null,null,null,null,null,null,null,null,null,null,null,null,null,null,null,null,null,null,null,null,null,null,null,null,null,null,null,null,null,null,null,null,null,"58"]
["Республика Северная Осетия-Алания",null,null,null,null,null,null,null,null,null,null,null,null,null,null,null,null,null,null,null,null,null,null,null,null,null,null,null,null,null,null,null,null,null,null,null,null,null,null,null,null,null,null,null,null,null,null,null,null,"59"]
["Республика Татарстан"]
["Республика Тыва"]
["Республика Хакасия"]
["Ростовская область"]
["Рязанская область"]
["Самарская область"]
["Саратовская область"]
["Сахалинская область"]
["Свердловская область"]
["Смоленская область"]
["Ставропольский край"]
["Тамбовская область"]
["Тверская область"]
["Томская область"]
["Тульская область"]
["Тюменская область"]
["Удмуртская республика"]
["Ульяновская область"]
["Хабаровский край"]
["Ханты-Мансийский автономный округ"]
["Челябинская область"]
["Чеченская республика"]
["Чувашская республика"]
["Чукотский автономный округ"]
["Ямало-Ненецкий автономный округ"]
["Ярославская область"]

{"sheet":"modInfo","index":51,"n_rows":36,"n_cols":2,"rows_kept":36,"cut":false,"hidden":true,"merged":[]}
[null,"Титульный"]
[null,"Для выбора того или иного источника публикации выполните двойной щелчок по синей ячейке напротив соответствующего источника.\nВНИМАНИЕ! Если Вы снимаете галочку с пункта, то будут скрыты и очищены соответствующие строки на листе \"Форма 1.0.2\"!\n\nОпубликование перечисленных в шаблоне показателей на сайте организации в сети Интернет и в печатных изданиях не обязательно, если данный шаблон предоставлен по системе ЕИАС (региональный сегмент)."]
[null,"Обязательное опубликование на официальном сайте органа исполнительной власти субъекта Российской Федерации в области государственного регулирования цен (тарифов), и (или) на официальном сайте органа местного самоуправления поселения или городского округа в случае их наделения в соответствии с законом субъекта Российской Федерации полномочиями по государственному регулированию цен (тарифов)предусмотрено пунктом 3 (а) постановления Правительства №6 от 17.01.2013г."]
[null,"Задайте период регулирования, выбрав даты начала и окончания периода регулирования из календаря (иконка справа от указанной ячейки), либо введите дату непосредственно в ячейку в формате - 'ДД.ММ.ГГГГ'"]
[null,"Шаблон заполняется раздельно по каждому виду тарифа"]
[null,"В зависимости от указанного вида деятельности будут доступны для заполнения поля 'Производство', 'Передача' и 'Сбыт'"]
[null,"Если выбрано 'да', на листах с разбивкой по потребителям доступны для заполнения графы для двухставочного ставочного тарифа по группам потребителей"]
[null,"Если выбрано 'да', значения тарифов для групп потребителей на листах с разбивкой по потребителям заполнятся автоматически значениями первой группы"]
[null,"Если выбрано значение «да» - в шаблоне будет сформирован лист «Форма 1.0.2» для уведомления органа регулирования о публикации информации в печатных изданиях"]
[null,"По умолчанию установлено значение «первичное раскрытие информации» Это означает, что информация раскрывается в соответствии с установленными сроком и периодичностью. В случае, если в уже отправленном шаблоне обнаружена ошибка или произошло изменение информации, исправленный шаблон необходимо отправить с типом отчета «изменения в раскрытой ранее информации». "]
[null,"Укажите является ли данное юридическое лицо подразделением(филиалом) другой организации"]
[null,"Ссылки на публикации"]
[null,"Вводите адрес сайта, не нарушая цвет ячейки /если копируете гиперссылку из браузера, то выполните двойной щелчок по ячейке и только после этого можете вставить скопированный элемент/"]
[null,"Обосновывающие материалы необходимо загружать с помощью \"ЕИАС Мониторинг\". Ссылка на инструкцию по загрузке обосновывающих материалов расположена на листе 'Инструкция' в п.'Методология заполнения'.\n\nВвводите ссылку, не нарушая цвет ячейки /если копируете гиперссылку из браузера, то выполните двойной щелчок по ячейке и только после этого можете вставить скопированный элемент/."]
[null,"Если для какого-либо пункта графы 'Наименование источника (сайта или печатного издания)' информация не раскрывалась, то в соответствующем поле укажите - 'не раскрывалась'"]
[null,"Список МО"]
[null,"В случае, если тариф не дифференцируется по системам теплоснабжения, перечислите все муниципальные районы, в которых организация осуществляет услуги теплоснабжения и сфере оказания услуг по передаче тепловой энергии"]
[null,"В случае, если тариф не дифференцируется по системам теплоснабжения, перечислите все муниципальные образования, в которых организация осуществляет услуги теплоснабжения и сфере оказания услуг по передаче тепловой энергии"]
[null,"Признак дифференциации тарифа"]
[null,"В случае, если тариф не дифференцируется по системам теплоснабжения, укажите \"1\".\nВведите значение от 1 до 100, чтобы указать очередной условный порядковый номер системы теплоснабжения"]
[null,"Стандарты"]
[null,"В качестве примечания Вы можете указать единицу измерения"]
[]
[null,"Для корректного формирования Таблицы 25 Формы 1.10 необходимо задать разбивку по диаметрам и способу прокладки тепловых сетей"]
[]
[null,"Перечень тарифов"]
[null,"Указывается наименование тарифа в случае утверждения нескольких тарифов.\nВ случае наличия нескольких тарифов информация по ним указывается в отдельных строках."]
[null,"Укажите «Да» в поле «Да/Нет», если дифференциация используется.\nВ поле «Описание» указывается наименование территории действия тарифа при наличии дифференциации тарифа по территориальному признаку.\nВ случае дифференциации тарифов по территориальному признаку информация по ним указывается в отдельных строках."]
[null,"Признаки дифференциации указываются в соответствии с п.6 ст.32 ФЗ РФ от 07.12.2011 №416-ФЗ"]
[null,"Укажите «Да» в поле «Да/Нет», если дифференциация используется. В поле «Описание» укажите название ЦС ГВС или любое другое описание"]
[]
[null,"Территории"]
[1,"Наименование территории действия тарифа для целей идентификации"]
[2,"Муниципальные районы и муниципальные образования, на территории которых действует тариф"]
[null,"Инструкция"]
[null,"Нет доступных обновлений, версия отчёта актуальна"]

{"sheet":"modList05","index":52,"n_rows":0,"n_cols":0,"rows_kept":0,"cut":false,"hidden":true,"merged":[]}

{"sheet":"modList06","index":53,"n_rows":0,"n_cols":0,"rows_kept":0,"cut":false,"hidden":true,"merged":[]}

{"sheet":"modList07","index":54,"n_rows":0,"n_cols":0,"rows_kept":0,"cut":false,"hidden":true,"merged":[]}

{"sheet":"modList11","index":55,"n_rows":0,"n_cols":0,"rows_kept":0,"cut":false,"hidden":true,"merged":[]}

{"sheet":"modList12","index":56,"n_rows":0,"n_cols":0,"rows_kept":0,"cut":false,"hidden":true,"merged":[]}

{"sheet":"modfrmDateChoose","index":57,"n_rows":0,"n_cols":0,"rows_kept":0,"cut":false,"hidden":true,"merged":[]}

{"sheet":"modComm","index":58,"n_rows":0,"n_cols":0,"rows_kept":0,"cut":false,"hidden":true,"merged":[]}

{"sheet":"modThisWorkbook","index":59,"n_rows":0,"n_cols":0,"rows_kept":0,"cut":false,"hidden":true,"merged":[]}

{"sheet":"modfrmReestrMR","index":60,"n_rows":0,"n_cols":0,"rows_kept":0,"cut":false,"hidden":true,"merged":[]}

{"sheet":"modfrmCheckUpdates","index":61,"n_rows":0,"n_cols":0,"rows_kept":0,"cut":false,"hidden":true,"merged":[]}